Body Name,Date Paid,Transaction Number,Amount,Supplier Name,Supplier Type,Expense Area,Cost Centre Description,Expense Type
Cambridgeshire County Council,12-Mar-20,51301329501,"-58,820.45",British Telecommunications Plc,COMPANY,GCP - Cross City Cycling,GCP - Cross City Cycling,Cycleways
Cambridgeshire County Council,19-Mar-20,51301332110,"-51,753.25",British Telecommunications Plc,COMPANY,MID - Ely Crossing,MID - Ely Crossing,Construction - External Professional Fees
Cambridgeshire County Council,02-Mar-20,51301298569,"-40,820.17",A2B Travel Group,TRADE SUPPLIER,Passenger Transport other,Tendered Bus Costs,Support - subsidised bus routes
Cambridgeshire County Council,12-Mar-20,51301330907,"-33,235.20",Cadent Gas Ltd,COMPANY,GCP - Cross City Cycling,GCP - Cross City Cycling,Construction - External Professional Fees
Cambridgeshire County Council,06-Mar-20,51301310878,"-32,511.29",NOTTINGHAM REHAB SUPPLIES LTD,TRADE SUPPLIER,Integrated Community Equipment Service,ICES (Pool),Other Funding Contributions
Cambridgeshire County Council,04-Mar-20,51301332376,"-24,920.00",ACORN PARK SCHOOL,EDUCATION,SEN Placements,Placements - Education,Independent School Placements
Cambridgeshire County Council,20-Mar-20,51301307351,"-23,652.00",CAMBRIDGESHIRE DEAF ASSOCIATION,CHARITY,LD - Fenland Locality - Cost of Care,LD - Fenland  - Care,Supported Living
Cambridgeshire County Council,04-Mar-20,51301318348,"-15,063.96",THE BEECHES UK LIMITED,CARE ESTABLISHMENT,LAC Placements,Placements - supported accommodation,Agency Placements - In County
Cambridgeshire County Council,27-Mar-20,51301327472,"-14,418.70",TARMAC TRADING LIMITED,COMPANY,Highways - 90m Mtce,Highways - 90m Mtce,Highway - Resurfacing
Cambridgeshire County Council,12-Mar-20,51301329502,"-7,183.88",British Telecommunications Plc,COMPANY,GCP - Cross City Cycling,GCP - Cross City Cycling,Construction - External Professional Fees
Cambridgeshire County Council,25-Mar-20,51301332789,"-4,008.57",SUNBEAM FOSTERING AGENCY LTD,CARE ESTABLISHMENT,LAC Placements,Placements - independent fostering,Agency Placements - Out of  County
Cambridgeshire County Council,20-Mar-20,51301337295,"-3,765.03",VOYAGE (LICHFIELD),CARE ESTABLISHMENT,LD - Hunts Locality - Cost of Care,LD - Huntingdonshire - Care,Day Care
Cambridgeshire County Council,02-Mar-20,51301316787,"-3,586.26","M&J Group, Construction & Roofing Ltd",COMPANY,"School Condition, Maintenance & Suitability","School Condition, Maintenance & Suitability","New Construction, Conversion and Renovation"
Cambridgeshire County Council,02-Mar-20,51300509023,"-3,375.80",A & J COACHES T/A ALAN'S TAXI LTD,TRADE SUPPLIER,Home to School Transport - Mainstream,Home to School Transport Mainstream - Secondary,Home to School - Contract
Cambridgeshire County Council,23-Mar-20,51301330687,"-3,309.47",LITTLE ACORNS FOSTERING LTD,CARE ESTABLISHMENT,LAC Placements,Placements - independent fostering,Agency Placements - Out of  County
Cambridgeshire County Council,05-Mar-20,51301328684,"-3,218.00",Redacted Personal Data,SERVICE USER,LD - South Locality - Cost of Care,LD - South Cambs - Special Needs,Direct Payments
Cambridgeshire County Council,05-Mar-20,51301328684,"-3,218.00",Redacted Personal Data,SERVICE USER,LD - South Locality - Cost of Care,LD - South Cambs - Special Needs,Direct Payments
Cambridgeshire County Council,05-Mar-20,51301328684,"-3,218.00",Redacted Personal Data,SERVICE USER,LD - South Locality - Cost of Care,LD - South Cambs - Special Needs,Direct Payments
Cambridgeshire County Council,05-Mar-20,51301328684,"-3,218.00",Redacted Personal Data,SERVICE USER,LD - South Locality - Cost of Care,LD - South Cambs - Special Needs,Direct Payments
Cambridgeshire County Council,05-Mar-20,51301328684,"-3,218.00",Redacted Personal Data,SERVICE USER,LD - South Locality - Cost of Care,LD - South Cambs - Special Needs,Direct Payments
Cambridgeshire County Council,05-Mar-20,51301328684,"-3,218.00",Redacted Personal Data,SERVICE USER,LD - South Locality - Cost of Care,LD - South Cambs - Special Needs,Direct Payments
Cambridgeshire County Council,05-Mar-20,51301328684,"-3,218.00",Redacted Personal Data,SERVICE USER,LD - South Locality - Cost of Care,LD - South Cambs - Special Needs,Direct Payments
Cambridgeshire County Council,05-Mar-20,51301328684,"-3,218.00",Redacted Personal Data,SERVICE USER,LD - South Locality - Cost of Care,LD - South Cambs - Special Needs,Direct Payments
Cambridgeshire County Council,05-Mar-20,51301328684,"-3,218.00",Redacted Personal Data,SERVICE USER,LD - South Locality - Cost of Care,LD - South Cambs - Special Needs,Direct Payments
Cambridgeshire County Council,05-Mar-20,51301328684,"-3,218.00",Redacted Personal Data,SERVICE USER,LD - South Locality - Cost of Care,LD - South Cambs - Special Needs,Direct Payments
Cambridgeshire County Council,05-Mar-20,51301328684,"-3,218.00",Redacted Personal Data,SERVICE USER,LD - South Locality - Cost of Care,LD - South Cambs - Special Needs,Direct Payments
Cambridgeshire County Council,05-Mar-20,51301328684,"-3,218.00",Redacted Personal Data,SERVICE USER,LD - South Locality - Cost of Care,LD - South Cambs - Special Needs,Direct Payments
Cambridgeshire County Council,05-Mar-20,51301328684,"-3,218.00",Redacted Personal Data,SERVICE USER,LD - South Locality - Cost of Care,LD - South Cambs - Special Needs,Direct Payments
Cambridgeshire County Council,05-Mar-20,51301328684,"-3,218.00",Redacted Personal Data,SERVICE USER,LD - South Locality - Cost of Care,LD - South Cambs - Special Needs,Direct Payments
Cambridgeshire County Council,05-Mar-20,51301328684,"-3,218.00",Redacted Personal Data,SERVICE USER,LD - South Locality - Cost of Care,LD - South Cambs - Special Needs,Direct Payments
Cambridgeshire County Council,05-Mar-20,51301328684,"-3,218.00",Redacted Personal Data,SERVICE USER,LD - South Locality - Cost of Care,LD - South Cambs - Special Needs,Direct Payments
Cambridgeshire County Council,05-Mar-20,51301328684,"-3,218.00",Redacted Personal Data,SERVICE USER,LD - South Locality - Cost of Care,LD - South Cambs - Special Needs,Direct Payments
Cambridgeshire County Council,05-Mar-20,51301328684,"-3,218.00",Redacted Personal Data,SERVICE USER,LD - South Locality - Cost of Care,LD - South Cambs - Special Needs,Direct Payments
Cambridgeshire County Council,04-Mar-20,51301328381,"-3,161.22",Glebe Farm,COMPANY,LD - Hunts Locality - Cost of Care,LD - Huntingdonshire - Care,Residential Care
Cambridgeshire County Council,04-Mar-20,51301328381,"-3,161.22",Glebe Farm,COMPANY,LD - Hunts Locality - Cost of Care,LD - Huntingdonshire - Care,Residential Care
Cambridgeshire County Council,04-Mar-20,51301328381,"-3,161.22",Glebe Farm,COMPANY,LD - Hunts Locality - Cost of Care,LD - Huntingdonshire - Care,Residential Care
Cambridgeshire County Council,04-Mar-20,51301328381,"-3,161.22",Glebe Farm,COMPANY,LD - Hunts Locality - Cost of Care,LD - Huntingdonshire - Care,Residential Care
Cambridgeshire County Council,24-Mar-20,51301341862,"-2,910.31",Redacted Personal Data,INDIVIDUAL,LD - Young Adults Team,LD - Young Adults - Special Needs,Direct Payments
Cambridgeshire County Council,24-Mar-20,51301341862,"-2,910.31",Redacted Personal Data,INDIVIDUAL,LD - Young Adults Team,LD - Young Adults - Special Needs,Direct Payments
Cambridgeshire County Council,24-Mar-20,51301341862,"-2,910.31",Redacted Personal Data,INDIVIDUAL,LD - Young Adults Team,LD - Young Adults - Special Needs,Direct Payments
Cambridgeshire County Council,24-Mar-20,51301341862,"-2,910.31",Redacted Personal Data,INDIVIDUAL,LD - Young Adults Team,LD - Young Adults - Special Needs,Direct Payments
Cambridgeshire County Council,24-Mar-20,51301341862,"-2,910.31",Redacted Personal Data,INDIVIDUAL,LD - Young Adults Team,LD - Young Adults - Special Needs,Direct Payments
Cambridgeshire County Council,24-Mar-20,51301341862,"-2,910.31",Redacted Personal Data,INDIVIDUAL,LD - Young Adults Team,LD - Young Adults - Special Needs,Direct Payments
Cambridgeshire County Council,24-Mar-20,51301341862,"-2,910.31",Redacted Personal Data,INDIVIDUAL,LD - Young Adults Team,LD - Young Adults - Special Needs,Direct Payments
Cambridgeshire County Council,24-Mar-20,51301341862,"-2,910.31",Redacted Personal Data,INDIVIDUAL,LD - Young Adults Team,LD - Young Adults - Special Needs,Direct Payments
Cambridgeshire County Council,12-Mar-20,51301331257,"-2,802.09",HEATHERS (JEESAL RESIDENTIAL CARE),CARE ESTABLISHMENT,LD - Fenland Locality - Cost of Care,LD - Fenland  - Special Needs,Residential Care
Cambridgeshire County Council,12-Mar-20,51301331257,"-2,802.09",HEATHERS (JEESAL RESIDENTIAL CARE),CARE ESTABLISHMENT,LD - Fenland Locality - Cost of Care,LD - Fenland  - Special Needs,Residential Care
Cambridgeshire County Council,12-Mar-20,51301331257,"-2,802.09",HEATHERS (JEESAL RESIDENTIAL CARE),CARE ESTABLISHMENT,LD - Fenland Locality - Cost of Care,LD - Fenland  - Special Needs,Residential Care
Cambridgeshire County Council,12-Mar-20,51301331257,"-2,802.09",HEATHERS (JEESAL RESIDENTIAL CARE),CARE ESTABLISHMENT,LD - Fenland Locality - Cost of Care,LD - Fenland  - Special Needs,Residential Care
Cambridgeshire County Council,12-Mar-20,51301331257,"-2,802.09",HEATHERS (JEESAL RESIDENTIAL CARE),CARE ESTABLISHMENT,LD - Fenland Locality - Cost of Care,LD - Fenland  - Special Needs,Residential Care
Cambridgeshire County Council,12-Mar-20,51301331257,"-2,802.09",HEATHERS (JEESAL RESIDENTIAL CARE),CARE ESTABLISHMENT,LD - Fenland Locality - Cost of Care,LD - Fenland  - Special Needs,Residential Care
Cambridgeshire County Council,12-Mar-20,51301331257,"-2,802.09",HEATHERS (JEESAL RESIDENTIAL CARE),CARE ESTABLISHMENT,LD - Fenland Locality - Cost of Care,LD - Fenland  - Special Needs,Residential Care
Cambridgeshire County Council,12-Mar-20,51301331257,"-2,802.09",HEATHERS (JEESAL RESIDENTIAL CARE),CARE ESTABLISHMENT,LD - Fenland Locality - Cost of Care,LD - Fenland  - Special Needs,Residential Care
Cambridgeshire County Council,12-Mar-20,51301331257,"-2,802.09",HEATHERS (JEESAL RESIDENTIAL CARE),CARE ESTABLISHMENT,LD - Fenland Locality - Cost of Care,LD - Fenland  - Special Needs,Residential Care
Cambridgeshire County Council,12-Mar-20,51301331257,"-2,802.09",HEATHERS (JEESAL RESIDENTIAL CARE),CARE ESTABLISHMENT,LD - Fenland Locality - Cost of Care,LD - Fenland  - Special Needs,Residential Care
Cambridgeshire County Council,12-Mar-20,51301331257,"-2,802.09",HEATHERS (JEESAL RESIDENTIAL CARE),CARE ESTABLISHMENT,LD - Fenland Locality - Cost of Care,LD - Fenland  - Special Needs,Residential Care
Cambridgeshire County Council,12-Mar-20,51301331257,"-2,802.09",HEATHERS (JEESAL RESIDENTIAL CARE),CARE ESTABLISHMENT,LD - Fenland Locality - Cost of Care,LD - Fenland  - Special Needs,Residential Care
Cambridgeshire County Council,12-Mar-20,51301331257,"-2,802.09",HEATHERS (JEESAL RESIDENTIAL CARE),CARE ESTABLISHMENT,LD - Fenland Locality - Cost of Care,LD - Fenland  - Special Needs,Residential Care
Cambridgeshire County Council,12-Mar-20,51301331257,"-2,802.09",HEATHERS (JEESAL RESIDENTIAL CARE),CARE ESTABLISHMENT,LD - Fenland Locality - Cost of Care,LD - Fenland  - Special Needs,Residential Care
Cambridgeshire County Council,12-Mar-20,51301331257,"-2,802.09",HEATHERS (JEESAL RESIDENTIAL CARE),CARE ESTABLISHMENT,LD - Fenland Locality - Cost of Care,LD - Fenland  - Special Needs,Residential Care
Cambridgeshire County Council,12-Mar-20,51301331257,"-2,802.09",HEATHERS (JEESAL RESIDENTIAL CARE),CARE ESTABLISHMENT,LD - Fenland Locality - Cost of Care,LD - Fenland  - Special Needs,Residential Care
Cambridgeshire County Council,12-Mar-20,51301331257,"-2,802.09",HEATHERS (JEESAL RESIDENTIAL CARE),CARE ESTABLISHMENT,LD - Fenland Locality - Cost of Care,LD - Fenland  - Special Needs,Residential Care
Cambridgeshire County Council,12-Mar-20,51301331257,"-2,802.09",HEATHERS (JEESAL RESIDENTIAL CARE),CARE ESTABLISHMENT,LD - Fenland Locality - Cost of Care,LD - Fenland  - Special Needs,Residential Care
Cambridgeshire County Council,12-Mar-20,51301331257,"-2,802.09",HEATHERS (JEESAL RESIDENTIAL CARE),CARE ESTABLISHMENT,LD - Fenland Locality - Cost of Care,LD - Fenland  - Special Needs,Residential Care
Cambridgeshire County Council,12-Mar-20,51301331257,"-2,802.09",HEATHERS (JEESAL RESIDENTIAL CARE),CARE ESTABLISHMENT,LD - Fenland Locality - Cost of Care,LD - Fenland  - Special Needs,Residential Care
Cambridgeshire County Council,12-Mar-20,51301331257,"-2,802.09",HEATHERS (JEESAL RESIDENTIAL CARE),CARE ESTABLISHMENT,LD - Fenland Locality - Cost of Care,LD - Fenland  - Special Needs,Residential Care
Cambridgeshire County Council,12-Mar-20,51301331257,"-2,802.09",HEATHERS (JEESAL RESIDENTIAL CARE),CARE ESTABLISHMENT,LD - Fenland Locality - Cost of Care,LD - Fenland  - Special Needs,Residential Care
Cambridgeshire County Council,12-Mar-20,51301331257,"-2,802.09",HEATHERS (JEESAL RESIDENTIAL CARE),CARE ESTABLISHMENT,LD - Fenland Locality - Cost of Care,LD - Fenland  - Special Needs,Residential Care
Cambridgeshire County Council,12-Mar-20,51301331257,"-2,802.09",HEATHERS (JEESAL RESIDENTIAL CARE),CARE ESTABLISHMENT,LD - Fenland Locality - Cost of Care,LD - Fenland  - Special Needs,Residential Care
Cambridgeshire County Council,12-Mar-20,51301331257,"-2,802.09",HEATHERS (JEESAL RESIDENTIAL CARE),CARE ESTABLISHMENT,LD - Fenland Locality - Cost of Care,LD - Fenland  - Special Needs,Residential Care
Cambridgeshire County Council,12-Mar-20,51301331257,"-2,802.09",HEATHERS (JEESAL RESIDENTIAL CARE),CARE ESTABLISHMENT,LD - Fenland Locality - Cost of Care,LD - Fenland  - Special Needs,Residential Care
Cambridgeshire County Council,12-Mar-20,51301331257,"-2,802.09",HEATHERS (JEESAL RESIDENTIAL CARE),CARE ESTABLISHMENT,LD - Fenland Locality - Cost of Care,LD - Fenland  - Special Needs,Residential Care
Cambridgeshire County Council,12-Mar-20,51301331257,"-2,802.09",HEATHERS (JEESAL RESIDENTIAL CARE),CARE ESTABLISHMENT,LD - Fenland Locality - Cost of Care,LD - Fenland  - Special Needs,Residential Care
Cambridgeshire County Council,12-Mar-20,51301331257,"-2,802.09",HEATHERS (JEESAL RESIDENTIAL CARE),CARE ESTABLISHMENT,LD - Fenland Locality - Cost of Care,LD - Fenland  - Special Needs,Residential Care
Cambridgeshire County Council,12-Mar-20,51301331257,"-2,802.09",HEATHERS (JEESAL RESIDENTIAL CARE),CARE ESTABLISHMENT,LD - Fenland Locality - Cost of Care,LD - Fenland  - Special Needs,Residential Care
Cambridgeshire County Council,12-Mar-20,51301331257,"-2,802.09",HEATHERS (JEESAL RESIDENTIAL CARE),CARE ESTABLISHMENT,LD - Fenland Locality - Cost of Care,LD - Fenland  - Special Needs,Residential Care
Cambridgeshire County Council,12-Mar-20,51301331257,"-2,802.09",HEATHERS (JEESAL RESIDENTIAL CARE),CARE ESTABLISHMENT,LD - Fenland Locality - Cost of Care,LD - Fenland  - Special Needs,Residential Care
Cambridgeshire County Council,12-Mar-20,51301331257,"-2,802.09",HEATHERS (JEESAL RESIDENTIAL CARE),CARE ESTABLISHMENT,LD - Fenland Locality - Cost of Care,LD - Fenland  - Special Needs,Residential Care
Cambridgeshire County Council,12-Mar-20,51301331257,"-2,802.09",HEATHERS (JEESAL RESIDENTIAL CARE),CARE ESTABLISHMENT,LD - Fenland Locality - Cost of Care,LD - Fenland  - Special Needs,Residential Care
Cambridgeshire County Council,12-Mar-20,51301331257,"-2,802.09",HEATHERS (JEESAL RESIDENTIAL CARE),CARE ESTABLISHMENT,LD - Fenland Locality - Cost of Care,LD - Fenland  - Special Needs,Residential Care
Cambridgeshire County Council,12-Mar-20,51301331257,"-2,802.09",HEATHERS (JEESAL RESIDENTIAL CARE),CARE ESTABLISHMENT,LD - Fenland Locality - Cost of Care,LD - Fenland  - Special Needs,Residential Care
Cambridgeshire County Council,12-Mar-20,51301331257,"-2,802.09",HEATHERS (JEESAL RESIDENTIAL CARE),CARE ESTABLISHMENT,LD - Fenland Locality - Cost of Care,LD - Fenland  - Special Needs,Residential Care
Cambridgeshire County Council,12-Mar-20,51301331257,"-2,802.09",HEATHERS (JEESAL RESIDENTIAL CARE),CARE ESTABLISHMENT,LD - Fenland Locality - Cost of Care,LD - Fenland  - Special Needs,Residential Care
Cambridgeshire County Council,12-Mar-20,51301331257,"-2,802.09",HEATHERS (JEESAL RESIDENTIAL CARE),CARE ESTABLISHMENT,LD - Fenland Locality - Cost of Care,LD - Fenland  - Special Needs,Residential Care
Cambridgeshire County Council,12-Mar-20,51301331257,"-2,802.09",HEATHERS (JEESAL RESIDENTIAL CARE),CARE ESTABLISHMENT,LD - Fenland Locality - Cost of Care,LD - Fenland  - Special Needs,Residential Care
Cambridgeshire County Council,12-Mar-20,51301331257,"-2,802.09",HEATHERS (JEESAL RESIDENTIAL CARE),CARE ESTABLISHMENT,LD - Fenland Locality - Cost of Care,LD - Fenland  - Special Needs,Residential Care
Cambridgeshire County Council,12-Mar-20,51301331257,"-2,802.09",HEATHERS (JEESAL RESIDENTIAL CARE),CARE ESTABLISHMENT,LD - Fenland Locality - Cost of Care,LD - Fenland  - Special Needs,Residential Care
Cambridgeshire County Council,12-Mar-20,51301331257,"-2,802.09",HEATHERS (JEESAL RESIDENTIAL CARE),CARE ESTABLISHMENT,LD - Fenland Locality - Cost of Care,LD - Fenland  - Special Needs,Residential Care
Cambridgeshire County Council,12-Mar-20,51301331257,"-2,802.09",HEATHERS (JEESAL RESIDENTIAL CARE),CARE ESTABLISHMENT,LD - Fenland Locality - Cost of Care,LD - Fenland  - Special Needs,Residential Care
Cambridgeshire County Council,12-Mar-20,51301331257,"-2,802.09",HEATHERS (JEESAL RESIDENTIAL CARE),CARE ESTABLISHMENT,LD - Fenland Locality - Cost of Care,LD - Fenland  - Special Needs,Residential Care
Cambridgeshire County Council,12-Mar-20,51301331257,"-2,802.09",HEATHERS (JEESAL RESIDENTIAL CARE),CARE ESTABLISHMENT,LD - Fenland Locality - Cost of Care,LD - Fenland  - Special Needs,Residential Care
Cambridgeshire County Council,12-Mar-20,51301331257,"-2,802.09",HEATHERS (JEESAL RESIDENTIAL CARE),CARE ESTABLISHMENT,LD - Fenland Locality - Cost of Care,LD - Fenland  - Special Needs,Residential Care
Cambridgeshire County Council,12-Mar-20,51301331257,"-2,802.09",HEATHERS (JEESAL RESIDENTIAL CARE),CARE ESTABLISHMENT,LD - Fenland Locality - Cost of Care,LD - Fenland  - Special Needs,Residential Care
Cambridgeshire County Council,12-Mar-20,51301331257,"-2,802.09",HEATHERS (JEESAL RESIDENTIAL CARE),CARE ESTABLISHMENT,LD - Fenland Locality - Cost of Care,LD - Fenland  - Special Needs,Residential Care
Cambridgeshire County Council,12-Mar-20,51301331257,"-2,802.09",HEATHERS (JEESAL RESIDENTIAL CARE),CARE ESTABLISHMENT,LD - Fenland Locality - Cost of Care,LD - Fenland  - Special Needs,Residential Care
Cambridgeshire County Council,12-Mar-20,51301331257,"-2,802.09",HEATHERS (JEESAL RESIDENTIAL CARE),CARE ESTABLISHMENT,LD - Fenland Locality - Cost of Care,LD - Fenland  - Special Needs,Residential Care
Cambridgeshire County Council,12-Mar-20,51301329503,"-2,739.22",British Telecommunications Plc,COMPANY,GCP - Cross City Cycling,GCP - Cross City Cycling,Construction - External Professional Fees
Cambridgeshire County Council,04-Mar-20,51301328381,"-2,709.62",Glebe Farm,COMPANY,LD - Hunts Locality - Cost of Care,LD - Huntingdonshire - Care,Residential Care
Cambridgeshire County Council,12-Mar-20,51301331257,"-2,401.79",HEATHERS (JEESAL RESIDENTIAL CARE),CARE ESTABLISHMENT,LD - Fenland Locality - Cost of Care,LD - Fenland  - Special Needs,Residential Care
Cambridgeshire County Council,09-Mar-20,51301315249,"-2,400.00",MLL Telecom Limited,TRADE SUPPLIER,CPSN Replacement,CPSN Replacement,IT Hardware
Cambridgeshire County Council,24-Mar-20,51301341862,"-2,078.79",Redacted Personal Data,INDIVIDUAL,LD - Young Adults Team,LD - Young Adults - Special Needs,Direct Payments
Cambridgeshire County Council,20-Mar-20,51301338242,"-2,055.71",GLENHOLME HEALTHCARE LTD,CARE ESTABLISHMENT,LD - Hunts Locality - Cost of Care,LD - Huntingdonshire - Care,Supported Living
Cambridgeshire County Council,20-Mar-20,51301338242,"-2,055.71",GLENHOLME HEALTHCARE LTD,CARE ESTABLISHMENT,LD - Hunts Locality - Cost of Care,LD - Huntingdonshire - Care,Supported Living
Cambridgeshire County Council,20-Mar-20,51301338242,"-2,055.71",GLENHOLME HEALTHCARE LTD,CARE ESTABLISHMENT,LD - Hunts Locality - Cost of Care,LD - Huntingdonshire - Care,Supported Living
Cambridgeshire County Council,20-Mar-20,51301338242,"-2,055.71",GLENHOLME HEALTHCARE LTD,CARE ESTABLISHMENT,LD - Hunts Locality - Cost of Care,LD - Huntingdonshire - Care,Supported Living
Cambridgeshire County Council,20-Mar-20,51301338242,"-2,055.71",GLENHOLME HEALTHCARE LTD,CARE ESTABLISHMENT,LD - Hunts Locality - Cost of Care,LD - Huntingdonshire - Care,Supported Living
Cambridgeshire County Council,20-Mar-20,51301338242,"-2,055.71",GLENHOLME HEALTHCARE LTD,CARE ESTABLISHMENT,LD - Hunts Locality - Cost of Care,LD - Huntingdonshire - Care,Supported Living
Cambridgeshire County Council,20-Mar-20,51301338242,"-2,055.71",GLENHOLME HEALTHCARE LTD,CARE ESTABLISHMENT,LD - Hunts Locality - Cost of Care,LD - Huntingdonshire - Care,Supported Living
Cambridgeshire County Council,20-Mar-20,51301338242,"-2,055.71",GLENHOLME HEALTHCARE LTD,CARE ESTABLISHMENT,LD - Hunts Locality - Cost of Care,LD - Huntingdonshire - Care,Supported Living
Cambridgeshire County Council,20-Mar-20,51301338242,"-2,055.71",GLENHOLME HEALTHCARE LTD,CARE ESTABLISHMENT,LD - Hunts Locality - Cost of Care,LD - Huntingdonshire - Care,Supported Living
Cambridgeshire County Council,20-Mar-20,51301338242,"-2,055.71",GLENHOLME HEALTHCARE LTD,CARE ESTABLISHMENT,LD - Hunts Locality - Cost of Care,LD - Huntingdonshire - Care,Supported Living
Cambridgeshire County Council,20-Mar-20,51301338242,"-2,055.71",GLENHOLME HEALTHCARE LTD,CARE ESTABLISHMENT,LD - Hunts Locality - Cost of Care,LD - Huntingdonshire - Care,Supported Living
Cambridgeshire County Council,19-Mar-20,51301336518,"-1,945.60",AURORA ORCHARD MANOR,CARE ESTABLISHMENT,LD - South Locality - Cost of Care,LD - South Cambs - Care,Residential Care
Cambridgeshire County Council,19-Mar-20,51301336518,"-1,945.60",AURORA ORCHARD MANOR,CARE ESTABLISHMENT,LD - South Locality - Cost of Care,LD - South Cambs - Care,Residential Care
Cambridgeshire County Council,19-Mar-20,51301336518,"-1,945.60",AURORA ORCHARD MANOR,CARE ESTABLISHMENT,LD - South Locality - Cost of Care,LD - South Cambs - Care,Residential Care
Cambridgeshire County Council,19-Mar-20,51301336518,"-1,945.60",AURORA ORCHARD MANOR,CARE ESTABLISHMENT,LD - South Locality - Cost of Care,LD - South Cambs - Care,Residential Care
Cambridgeshire County Council,19-Mar-20,51301336518,"-1,945.60",AURORA ORCHARD MANOR,CARE ESTABLISHMENT,LD - South Locality - Cost of Care,LD - South Cambs - Care,Residential Care
Cambridgeshire County Council,19-Mar-20,51301336518,"-1,945.60",AURORA ORCHARD MANOR,CARE ESTABLISHMENT,LD - South Locality - Cost of Care,LD - South Cambs - Care,Residential Care
Cambridgeshire County Council,19-Mar-20,51301336518,"-1,945.60",AURORA ORCHARD MANOR,CARE ESTABLISHMENT,LD - South Locality - Cost of Care,LD - South Cambs - Care,Residential Care
Cambridgeshire County Council,19-Mar-20,51301336518,"-1,945.60",AURORA ORCHARD MANOR,CARE ESTABLISHMENT,LD - South Locality - Cost of Care,LD - South Cambs - Care,Residential Care
Cambridgeshire County Council,19-Mar-20,51301336518,"-1,945.60",AURORA ORCHARD MANOR,CARE ESTABLISHMENT,LD - South Locality - Cost of Care,LD - South Cambs - Care,Residential Care
Cambridgeshire County Council,19-Mar-20,51301336518,"-1,945.60",AURORA ORCHARD MANOR,CARE ESTABLISHMENT,LD - South Locality - Cost of Care,LD - South Cambs - Care,Residential Care
Cambridgeshire County Council,19-Mar-20,51301336518,"-1,945.60",AURORA ORCHARD MANOR,CARE ESTABLISHMENT,LD - South Locality - Cost of Care,LD - South Cambs - Care,Residential Care
Cambridgeshire County Council,19-Mar-20,51301336518,"-1,945.60",AURORA ORCHARD MANOR,CARE ESTABLISHMENT,LD - South Locality - Cost of Care,LD - South Cambs - Care,Residential Care
Cambridgeshire County Council,19-Mar-20,51301336518,"-1,945.60",AURORA ORCHARD MANOR,CARE ESTABLISHMENT,LD - South Locality - Cost of Care,LD - South Cambs - Care,Residential Care
Cambridgeshire County Council,19-Mar-20,51301336518,"-1,945.60",AURORA ORCHARD MANOR,CARE ESTABLISHMENT,LD - South Locality - Cost of Care,LD - South Cambs - Care,Residential Care
Cambridgeshire County Council,19-Mar-20,51301336518,"-1,945.60",AURORA ORCHARD MANOR,CARE ESTABLISHMENT,LD - South Locality - Cost of Care,LD - South Cambs - Care,Residential Care
Cambridgeshire County Council,04-Mar-20,51301328403,"-1,868.51",CARETECH COMMUNITY SERVICES LTD (161 WOOTTON RD),CARE ESTABLISHMENT,LD - Hunts Locality - Cost of Care,LD - Huntingdonshire - Care,Residential Care
Cambridgeshire County Council,04-Mar-20,51301328403,"-1,868.51",CARETECH COMMUNITY SERVICES LTD (161 WOOTTON RD),CARE ESTABLISHMENT,LD - Hunts Locality - Cost of Care,LD - Huntingdonshire - Care,Residential Care
Cambridgeshire County Council,04-Mar-20,51301328403,"-1,868.51",CARETECH COMMUNITY SERVICES LTD (161 WOOTTON RD),CARE ESTABLISHMENT,LD - Hunts Locality - Cost of Care,LD - Huntingdonshire - Care,Residential Care
Cambridgeshire County Council,04-Mar-20,51301328403,"-1,868.51",CARETECH COMMUNITY SERVICES LTD (161 WOOTTON RD),CARE ESTABLISHMENT,LD - Hunts Locality - Cost of Care,LD - Huntingdonshire - Care,Residential Care
Cambridgeshire County Council,04-Mar-20,51301328403,"-1,868.51",CARETECH COMMUNITY SERVICES LTD (161 WOOTTON RD),CARE ESTABLISHMENT,LD - Hunts Locality - Cost of Care,LD - Huntingdonshire - Care,Residential Care
Cambridgeshire County Council,04-Mar-20,51301328403,"-1,868.51",CARETECH COMMUNITY SERVICES LTD (161 WOOTTON RD),CARE ESTABLISHMENT,LD - Hunts Locality - Cost of Care,LD - Huntingdonshire - Care,Residential Care
Cambridgeshire County Council,04-Mar-20,51301328403,"-1,868.51",CARETECH COMMUNITY SERVICES LTD (161 WOOTTON RD),CARE ESTABLISHMENT,LD - Hunts Locality - Cost of Care,LD - Huntingdonshire - Care,Residential Care
Cambridgeshire County Council,04-Mar-20,51301328403,"-1,868.51",CARETECH COMMUNITY SERVICES LTD (161 WOOTTON RD),CARE ESTABLISHMENT,LD - Hunts Locality - Cost of Care,LD - Huntingdonshire - Care,Residential Care
Cambridgeshire County Council,04-Mar-20,51301328403,"-1,868.51",CARETECH COMMUNITY SERVICES LTD (161 WOOTTON RD),CARE ESTABLISHMENT,LD - Hunts Locality - Cost of Care,LD - Huntingdonshire - Care,Residential Care
Cambridgeshire County Council,04-Mar-20,51301328403,"-1,868.51",CARETECH COMMUNITY SERVICES LTD (161 WOOTTON RD),CARE ESTABLISHMENT,LD - Hunts Locality - Cost of Care,LD - Huntingdonshire - Care,Residential Care
Cambridgeshire County Council,04-Mar-20,51301328403,"-1,868.51",CARETECH COMMUNITY SERVICES LTD (161 WOOTTON RD),CARE ESTABLISHMENT,LD - Hunts Locality - Cost of Care,LD - Huntingdonshire - Care,Residential Care
Cambridgeshire County Council,04-Mar-20,51301328403,"-1,868.51",CARETECH COMMUNITY SERVICES LTD (161 WOOTTON RD),CARE ESTABLISHMENT,LD - Hunts Locality - Cost of Care,LD - Huntingdonshire - Care,Residential Care
Cambridgeshire County Council,04-Mar-20,51301328403,"-1,868.51",CARETECH COMMUNITY SERVICES LTD (161 WOOTTON RD),CARE ESTABLISHMENT,LD - Hunts Locality - Cost of Care,LD - Huntingdonshire - Care,Residential Care
Cambridgeshire County Council,04-Mar-20,51301328403,"-1,868.51",CARETECH COMMUNITY SERVICES LTD (161 WOOTTON RD),CARE ESTABLISHMENT,LD - Hunts Locality - Cost of Care,LD - Huntingdonshire - Care,Residential Care
Cambridgeshire County Council,04-Mar-20,51301328403,"-1,868.51",CARETECH COMMUNITY SERVICES LTD (161 WOOTTON RD),CARE ESTABLISHMENT,LD - Hunts Locality - Cost of Care,LD - Huntingdonshire - Care,Residential Care
Cambridgeshire County Council,04-Mar-20,51301328403,"-1,868.51",CARETECH COMMUNITY SERVICES LTD (161 WOOTTON RD),CARE ESTABLISHMENT,LD - Hunts Locality - Cost of Care,LD - Huntingdonshire - Care,Residential Care
Cambridgeshire County Council,04-Mar-20,51301328403,"-1,868.51",CARETECH COMMUNITY SERVICES LTD (161 WOOTTON RD),CARE ESTABLISHMENT,LD - Hunts Locality - Cost of Care,LD - Huntingdonshire - Care,Residential Care
Cambridgeshire County Council,04-Mar-20,51301328403,"-1,868.51",CARETECH COMMUNITY SERVICES LTD (161 WOOTTON RD),CARE ESTABLISHMENT,LD - Hunts Locality - Cost of Care,LD - Huntingdonshire - Care,Residential Care
Cambridgeshire County Council,04-Mar-20,51301328403,"-1,868.51",CARETECH COMMUNITY SERVICES LTD (161 WOOTTON RD),CARE ESTABLISHMENT,LD - Hunts Locality - Cost of Care,LD - Huntingdonshire - Care,Residential Care
Cambridgeshire County Council,04-Mar-20,51301328403,"-1,868.51",CARETECH COMMUNITY SERVICES LTD (161 WOOTTON RD),CARE ESTABLISHMENT,LD - Hunts Locality - Cost of Care,LD - Huntingdonshire - Care,Residential Care
Cambridgeshire County Council,04-Mar-20,51301328403,"-1,868.51",CARETECH COMMUNITY SERVICES LTD (161 WOOTTON RD),CARE ESTABLISHMENT,LD - Hunts Locality - Cost of Care,LD - Huntingdonshire - Care,Residential Care
Cambridgeshire County Council,04-Mar-20,51301328403,"-1,868.51",CARETECH COMMUNITY SERVICES LTD (161 WOOTTON RD),CARE ESTABLISHMENT,LD - Hunts Locality - Cost of Care,LD - Huntingdonshire - Care,Residential Care
Cambridgeshire County Council,04-Mar-20,51301328403,"-1,868.51",CARETECH COMMUNITY SERVICES LTD (161 WOOTTON RD),CARE ESTABLISHMENT,LD - Hunts Locality - Cost of Care,LD - Huntingdonshire - Care,Residential Care
Cambridgeshire County Council,04-Mar-20,51301328403,"-1,868.51",CARETECH COMMUNITY SERVICES LTD (161 WOOTTON RD),CARE ESTABLISHMENT,LD - Hunts Locality - Cost of Care,LD - Huntingdonshire - Care,Residential Care
Cambridgeshire County Council,04-Mar-20,51301328403,"-1,868.51",CARETECH COMMUNITY SERVICES LTD (161 WOOTTON RD),CARE ESTABLISHMENT,LD - Hunts Locality - Cost of Care,LD - Huntingdonshire - Care,Residential Care
Cambridgeshire County Council,23-Mar-20,51301340532,"-1,849.44",CAMBRIDGESHIRE HOMECARE (J&M CARE LTD),CARE ESTABLISHMENT,AMH - Hunts & Fens,E Cambs & Fenland Mental Health Team,Domiciliary Care
Cambridgeshire County Council,23-Mar-20,51301340532,"-1,849.44",CAMBRIDGESHIRE HOMECARE (J&M CARE LTD),CARE ESTABLISHMENT,AMH - Hunts & Fens,E Cambs & Fenland Mental Health Team,Domiciliary Care
Cambridgeshire County Council,23-Mar-20,51301340532,"-1,849.44",CAMBRIDGESHIRE HOMECARE (J&M CARE LTD),CARE ESTABLISHMENT,AMH - Hunts & Fens,E Cambs & Fenland Mental Health Team,Domiciliary Care
Cambridgeshire County Council,23-Mar-20,51301340532,"-1,849.44",CAMBRIDGESHIRE HOMECARE (J&M CARE LTD),CARE ESTABLISHMENT,AMH - Hunts & Fens,E Cambs & Fenland Mental Health Team,Domiciliary Care
Cambridgeshire County Council,23-Mar-20,51301340532,"-1,849.44",CAMBRIDGESHIRE HOMECARE (J&M CARE LTD),CARE ESTABLISHMENT,AMH - Hunts & Fens,E Cambs & Fenland Mental Health Team,Domiciliary Care
Cambridgeshire County Council,23-Mar-20,51301340532,"-1,849.44",CAMBRIDGESHIRE HOMECARE (J&M CARE LTD),CARE ESTABLISHMENT,AMH - Hunts & Fens,E Cambs & Fenland Mental Health Team,Domiciliary Care
Cambridgeshire County Council,23-Mar-20,51301340532,"-1,849.44",CAMBRIDGESHIRE HOMECARE (J&M CARE LTD),CARE ESTABLISHMENT,AMH - Hunts & Fens,E Cambs & Fenland Mental Health Team,Domiciliary Care
Cambridgeshire County Council,23-Mar-20,51301340532,"-1,849.44",CAMBRIDGESHIRE HOMECARE (J&M CARE LTD),CARE ESTABLISHMENT,AMH - Hunts & Fens,E Cambs & Fenland Mental Health Team,Domiciliary Care
Cambridgeshire County Council,23-Mar-20,51301340532,"-1,849.44",CAMBRIDGESHIRE HOMECARE (J&M CARE LTD),CARE ESTABLISHMENT,AMH - Hunts & Fens,E Cambs & Fenland Mental Health Team,Domiciliary Care
Cambridgeshire County Council,23-Mar-20,51301340532,"-1,849.44",CAMBRIDGESHIRE HOMECARE (J&M CARE LTD),CARE ESTABLISHMENT,AMH - Hunts & Fens,E Cambs & Fenland Mental Health Team,Domiciliary Care
Cambridgeshire County Council,23-Mar-20,51301340532,"-1,849.44",CAMBRIDGESHIRE HOMECARE (J&M CARE LTD),CARE ESTABLISHMENT,AMH - Hunts & Fens,E Cambs & Fenland Mental Health Team,Domiciliary Care
Cambridgeshire County Council,19-Mar-20,51301336088,"-1,804.31",EAGLE WOOD NEUROLOGICAL CARE,CARE ESTABLISHMENT,OPMH - Hunts & Fens,Older People Mental Health Fenland,Nursing Care
Cambridgeshire County Council,19-Mar-20,51301336088,"-1,804.31",EAGLE WOOD NEUROLOGICAL CARE,CARE ESTABLISHMENT,OPMH - Hunts & Fens,Older People Mental Health Fenland,Nursing Care
Cambridgeshire County Council,19-Mar-20,51301336088,"-1,804.31",EAGLE WOOD NEUROLOGICAL CARE,CARE ESTABLISHMENT,OPMH - Hunts & Fens,Older People Mental Health Fenland,Nursing Care
Cambridgeshire County Council,19-Mar-20,51301336088,"-1,804.31",EAGLE WOOD NEUROLOGICAL CARE,CARE ESTABLISHMENT,OPMH - Hunts & Fens,Older People Mental Health Fenland,Nursing Care
Cambridgeshire County Council,19-Mar-20,51301336088,"-1,804.31",EAGLE WOOD NEUROLOGICAL CARE,CARE ESTABLISHMENT,OPMH - Hunts & Fens,Older People Mental Health Fenland,Nursing Care
Cambridgeshire County Council,19-Mar-20,51301336088,"-1,804.31",EAGLE WOOD NEUROLOGICAL CARE,CARE ESTABLISHMENT,OPMH - Hunts & Fens,Older People Mental Health Fenland,Nursing Care
Cambridgeshire County Council,19-Mar-20,51301336088,"-1,804.31",EAGLE WOOD NEUROLOGICAL CARE,CARE ESTABLISHMENT,OPMH - Hunts & Fens,Older People Mental Health Fenland,Nursing Care
Cambridgeshire County Council,23-Mar-20,51301339500,"-1,790.27",DIMENSIONS (UK) LTD,CARE ESTABLISHMENT,LD - South Locality - Cost of Care,LD - South Cambs - Care,Domiciliary Care
Cambridgeshire County Council,12-Mar-20,51301331293,"-1,686.02",THERA EAST ANGLIA,CARE ESTABLISHMENT,LD - South Locality - Cost of Care,LD - South Cambs - Care,Domiciliary Care
Cambridgeshire County Council,12-Mar-20,51301331293,"-1,686.02",THERA EAST ANGLIA,CARE ESTABLISHMENT,LD - South Locality - Cost of Care,LD - South Cambs - Care,Domiciliary Care
Cambridgeshire County Council,12-Mar-20,51301331293,"-1,686.02",THERA EAST ANGLIA,CARE ESTABLISHMENT,LD - South Locality - Cost of Care,LD - South Cambs - Care,Domiciliary Care
Cambridgeshire County Council,12-Mar-20,51301331293,"-1,686.02",THERA EAST ANGLIA,CARE ESTABLISHMENT,LD - South Locality - Cost of Care,LD - South Cambs - Care,Domiciliary Care
Cambridgeshire County Council,12-Mar-20,51301331293,"-1,686.02",THERA EAST ANGLIA,CARE ESTABLISHMENT,LD - South Locality - Cost of Care,LD - South Cambs - Care,Domiciliary Care
Cambridgeshire County Council,12-Mar-20,51301331293,"-1,686.02",THERA EAST ANGLIA,CARE ESTABLISHMENT,LD - South Locality - Cost of Care,LD - South Cambs - Care,Domiciliary Care
Cambridgeshire County Council,12-Mar-20,51301331293,"-1,686.02",THERA EAST ANGLIA,CARE ESTABLISHMENT,LD - South Locality - Cost of Care,LD - South Cambs - Care,Domiciliary Care
Cambridgeshire County Council,12-Mar-20,51301331293,"-1,686.02",THERA EAST ANGLIA,CARE ESTABLISHMENT,LD - South Locality - Cost of Care,LD - South Cambs - Care,Domiciliary Care
Cambridgeshire County Council,12-Mar-20,51301331293,"-1,686.02",THERA EAST ANGLIA,CARE ESTABLISHMENT,LD - South Locality - Cost of Care,LD - South Cambs - Care,Domiciliary Care
Cambridgeshire County Council,12-Mar-20,51301331293,"-1,686.02",THERA EAST ANGLIA,CARE ESTABLISHMENT,LD - South Locality - Cost of Care,LD - South Cambs - Care,Domiciliary Care
Cambridgeshire County Council,12-Mar-20,51301331293,"-1,686.02",THERA EAST ANGLIA,CARE ESTABLISHMENT,LD - South Locality - Cost of Care,LD - South Cambs - Care,Domiciliary Care
Cambridgeshire County Council,12-Mar-20,51301331293,"-1,686.02",THERA EAST ANGLIA,CARE ESTABLISHMENT,LD - South Locality - Cost of Care,LD - South Cambs - Care,Domiciliary Care
Cambridgeshire County Council,12-Mar-20,51301331293,"-1,686.02",THERA EAST ANGLIA,CARE ESTABLISHMENT,LD - South Locality - Cost of Care,LD - South Cambs - Care,Domiciliary Care
Cambridgeshire County Council,12-Mar-20,51301331293,"-1,686.02",THERA EAST ANGLIA,CARE ESTABLISHMENT,LD - South Locality - Cost of Care,LD - South Cambs - Care,Domiciliary Care
Cambridgeshire County Council,12-Mar-20,51301331293,"-1,686.02",THERA EAST ANGLIA,CARE ESTABLISHMENT,LD - South Locality - Cost of Care,LD - South Cambs - Care,Domiciliary Care
Cambridgeshire County Council,12-Mar-20,51301331293,"-1,686.02",THERA EAST ANGLIA,CARE ESTABLISHMENT,LD - South Locality - Cost of Care,LD - South Cambs - Care,Domiciliary Care
Cambridgeshire County Council,12-Mar-20,51301331293,"-1,686.02",THERA EAST ANGLIA,CARE ESTABLISHMENT,LD - South Locality - Cost of Care,LD - South Cambs - Care,Domiciliary Care
Cambridgeshire County Council,12-Mar-20,51301331293,"-1,686.02",THERA EAST ANGLIA,CARE ESTABLISHMENT,LD - South Locality - Cost of Care,LD - South Cambs - Care,Domiciliary Care
Cambridgeshire County Council,12-Mar-20,51301331293,"-1,686.02",THERA EAST ANGLIA,CARE ESTABLISHMENT,LD - South Locality - Cost of Care,LD - South Cambs - Care,Domiciliary Care
Cambridgeshire County Council,12-Mar-20,51301331293,"-1,686.02",THERA EAST ANGLIA,CARE ESTABLISHMENT,LD - South Locality - Cost of Care,LD - South Cambs - Care,Domiciliary Care
Cambridgeshire County Council,12-Mar-20,51301331293,"-1,686.02",THERA EAST ANGLIA,CARE ESTABLISHMENT,LD - South Locality - Cost of Care,LD - South Cambs - Care,Domiciliary Care
Cambridgeshire County Council,12-Mar-20,51301331293,"-1,686.02",THERA EAST ANGLIA,CARE ESTABLISHMENT,LD - South Locality - Cost of Care,LD - South Cambs - Care,Domiciliary Care
Cambridgeshire County Council,12-Mar-20,51301331293,"-1,686.02",THERA EAST ANGLIA,CARE ESTABLISHMENT,LD - South Locality - Cost of Care,LD - South Cambs - Care,Domiciliary Care
Cambridgeshire County Council,12-Mar-20,51301331293,"-1,686.02",THERA EAST ANGLIA,CARE ESTABLISHMENT,LD - South Locality - Cost of Care,LD - South Cambs - Care,Domiciliary Care
Cambridgeshire County Council,12-Mar-20,51301331293,"-1,686.02",THERA EAST ANGLIA,CARE ESTABLISHMENT,LD - South Locality - Cost of Care,LD - South Cambs - Care,Domiciliary Care
Cambridgeshire County Council,12-Mar-20,51301331293,"-1,686.02",THERA EAST ANGLIA,CARE ESTABLISHMENT,LD - South Locality - Cost of Care,LD - South Cambs - Care,Domiciliary Care
Cambridgeshire County Council,27-Mar-20,51301282258,"-1,677.60",ARTHUR J GALLAGHER,TRADE SUPPLIER,Insurance,Insurance Section,Insurance Fund External
Cambridgeshire County Council,20-Mar-20,51301338309,"-1,665.30",AFFINITY TRUST,CARE ESTABLISHMENT,LD - Hunts Locality - Cost of Care,LD - Huntingdonshire - Special Needs,Domiciliary Care
Cambridgeshire County Council,20-Mar-20,51301338309,"-1,665.30",AFFINITY TRUST,CARE ESTABLISHMENT,LD - Hunts Locality - Cost of Care,LD - Huntingdonshire - Special Needs,Domiciliary Care
Cambridgeshire County Council,20-Mar-20,51301338309,"-1,665.30",AFFINITY TRUST,CARE ESTABLISHMENT,LD - Hunts Locality - Cost of Care,LD - Huntingdonshire - Special Needs,Domiciliary Care
Cambridgeshire County Council,20-Mar-20,51301338309,"-1,665.30",AFFINITY TRUST,CARE ESTABLISHMENT,LD - Hunts Locality - Cost of Care,LD - Huntingdonshire - Special Needs,Domiciliary Care
Cambridgeshire County Council,20-Mar-20,51301338309,"-1,665.30",AFFINITY TRUST,CARE ESTABLISHMENT,LD - Hunts Locality - Cost of Care,LD - Huntingdonshire - Special Needs,Domiciliary Care
Cambridgeshire County Council,20-Mar-20,51301338309,"-1,665.30",AFFINITY TRUST,CARE ESTABLISHMENT,LD - Hunts Locality - Cost of Care,LD - Huntingdonshire - Special Needs,Domiciliary Care
Cambridgeshire County Council,20-Mar-20,51301338309,"-1,665.30",AFFINITY TRUST,CARE ESTABLISHMENT,LD - Hunts Locality - Cost of Care,LD - Huntingdonshire - Special Needs,Domiciliary Care
Cambridgeshire County Council,20-Mar-20,51301338309,"-1,665.30",AFFINITY TRUST,CARE ESTABLISHMENT,LD - Hunts Locality - Cost of Care,LD - Huntingdonshire - Special Needs,Domiciliary Care
Cambridgeshire County Council,20-Mar-20,51301338309,"-1,665.30",AFFINITY TRUST,CARE ESTABLISHMENT,LD - Hunts Locality - Cost of Care,LD - Huntingdonshire - Special Needs,Domiciliary Care
Cambridgeshire County Council,20-Mar-20,51301338309,"-1,665.30",AFFINITY TRUST,CARE ESTABLISHMENT,LD - Hunts Locality - Cost of Care,LD - Huntingdonshire - Special Needs,Domiciliary Care
Cambridgeshire County Council,20-Mar-20,51301338309,"-1,665.30",AFFINITY TRUST,CARE ESTABLISHMENT,LD - Hunts Locality - Cost of Care,LD - Huntingdonshire - Special Needs,Domiciliary Care
Cambridgeshire County Council,20-Mar-20,51301338309,"-1,665.30",AFFINITY TRUST,CARE ESTABLISHMENT,LD - Hunts Locality - Cost of Care,LD - Huntingdonshire - Special Needs,Domiciliary Care
Cambridgeshire County Council,20-Mar-20,51301338309,"-1,665.30",AFFINITY TRUST,CARE ESTABLISHMENT,LD - Hunts Locality - Cost of Care,LD - Huntingdonshire - Special Needs,Domiciliary Care
Cambridgeshire County Council,20-Mar-20,51301338309,"-1,665.30",AFFINITY TRUST,CARE ESTABLISHMENT,LD - Hunts Locality - Cost of Care,LD - Huntingdonshire - Special Needs,Domiciliary Care
Cambridgeshire County Council,20-Mar-20,51301338309,"-1,665.30",AFFINITY TRUST,CARE ESTABLISHMENT,LD - Hunts Locality - Cost of Care,LD - Huntingdonshire - Special Needs,Domiciliary Care
Cambridgeshire County Council,20-Mar-20,51301338309,"-1,665.30",AFFINITY TRUST,CARE ESTABLISHMENT,LD - Hunts Locality - Cost of Care,LD - Huntingdonshire - Special Needs,Domiciliary Care
Cambridgeshire County Council,20-Mar-20,51301338309,"-1,665.30",AFFINITY TRUST,CARE ESTABLISHMENT,LD - Hunts Locality - Cost of Care,LD - Huntingdonshire - Special Needs,Domiciliary Care
Cambridgeshire County Council,20-Mar-20,51301338309,"-1,665.30",AFFINITY TRUST,CARE ESTABLISHMENT,LD - Hunts Locality - Cost of Care,LD - Huntingdonshire - Special Needs,Domiciliary Care
Cambridgeshire County Council,20-Mar-20,51301338309,"-1,665.30",AFFINITY TRUST,CARE ESTABLISHMENT,LD - Hunts Locality - Cost of Care,LD - Huntingdonshire - Special Needs,Domiciliary Care
Cambridgeshire County Council,20-Mar-20,51301338309,"-1,665.30",AFFINITY TRUST,CARE ESTABLISHMENT,LD - Hunts Locality - Cost of Care,LD - Huntingdonshire - Special Needs,Domiciliary Care
Cambridgeshire County Council,20-Mar-20,51301338309,"-1,665.30",AFFINITY TRUST,CARE ESTABLISHMENT,LD - Hunts Locality - Cost of Care,LD - Huntingdonshire - Special Needs,Domiciliary Care
Cambridgeshire County Council,20-Mar-20,51301338309,"-1,665.30",AFFINITY TRUST,CARE ESTABLISHMENT,LD - Hunts Locality - Cost of Care,LD - Huntingdonshire - Special Needs,Domiciliary Care
Cambridgeshire County Council,20-Mar-20,51301338309,"-1,665.30",AFFINITY TRUST,CARE ESTABLISHMENT,LD - Hunts Locality - Cost of Care,LD - Huntingdonshire - Special Needs,Domiciliary Care
Cambridgeshire County Council,20-Mar-20,51301338309,"-1,665.30",AFFINITY TRUST,CARE ESTABLISHMENT,LD - Hunts Locality - Cost of Care,LD - Huntingdonshire - Special Needs,Domiciliary Care
Cambridgeshire County Council,20-Mar-20,51301338309,"-1,665.30",AFFINITY TRUST,CARE ESTABLISHMENT,LD - Hunts Locality - Cost of Care,LD - Huntingdonshire - Special Needs,Domiciliary Care
Cambridgeshire County Council,20-Mar-20,51301338309,"-1,665.30",AFFINITY TRUST,CARE ESTABLISHMENT,LD - Hunts Locality - Cost of Care,LD - Huntingdonshire - Special Needs,Domiciliary Care
Cambridgeshire County Council,04-Mar-20,51301328403,"-1,601.58",CARETECH COMMUNITY SERVICES LTD (161 WOOTTON RD),CARE ESTABLISHMENT,LD - Hunts Locality - Cost of Care,LD - Huntingdonshire - Care,Residential Care
Cambridgeshire County Council,04-Mar-20,51301328406,"-1,596.65",CARETECH COMMUNITY SERVICES,CARE ESTABLISHMENT,LD - South Locality - Cost of Care,LD - South Cambs - Care,Residential Care
Cambridgeshire County Council,04-Mar-20,51301328406,"-1,596.65",CARETECH COMMUNITY SERVICES,CARE ESTABLISHMENT,LD - South Locality - Cost of Care,LD - South Cambs - Care,Residential Care
Cambridgeshire County Council,04-Mar-20,51301328406,"-1,596.65",CARETECH COMMUNITY SERVICES,CARE ESTABLISHMENT,LD - South Locality - Cost of Care,LD - South Cambs - Care,Residential Care
Cambridgeshire County Council,04-Mar-20,51301328406,"-1,596.65",CARETECH COMMUNITY SERVICES,CARE ESTABLISHMENT,LD - South Locality - Cost of Care,LD - South Cambs - Care,Residential Care
Cambridgeshire County Council,04-Mar-20,51301328406,"-1,596.65",CARETECH COMMUNITY SERVICES,CARE ESTABLISHMENT,LD - South Locality - Cost of Care,LD - South Cambs - Care,Residential Care
Cambridgeshire County Council,04-Mar-20,51301328406,"-1,596.65",CARETECH COMMUNITY SERVICES,CARE ESTABLISHMENT,LD - South Locality - Cost of Care,LD - South Cambs - Care,Residential Care
Cambridgeshire County Council,04-Mar-20,51301328406,"-1,596.65",CARETECH COMMUNITY SERVICES,CARE ESTABLISHMENT,LD - South Locality - Cost of Care,LD - South Cambs - Care,Residential Care
Cambridgeshire County Council,04-Mar-20,51301328406,"-1,596.65",CARETECH COMMUNITY SERVICES,CARE ESTABLISHMENT,LD - South Locality - Cost of Care,LD - South Cambs - Care,Residential Care
Cambridgeshire County Council,04-Mar-20,51301328406,"-1,596.65",CARETECH COMMUNITY SERVICES,CARE ESTABLISHMENT,LD - South Locality - Cost of Care,LD - South Cambs - Care,Residential Care
Cambridgeshire County Council,04-Mar-20,51301328406,"-1,596.65",CARETECH COMMUNITY SERVICES,CARE ESTABLISHMENT,LD - South Locality - Cost of Care,LD - South Cambs - Care,Residential Care
Cambridgeshire County Council,04-Mar-20,51301328406,"-1,596.65",CARETECH COMMUNITY SERVICES,CARE ESTABLISHMENT,LD - South Locality - Cost of Care,LD - South Cambs - Care,Residential Care
Cambridgeshire County Council,04-Mar-20,51301328406,"-1,596.65",CARETECH COMMUNITY SERVICES,CARE ESTABLISHMENT,LD - South Locality - Cost of Care,LD - South Cambs - Care,Residential Care
Cambridgeshire County Council,04-Mar-20,51301328406,"-1,596.65",CARETECH COMMUNITY SERVICES,CARE ESTABLISHMENT,LD - South Locality - Cost of Care,LD - South Cambs - Care,Residential Care
Cambridgeshire County Council,04-Mar-20,51301328406,"-1,596.65",CARETECH COMMUNITY SERVICES,CARE ESTABLISHMENT,LD - South Locality - Cost of Care,LD - South Cambs - Care,Residential Care
Cambridgeshire County Council,04-Mar-20,51301328406,"-1,596.65",CARETECH COMMUNITY SERVICES,CARE ESTABLISHMENT,LD - South Locality - Cost of Care,LD - South Cambs - Care,Residential Care
Cambridgeshire County Council,04-Mar-20,51301328406,"-1,596.65",CARETECH COMMUNITY SERVICES,CARE ESTABLISHMENT,LD - South Locality - Cost of Care,LD - South Cambs - Care,Residential Care
Cambridgeshire County Council,04-Mar-20,51301328406,"-1,596.65",CARETECH COMMUNITY SERVICES,CARE ESTABLISHMENT,LD - South Locality - Cost of Care,LD - South Cambs - Care,Residential Care
Cambridgeshire County Council,04-Mar-20,51301328406,"-1,596.65",CARETECH COMMUNITY SERVICES,CARE ESTABLISHMENT,LD - South Locality - Cost of Care,LD - South Cambs - Care,Residential Care
Cambridgeshire County Council,04-Mar-20,51301328406,"-1,596.65",CARETECH COMMUNITY SERVICES,CARE ESTABLISHMENT,LD - South Locality - Cost of Care,LD - South Cambs - Care,Residential Care
Cambridgeshire County Council,04-Mar-20,51301328406,"-1,596.65",CARETECH COMMUNITY SERVICES,CARE ESTABLISHMENT,LD - South Locality - Cost of Care,LD - South Cambs - Care,Residential Care
Cambridgeshire County Council,04-Mar-20,51301328406,"-1,596.65",CARETECH COMMUNITY SERVICES,CARE ESTABLISHMENT,LD - South Locality - Cost of Care,LD - South Cambs - Care,Residential Care
Cambridgeshire County Council,04-Mar-20,51301328406,"-1,596.65",CARETECH COMMUNITY SERVICES,CARE ESTABLISHMENT,LD - South Locality - Cost of Care,LD - South Cambs - Care,Residential Care
Cambridgeshire County Council,04-Mar-20,51301328406,"-1,596.65",CARETECH COMMUNITY SERVICES,CARE ESTABLISHMENT,LD - South Locality - Cost of Care,LD - South Cambs - Care,Residential Care
Cambridgeshire County Council,04-Mar-20,51301328406,"-1,596.65",CARETECH COMMUNITY SERVICES,CARE ESTABLISHMENT,LD - South Locality - Cost of Care,LD - South Cambs - Care,Residential Care
Cambridgeshire County Council,04-Mar-20,51301328406,"-1,596.65",CARETECH COMMUNITY SERVICES,CARE ESTABLISHMENT,LD - South Locality - Cost of Care,LD - South Cambs - Care,Residential Care
Cambridgeshire County Council,04-Mar-20,51301328406,"-1,596.65",CARETECH COMMUNITY SERVICES,CARE ESTABLISHMENT,LD - South Locality - Cost of Care,LD - South Cambs - Care,Residential Care
Cambridgeshire County Council,04-Mar-20,51301328406,"-1,596.65",CARETECH COMMUNITY SERVICES,CARE ESTABLISHMENT,LD - South Locality - Cost of Care,LD - South Cambs - Care,Residential Care
Cambridgeshire County Council,04-Mar-20,51301328406,"-1,596.65",CARETECH COMMUNITY SERVICES,CARE ESTABLISHMENT,LD - South Locality - Cost of Care,LD - South Cambs - Care,Residential Care
Cambridgeshire County Council,04-Mar-20,51301328406,"-1,596.65",CARETECH COMMUNITY SERVICES,CARE ESTABLISHMENT,LD - South Locality - Cost of Care,LD - South Cambs - Care,Residential Care
Cambridgeshire County Council,04-Mar-20,51301328406,"-1,596.65",CARETECH COMMUNITY SERVICES,CARE ESTABLISHMENT,LD - South Locality - Cost of Care,LD - South Cambs - Care,Residential Care
Cambridgeshire County Council,04-Mar-20,51301328406,"-1,596.65",CARETECH COMMUNITY SERVICES,CARE ESTABLISHMENT,LD - South Locality - Cost of Care,LD - South Cambs - Care,Residential Care
Cambridgeshire County Council,04-Mar-20,51301328406,"-1,596.65",CARETECH COMMUNITY SERVICES,CARE ESTABLISHMENT,LD - South Locality - Cost of Care,LD - South Cambs - Care,Residential Care
Cambridgeshire County Council,04-Mar-20,51301328406,"-1,596.65",CARETECH COMMUNITY SERVICES,CARE ESTABLISHMENT,LD - South Locality - Cost of Care,LD - South Cambs - Care,Residential Care
Cambridgeshire County Council,04-Mar-20,51301328406,"-1,596.65",CARETECH COMMUNITY SERVICES,CARE ESTABLISHMENT,LD - South Locality - Cost of Care,LD - South Cambs - Care,Residential Care
Cambridgeshire County Council,04-Mar-20,51301328406,"-1,596.65",CARETECH COMMUNITY SERVICES,CARE ESTABLISHMENT,LD - South Locality - Cost of Care,LD - South Cambs - Care,Residential Care
Cambridgeshire County Council,04-Mar-20,51301328406,"-1,596.65",CARETECH COMMUNITY SERVICES,CARE ESTABLISHMENT,LD - South Locality - Cost of Care,LD - South Cambs - Care,Residential Care
Cambridgeshire County Council,04-Mar-20,51301328406,"-1,596.65",CARETECH COMMUNITY SERVICES,CARE ESTABLISHMENT,LD - South Locality - Cost of Care,LD - South Cambs - Care,Residential Care
Cambridgeshire County Council,04-Mar-20,51301328406,"-1,596.65",CARETECH COMMUNITY SERVICES,CARE ESTABLISHMENT,LD - South Locality - Cost of Care,LD - South Cambs - Care,Residential Care
Cambridgeshire County Council,04-Mar-20,51301328406,"-1,596.65",CARETECH COMMUNITY SERVICES,CARE ESTABLISHMENT,LD - South Locality - Cost of Care,LD - South Cambs - Care,Residential Care
Cambridgeshire County Council,04-Mar-20,51301328406,"-1,596.65",CARETECH COMMUNITY SERVICES,CARE ESTABLISHMENT,LD - South Locality - Cost of Care,LD - South Cambs - Care,Residential Care
Cambridgeshire County Council,04-Mar-20,51301328406,"-1,596.65",CARETECH COMMUNITY SERVICES,CARE ESTABLISHMENT,LD - South Locality - Cost of Care,LD - South Cambs - Care,Residential Care
Cambridgeshire County Council,04-Mar-20,51301328406,"-1,596.65",CARETECH COMMUNITY SERVICES,CARE ESTABLISHMENT,LD - South Locality - Cost of Care,LD - South Cambs - Care,Residential Care
Cambridgeshire County Council,04-Mar-20,51301328406,"-1,596.65",CARETECH COMMUNITY SERVICES,CARE ESTABLISHMENT,LD - South Locality - Cost of Care,LD - South Cambs - Care,Residential Care
Cambridgeshire County Council,04-Mar-20,51301328406,"-1,596.65",CARETECH COMMUNITY SERVICES,CARE ESTABLISHMENT,LD - South Locality - Cost of Care,LD - South Cambs - Care,Residential Care
Cambridgeshire County Council,04-Mar-20,51301328406,"-1,596.65",CARETECH COMMUNITY SERVICES,CARE ESTABLISHMENT,LD - South Locality - Cost of Care,LD - South Cambs - Care,Residential Care
Cambridgeshire County Council,04-Mar-20,51301328406,"-1,596.65",CARETECH COMMUNITY SERVICES,CARE ESTABLISHMENT,LD - South Locality - Cost of Care,LD - South Cambs - Care,Residential Care
Cambridgeshire County Council,04-Mar-20,51301328406,"-1,596.65",CARETECH COMMUNITY SERVICES,CARE ESTABLISHMENT,LD - South Locality - Cost of Care,LD - South Cambs - Care,Residential Care
Cambridgeshire County Council,20-Mar-20,51301338313,"-1,538.16",DIMENSIONS (UK) LTD,CARE ESTABLISHMENT,LD - South Locality - Cost of Care,LD - South Cambs - Care,Supported Living
Cambridgeshire County Council,20-Mar-20,51301338313,"-1,538.16",DIMENSIONS (UK) LTD,CARE ESTABLISHMENT,LD - South Locality - Cost of Care,LD - South Cambs - Care,Supported Living
Cambridgeshire County Council,20-Mar-20,51301338313,"-1,538.16",DIMENSIONS (UK) LTD,CARE ESTABLISHMENT,LD - South Locality - Cost of Care,LD - South Cambs - Care,Supported Living
Cambridgeshire County Council,20-Mar-20,51301338313,"-1,538.16",DIMENSIONS (UK) LTD,CARE ESTABLISHMENT,LD - South Locality - Cost of Care,LD - South Cambs - Care,Supported Living
Cambridgeshire County Council,20-Mar-20,51301338313,"-1,538.16",DIMENSIONS (UK) LTD,CARE ESTABLISHMENT,LD - South Locality - Cost of Care,LD - South Cambs - Care,Supported Living
Cambridgeshire County Council,20-Mar-20,51301338313,"-1,538.16",DIMENSIONS (UK) LTD,CARE ESTABLISHMENT,LD - South Locality - Cost of Care,LD - South Cambs - Care,Supported Living
Cambridgeshire County Council,20-Mar-20,51301338313,"-1,538.16",DIMENSIONS (UK) LTD,CARE ESTABLISHMENT,LD - South Locality - Cost of Care,LD - South Cambs - Care,Supported Living
Cambridgeshire County Council,20-Mar-20,51301338313,"-1,538.16",DIMENSIONS (UK) LTD,CARE ESTABLISHMENT,LD - South Locality - Cost of Care,LD - South Cambs - Care,Supported Living
Cambridgeshire County Council,20-Mar-20,51301338313,"-1,538.16",DIMENSIONS (UK) LTD,CARE ESTABLISHMENT,LD - South Locality - Cost of Care,LD - South Cambs - Care,Supported Living
Cambridgeshire County Council,20-Mar-20,51301338313,"-1,538.16",DIMENSIONS (UK) LTD,CARE ESTABLISHMENT,LD - South Locality - Cost of Care,LD - South Cambs - Care,Supported Living
Cambridgeshire County Council,20-Mar-20,51301338313,"-1,538.16",DIMENSIONS (UK) LTD,CARE ESTABLISHMENT,LD - South Locality - Cost of Care,LD - South Cambs - Care,Supported Living
Cambridgeshire County Council,20-Mar-20,51301338313,"-1,538.16",DIMENSIONS (UK) LTD,CARE ESTABLISHMENT,LD - South Locality - Cost of Care,LD - South Cambs - Care,Supported Living
Cambridgeshire County Council,20-Mar-20,51301338313,"-1,538.16",DIMENSIONS (UK) LTD,CARE ESTABLISHMENT,LD - South Locality - Cost of Care,LD - South Cambs - Care,Supported Living
Cambridgeshire County Council,20-Mar-20,51301338313,"-1,538.16",DIMENSIONS (UK) LTD,CARE ESTABLISHMENT,LD - South Locality - Cost of Care,LD - South Cambs - Care,Supported Living
Cambridgeshire County Council,20-Mar-20,51301338313,"-1,538.16",DIMENSIONS (UK) LTD,CARE ESTABLISHMENT,LD - South Locality - Cost of Care,LD - South Cambs - Care,Supported Living
Cambridgeshire County Council,20-Mar-20,51301338313,"-1,538.16",DIMENSIONS (UK) LTD,CARE ESTABLISHMENT,LD - South Locality - Cost of Care,LD - South Cambs - Care,Supported Living
Cambridgeshire County Council,20-Mar-20,51301338313,"-1,538.16",DIMENSIONS (UK) LTD,CARE ESTABLISHMENT,LD - South Locality - Cost of Care,LD - South Cambs - Care,Supported Living
Cambridgeshire County Council,20-Mar-20,51301338313,"-1,538.16",DIMENSIONS (UK) LTD,CARE ESTABLISHMENT,LD - South Locality - Cost of Care,LD - South Cambs - Care,Supported Living
Cambridgeshire County Council,20-Mar-20,51301338313,"-1,538.16",DIMENSIONS (UK) LTD,CARE ESTABLISHMENT,LD - South Locality - Cost of Care,LD - South Cambs - Care,Supported Living
Cambridgeshire County Council,20-Mar-20,51301338313,"-1,538.16",DIMENSIONS (UK) LTD,CARE ESTABLISHMENT,LD - South Locality - Cost of Care,LD - South Cambs - Care,Supported Living
Cambridgeshire County Council,20-Mar-20,51301338313,"-1,538.16",DIMENSIONS (UK) LTD,CARE ESTABLISHMENT,LD - South Locality - Cost of Care,LD - South Cambs - Care,Supported Living
Cambridgeshire County Council,20-Mar-20,51301338313,"-1,538.16",DIMENSIONS (UK) LTD,CARE ESTABLISHMENT,LD - South Locality - Cost of Care,LD - South Cambs - Care,Supported Living
Cambridgeshire County Council,26-Mar-20,51301340566,"-1,525.45",EAST CAMBRIDGESHIRE DISTRICT COUNCIL,OTHER PUBLIC BODIES,Corporate Offices,CO Jasmine House,Business rates
Cambridgeshire County Council,04-Mar-20,51301328404,"-1,510.70",BROAD OAKS VCT LTD,CARE ESTABLISHMENT,LD - Fenland Locality - Cost of Care,LD - Fenland  - Special Needs,Residential Care
Cambridgeshire County Council,04-Mar-20,51301328404,"-1,510.70",BROAD OAKS VCT LTD,CARE ESTABLISHMENT,LD - Fenland Locality - Cost of Care,LD - Fenland  - Special Needs,Residential Care
Cambridgeshire County Council,04-Mar-20,51301328404,"-1,510.70",BROAD OAKS VCT LTD,CARE ESTABLISHMENT,LD - Fenland Locality - Cost of Care,LD - Fenland  - Special Needs,Residential Care
Cambridgeshire County Council,04-Mar-20,51301328404,"-1,510.70",BROAD OAKS VCT LTD,CARE ESTABLISHMENT,LD - Fenland Locality - Cost of Care,LD - Fenland  - Special Needs,Residential Care
Cambridgeshire County Council,04-Mar-20,51301328404,"-1,510.70",BROAD OAKS VCT LTD,CARE ESTABLISHMENT,LD - Fenland Locality - Cost of Care,LD - Fenland  - Special Needs,Residential Care
Cambridgeshire County Council,04-Mar-20,51301328404,"-1,510.70",BROAD OAKS VCT LTD,CARE ESTABLISHMENT,LD - Fenland Locality - Cost of Care,LD - Fenland  - Special Needs,Residential Care
Cambridgeshire County Council,04-Mar-20,51301328404,"-1,510.70",BROAD OAKS VCT LTD,CARE ESTABLISHMENT,LD - Fenland Locality - Cost of Care,LD - Fenland  - Special Needs,Residential Care
Cambridgeshire County Council,04-Mar-20,51301328404,"-1,510.70",BROAD OAKS VCT LTD,CARE ESTABLISHMENT,LD - Fenland Locality - Cost of Care,LD - Fenland  - Special Needs,Residential Care
Cambridgeshire County Council,04-Mar-20,51301328404,"-1,510.70",BROAD OAKS VCT LTD,CARE ESTABLISHMENT,LD - Fenland Locality - Cost of Care,LD - Fenland  - Special Needs,Residential Care
Cambridgeshire County Council,04-Mar-20,51301328404,"-1,510.70",BROAD OAKS VCT LTD,CARE ESTABLISHMENT,LD - Fenland Locality - Cost of Care,LD - Fenland  - Special Needs,Residential Care
Cambridgeshire County Council,04-Mar-20,51301328404,"-1,510.70",BROAD OAKS VCT LTD,CARE ESTABLISHMENT,LD - Fenland Locality - Cost of Care,LD - Fenland  - Special Needs,Residential Care
Cambridgeshire County Council,04-Mar-20,51301328404,"-1,510.70",BROAD OAKS VCT LTD,CARE ESTABLISHMENT,LD - Fenland Locality - Cost of Care,LD - Fenland  - Special Needs,Residential Care
Cambridgeshire County Council,04-Mar-20,51301328404,"-1,510.70",BROAD OAKS VCT LTD,CARE ESTABLISHMENT,LD - Fenland Locality - Cost of Care,LD - Fenland  - Special Needs,Residential Care
Cambridgeshire County Council,04-Mar-20,51301328404,"-1,510.70",BROAD OAKS VCT LTD,CARE ESTABLISHMENT,LD - Fenland Locality - Cost of Care,LD - Fenland  - Special Needs,Residential Care
Cambridgeshire County Council,04-Mar-20,51301328404,"-1,510.70",BROAD OAKS VCT LTD,CARE ESTABLISHMENT,LD - Fenland Locality - Cost of Care,LD - Fenland  - Special Needs,Residential Care
Cambridgeshire County Council,04-Mar-20,51301328404,"-1,510.70",BROAD OAKS VCT LTD,CARE ESTABLISHMENT,LD - Fenland Locality - Cost of Care,LD - Fenland  - Special Needs,Residential Care
Cambridgeshire County Council,04-Mar-20,51301328404,"-1,510.70",BROAD OAKS VCT LTD,CARE ESTABLISHMENT,LD - Fenland Locality - Cost of Care,LD - Fenland  - Special Needs,Residential Care
Cambridgeshire County Council,04-Mar-20,51301328404,"-1,510.70",BROAD OAKS VCT LTD,CARE ESTABLISHMENT,LD - Fenland Locality - Cost of Care,LD - Fenland  - Special Needs,Residential Care
Cambridgeshire County Council,04-Mar-20,51301328404,"-1,510.70",BROAD OAKS VCT LTD,CARE ESTABLISHMENT,LD - Fenland Locality - Cost of Care,LD - Fenland  - Special Needs,Residential Care
Cambridgeshire County Council,04-Mar-20,51301328404,"-1,510.70",BROAD OAKS VCT LTD,CARE ESTABLISHMENT,LD - Fenland Locality - Cost of Care,LD - Fenland  - Special Needs,Residential Care
Cambridgeshire County Council,04-Mar-20,51301328404,"-1,510.70",BROAD OAKS VCT LTD,CARE ESTABLISHMENT,LD - Fenland Locality - Cost of Care,LD - Fenland  - Special Needs,Residential Care
Cambridgeshire County Council,04-Mar-20,51301328404,"-1,510.70",BROAD OAKS VCT LTD,CARE ESTABLISHMENT,LD - Fenland Locality - Cost of Care,LD - Fenland  - Special Needs,Residential Care
Cambridgeshire County Council,04-Mar-20,51301328404,"-1,510.70",BROAD OAKS VCT LTD,CARE ESTABLISHMENT,LD - Fenland Locality - Cost of Care,LD - Fenland  - Special Needs,Residential Care
Cambridgeshire County Council,04-Mar-20,51301328404,"-1,510.70",BROAD OAKS VCT LTD,CARE ESTABLISHMENT,LD - Fenland Locality - Cost of Care,LD - Fenland  - Special Needs,Residential Care
Cambridgeshire County Council,04-Mar-20,51301328404,"-1,510.70",BROAD OAKS VCT LTD,CARE ESTABLISHMENT,LD - Fenland Locality - Cost of Care,LD - Fenland  - Special Needs,Residential Care
Cambridgeshire County Council,04-Mar-20,51301328404,"-1,510.70",BROAD OAKS VCT LTD,CARE ESTABLISHMENT,LD - Fenland Locality - Cost of Care,LD - Fenland  - Special Needs,Residential Care
Cambridgeshire County Council,04-Mar-20,51301328404,"-1,510.70",BROAD OAKS VCT LTD,CARE ESTABLISHMENT,LD - Fenland Locality - Cost of Care,LD - Fenland  - Special Needs,Residential Care
Cambridgeshire County Council,04-Mar-20,51301328404,"-1,510.70",BROAD OAKS VCT LTD,CARE ESTABLISHMENT,LD - Fenland Locality - Cost of Care,LD - Fenland  - Special Needs,Residential Care
Cambridgeshire County Council,04-Mar-20,51301328404,"-1,510.70",BROAD OAKS VCT LTD,CARE ESTABLISHMENT,LD - Fenland Locality - Cost of Care,LD - Fenland  - Special Needs,Residential Care
Cambridgeshire County Council,04-Mar-20,51301328404,"-1,510.70",BROAD OAKS VCT LTD,CARE ESTABLISHMENT,LD - Fenland Locality - Cost of Care,LD - Fenland  - Special Needs,Residential Care
Cambridgeshire County Council,04-Mar-20,51301328404,"-1,510.70",BROAD OAKS VCT LTD,CARE ESTABLISHMENT,LD - Fenland Locality - Cost of Care,LD - Fenland  - Special Needs,Residential Care
Cambridgeshire County Council,04-Mar-20,51301328404,"-1,510.70",BROAD OAKS VCT LTD,CARE ESTABLISHMENT,LD - Fenland Locality - Cost of Care,LD - Fenland  - Special Needs,Residential Care
Cambridgeshire County Council,04-Mar-20,51301328404,"-1,510.70",BROAD OAKS VCT LTD,CARE ESTABLISHMENT,LD - Fenland Locality - Cost of Care,LD - Fenland  - Special Needs,Residential Care
Cambridgeshire County Council,04-Mar-20,51301328404,"-1,510.70",BROAD OAKS VCT LTD,CARE ESTABLISHMENT,LD - Fenland Locality - Cost of Care,LD - Fenland  - Special Needs,Residential Care
Cambridgeshire County Council,04-Mar-20,51301328404,"-1,510.70",BROAD OAKS VCT LTD,CARE ESTABLISHMENT,LD - Fenland Locality - Cost of Care,LD - Fenland  - Special Needs,Residential Care
Cambridgeshire County Council,04-Mar-20,51301328404,"-1,510.70",BROAD OAKS VCT LTD,CARE ESTABLISHMENT,LD - Fenland Locality - Cost of Care,LD - Fenland  - Special Needs,Residential Care
Cambridgeshire County Council,04-Mar-20,51301328404,"-1,510.70",BROAD OAKS VCT LTD,CARE ESTABLISHMENT,LD - Fenland Locality - Cost of Care,LD - Fenland  - Special Needs,Residential Care
Cambridgeshire County Council,04-Mar-20,51301328404,"-1,510.70",BROAD OAKS VCT LTD,CARE ESTABLISHMENT,LD - Fenland Locality - Cost of Care,LD - Fenland  - Special Needs,Residential Care
Cambridgeshire County Council,04-Mar-20,51301328404,"-1,510.70",BROAD OAKS VCT LTD,CARE ESTABLISHMENT,LD - Fenland Locality - Cost of Care,LD - Fenland  - Special Needs,Residential Care
Cambridgeshire County Council,04-Mar-20,51301328404,"-1,510.70",BROAD OAKS VCT LTD,CARE ESTABLISHMENT,LD - Fenland Locality - Cost of Care,LD - Fenland  - Special Needs,Residential Care
Cambridgeshire County Council,04-Mar-20,51301328404,"-1,510.70",BROAD OAKS VCT LTD,CARE ESTABLISHMENT,LD - Fenland Locality - Cost of Care,LD - Fenland  - Special Needs,Residential Care
Cambridgeshire County Council,04-Mar-20,51301328404,"-1,510.70",BROAD OAKS VCT LTD,CARE ESTABLISHMENT,LD - Fenland Locality - Cost of Care,LD - Fenland  - Special Needs,Residential Care
Cambridgeshire County Council,04-Mar-20,51301328404,"-1,510.70",BROAD OAKS VCT LTD,CARE ESTABLISHMENT,LD - Fenland Locality - Cost of Care,LD - Fenland  - Special Needs,Residential Care
Cambridgeshire County Council,04-Mar-20,51301328404,"-1,510.70",BROAD OAKS VCT LTD,CARE ESTABLISHMENT,LD - Fenland Locality - Cost of Care,LD - Fenland  - Special Needs,Residential Care
Cambridgeshire County Council,04-Mar-20,51301328404,"-1,510.70",BROAD OAKS VCT LTD,CARE ESTABLISHMENT,LD - Fenland Locality - Cost of Care,LD - Fenland  - Special Needs,Residential Care
Cambridgeshire County Council,04-Mar-20,51301328404,"-1,510.70",BROAD OAKS VCT LTD,CARE ESTABLISHMENT,LD - Fenland Locality - Cost of Care,LD - Fenland  - Special Needs,Residential Care
Cambridgeshire County Council,04-Mar-20,51301328404,"-1,510.70",BROAD OAKS VCT LTD,CARE ESTABLISHMENT,LD - Fenland Locality - Cost of Care,LD - Fenland  - Special Needs,Residential Care
Cambridgeshire County Council,04-Mar-20,51301328404,"-1,510.70",BROAD OAKS VCT LTD,CARE ESTABLISHMENT,LD - Fenland Locality - Cost of Care,LD - Fenland  - Special Needs,Residential Care
Cambridgeshire County Council,04-Mar-20,51301328404,"-1,510.70",BROAD OAKS VCT LTD,CARE ESTABLISHMENT,LD - Fenland Locality - Cost of Care,LD - Fenland  - Special Needs,Residential Care
Cambridgeshire County Council,04-Mar-20,51301328404,"-1,510.70",BROAD OAKS VCT LTD,CARE ESTABLISHMENT,LD - Fenland Locality - Cost of Care,LD - Fenland  - Special Needs,Residential Care
Cambridgeshire County Council,04-Mar-20,51301328404,"-1,510.70",BROAD OAKS VCT LTD,CARE ESTABLISHMENT,LD - Fenland Locality - Cost of Care,LD - Fenland  - Special Needs,Residential Care
Cambridgeshire County Council,04-Mar-20,51301328405,"-1,510.68",BROAD OAKS VCT LTD,CARE ESTABLISHMENT,LD - Fenland Locality - Cost of Care,LD - Fenland  - Special Needs,Residential Care
Cambridgeshire County Council,04-Mar-20,51301328405,"-1,510.68",BROAD OAKS VCT LTD,CARE ESTABLISHMENT,LD - Fenland Locality - Cost of Care,LD - Fenland  - Special Needs,Residential Care
Cambridgeshire County Council,04-Mar-20,51301328405,"-1,510.68",BROAD OAKS VCT LTD,CARE ESTABLISHMENT,LD - Fenland Locality - Cost of Care,LD - Fenland  - Special Needs,Residential Care
Cambridgeshire County Council,04-Mar-20,51301328405,"-1,510.68",BROAD OAKS VCT LTD,CARE ESTABLISHMENT,LD - Fenland Locality - Cost of Care,LD - Fenland  - Special Needs,Residential Care
Cambridgeshire County Council,04-Mar-20,51301328405,"-1,510.68",BROAD OAKS VCT LTD,CARE ESTABLISHMENT,LD - Fenland Locality - Cost of Care,LD - Fenland  - Special Needs,Residential Care
Cambridgeshire County Council,04-Mar-20,51301328405,"-1,510.68",BROAD OAKS VCT LTD,CARE ESTABLISHMENT,LD - Fenland Locality - Cost of Care,LD - Fenland  - Special Needs,Residential Care
Cambridgeshire County Council,04-Mar-20,51301328405,"-1,510.68",BROAD OAKS VCT LTD,CARE ESTABLISHMENT,LD - Fenland Locality - Cost of Care,LD - Fenland  - Special Needs,Residential Care
Cambridgeshire County Council,04-Mar-20,51301328405,"-1,510.68",BROAD OAKS VCT LTD,CARE ESTABLISHMENT,LD - Fenland Locality - Cost of Care,LD - Fenland  - Special Needs,Residential Care
Cambridgeshire County Council,04-Mar-20,51301328405,"-1,510.68",BROAD OAKS VCT LTD,CARE ESTABLISHMENT,LD - Fenland Locality - Cost of Care,LD - Fenland  - Special Needs,Residential Care
Cambridgeshire County Council,04-Mar-20,51301328405,"-1,510.68",BROAD OAKS VCT LTD,CARE ESTABLISHMENT,LD - Fenland Locality - Cost of Care,LD - Fenland  - Special Needs,Residential Care
Cambridgeshire County Council,04-Mar-20,51301328405,"-1,510.68",BROAD OAKS VCT LTD,CARE ESTABLISHMENT,LD - Fenland Locality - Cost of Care,LD - Fenland  - Special Needs,Residential Care
Cambridgeshire County Council,04-Mar-20,51301328405,"-1,510.68",BROAD OAKS VCT LTD,CARE ESTABLISHMENT,LD - Fenland Locality - Cost of Care,LD - Fenland  - Special Needs,Residential Care
Cambridgeshire County Council,04-Mar-20,51301328405,"-1,510.68",BROAD OAKS VCT LTD,CARE ESTABLISHMENT,LD - Fenland Locality - Cost of Care,LD - Fenland  - Special Needs,Residential Care
Cambridgeshire County Council,04-Mar-20,51301328405,"-1,510.68",BROAD OAKS VCT LTD,CARE ESTABLISHMENT,LD - Fenland Locality - Cost of Care,LD - Fenland  - Special Needs,Residential Care
Cambridgeshire County Council,04-Mar-20,51301328405,"-1,510.68",BROAD OAKS VCT LTD,CARE ESTABLISHMENT,LD - Fenland Locality - Cost of Care,LD - Fenland  - Special Needs,Residential Care
Cambridgeshire County Council,04-Mar-20,51301328405,"-1,510.68",BROAD OAKS VCT LTD,CARE ESTABLISHMENT,LD - Fenland Locality - Cost of Care,LD - Fenland  - Special Needs,Residential Care
Cambridgeshire County Council,04-Mar-20,51301328405,"-1,510.68",BROAD OAKS VCT LTD,CARE ESTABLISHMENT,LD - Fenland Locality - Cost of Care,LD - Fenland  - Special Needs,Residential Care
Cambridgeshire County Council,04-Mar-20,51301328405,"-1,510.68",BROAD OAKS VCT LTD,CARE ESTABLISHMENT,LD - Fenland Locality - Cost of Care,LD - Fenland  - Special Needs,Residential Care
Cambridgeshire County Council,04-Mar-20,51301328405,"-1,510.68",BROAD OAKS VCT LTD,CARE ESTABLISHMENT,LD - Fenland Locality - Cost of Care,LD - Fenland  - Special Needs,Residential Care
Cambridgeshire County Council,04-Mar-20,51301328405,"-1,510.68",BROAD OAKS VCT LTD,CARE ESTABLISHMENT,LD - Fenland Locality - Cost of Care,LD - Fenland  - Special Needs,Residential Care
Cambridgeshire County Council,04-Mar-20,51301328405,"-1,510.68",BROAD OAKS VCT LTD,CARE ESTABLISHMENT,LD - Fenland Locality - Cost of Care,LD - Fenland  - Special Needs,Residential Care
Cambridgeshire County Council,04-Mar-20,51301328405,"-1,510.68",BROAD OAKS VCT LTD,CARE ESTABLISHMENT,LD - Fenland Locality - Cost of Care,LD - Fenland  - Special Needs,Residential Care
Cambridgeshire County Council,04-Mar-20,51301328405,"-1,510.68",BROAD OAKS VCT LTD,CARE ESTABLISHMENT,LD - Fenland Locality - Cost of Care,LD - Fenland  - Special Needs,Residential Care
Cambridgeshire County Council,04-Mar-20,51301328405,"-1,510.68",BROAD OAKS VCT LTD,CARE ESTABLISHMENT,LD - Fenland Locality - Cost of Care,LD - Fenland  - Special Needs,Residential Care
Cambridgeshire County Council,04-Mar-20,51301328405,"-1,510.68",BROAD OAKS VCT LTD,CARE ESTABLISHMENT,LD - Fenland Locality - Cost of Care,LD - Fenland  - Special Needs,Residential Care
Cambridgeshire County Council,04-Mar-20,51301328405,"-1,510.68",BROAD OAKS VCT LTD,CARE ESTABLISHMENT,LD - Fenland Locality - Cost of Care,LD - Fenland  - Special Needs,Residential Care
Cambridgeshire County Council,04-Mar-20,51301328405,"-1,510.68",BROAD OAKS VCT LTD,CARE ESTABLISHMENT,LD - Fenland Locality - Cost of Care,LD - Fenland  - Special Needs,Residential Care
Cambridgeshire County Council,04-Mar-20,51301328405,"-1,510.68",BROAD OAKS VCT LTD,CARE ESTABLISHMENT,LD - Fenland Locality - Cost of Care,LD - Fenland  - Special Needs,Residential Care
Cambridgeshire County Council,04-Mar-20,51301328405,"-1,510.68",BROAD OAKS VCT LTD,CARE ESTABLISHMENT,LD - Fenland Locality - Cost of Care,LD - Fenland  - Special Needs,Residential Care
Cambridgeshire County Council,04-Mar-20,51301328405,"-1,510.68",BROAD OAKS VCT LTD,CARE ESTABLISHMENT,LD - Fenland Locality - Cost of Care,LD - Fenland  - Special Needs,Residential Care
Cambridgeshire County Council,04-Mar-20,51301328405,"-1,510.68",BROAD OAKS VCT LTD,CARE ESTABLISHMENT,LD - Fenland Locality - Cost of Care,LD - Fenland  - Special Needs,Residential Care
Cambridgeshire County Council,04-Mar-20,51301328405,"-1,510.68",BROAD OAKS VCT LTD,CARE ESTABLISHMENT,LD - Fenland Locality - Cost of Care,LD - Fenland  - Special Needs,Residential Care
Cambridgeshire County Council,04-Mar-20,51301328405,"-1,510.68",BROAD OAKS VCT LTD,CARE ESTABLISHMENT,LD - Fenland Locality - Cost of Care,LD - Fenland  - Special Needs,Residential Care
Cambridgeshire County Council,04-Mar-20,51301328405,"-1,510.68",BROAD OAKS VCT LTD,CARE ESTABLISHMENT,LD - Fenland Locality - Cost of Care,LD - Fenland  - Special Needs,Residential Care
Cambridgeshire County Council,04-Mar-20,51301328405,"-1,510.68",BROAD OAKS VCT LTD,CARE ESTABLISHMENT,LD - Fenland Locality - Cost of Care,LD - Fenland  - Special Needs,Residential Care
Cambridgeshire County Council,04-Mar-20,51301328405,"-1,510.68",BROAD OAKS VCT LTD,CARE ESTABLISHMENT,LD - Fenland Locality - Cost of Care,LD - Fenland  - Special Needs,Residential Care
Cambridgeshire County Council,04-Mar-20,51301328405,"-1,510.68",BROAD OAKS VCT LTD,CARE ESTABLISHMENT,LD - Fenland Locality - Cost of Care,LD - Fenland  - Special Needs,Residential Care
Cambridgeshire County Council,04-Mar-20,51301328405,"-1,510.68",BROAD OAKS VCT LTD,CARE ESTABLISHMENT,LD - Fenland Locality - Cost of Care,LD - Fenland  - Special Needs,Residential Care
Cambridgeshire County Council,04-Mar-20,51301328405,"-1,510.68",BROAD OAKS VCT LTD,CARE ESTABLISHMENT,LD - Fenland Locality - Cost of Care,LD - Fenland  - Special Needs,Residential Care
Cambridgeshire County Council,04-Mar-20,51301328405,"-1,510.68",BROAD OAKS VCT LTD,CARE ESTABLISHMENT,LD - Fenland Locality - Cost of Care,LD - Fenland  - Special Needs,Residential Care
Cambridgeshire County Council,04-Mar-20,51301328405,"-1,510.68",BROAD OAKS VCT LTD,CARE ESTABLISHMENT,LD - Fenland Locality - Cost of Care,LD - Fenland  - Special Needs,Residential Care
Cambridgeshire County Council,04-Mar-20,51301328405,"-1,510.68",BROAD OAKS VCT LTD,CARE ESTABLISHMENT,LD - Fenland Locality - Cost of Care,LD - Fenland  - Special Needs,Residential Care
Cambridgeshire County Council,04-Mar-20,51301328405,"-1,510.68",BROAD OAKS VCT LTD,CARE ESTABLISHMENT,LD - Fenland Locality - Cost of Care,LD - Fenland  - Special Needs,Residential Care
Cambridgeshire County Council,04-Mar-20,51301328405,"-1,510.68",BROAD OAKS VCT LTD,CARE ESTABLISHMENT,LD - Fenland Locality - Cost of Care,LD - Fenland  - Special Needs,Residential Care
Cambridgeshire County Council,04-Mar-20,51301328405,"-1,510.68",BROAD OAKS VCT LTD,CARE ESTABLISHMENT,LD - Fenland Locality - Cost of Care,LD - Fenland  - Special Needs,Residential Care
Cambridgeshire County Council,04-Mar-20,51301328405,"-1,510.68",BROAD OAKS VCT LTD,CARE ESTABLISHMENT,LD - Fenland Locality - Cost of Care,LD - Fenland  - Special Needs,Residential Care
Cambridgeshire County Council,04-Mar-20,51301328405,"-1,510.68",BROAD OAKS VCT LTD,CARE ESTABLISHMENT,LD - Fenland Locality - Cost of Care,LD - Fenland  - Special Needs,Residential Care
Cambridgeshire County Council,04-Mar-20,51301328405,"-1,510.68",BROAD OAKS VCT LTD,CARE ESTABLISHMENT,LD - Fenland Locality - Cost of Care,LD - Fenland  - Special Needs,Residential Care
Cambridgeshire County Council,04-Mar-20,51301328405,"-1,510.68",BROAD OAKS VCT LTD,CARE ESTABLISHMENT,LD - Fenland Locality - Cost of Care,LD - Fenland  - Special Needs,Residential Care
Cambridgeshire County Council,04-Mar-20,51301328405,"-1,510.68",BROAD OAKS VCT LTD,CARE ESTABLISHMENT,LD - Fenland Locality - Cost of Care,LD - Fenland  - Special Needs,Residential Care
Cambridgeshire County Council,04-Mar-20,51301328405,"-1,510.68",BROAD OAKS VCT LTD,CARE ESTABLISHMENT,LD - Fenland Locality - Cost of Care,LD - Fenland  - Special Needs,Residential Care
Cambridgeshire County Council,19-Mar-20,51301336513,"-1,501.00",CONQUEST CARE HOMES PETERBOROUGH,CARE ESTABLISHMENT,Physical Disablity - Cost of Care,Countywide PD Service - Care,Residential Care
Cambridgeshire County Council,19-Mar-20,51301336513,"-1,501.00",CONQUEST CARE HOMES PETERBOROUGH,CARE ESTABLISHMENT,Physical Disablity - Cost of Care,Countywide PD Service - Care,Residential Care
Cambridgeshire County Council,19-Mar-20,51301336513,"-1,501.00",CONQUEST CARE HOMES PETERBOROUGH,CARE ESTABLISHMENT,Physical Disablity - Cost of Care,Countywide PD Service - Care,Residential Care
Cambridgeshire County Council,19-Mar-20,51301336513,"-1,501.00",CONQUEST CARE HOMES PETERBOROUGH,CARE ESTABLISHMENT,Physical Disablity - Cost of Care,Countywide PD Service - Care,Residential Care
Cambridgeshire County Council,26-Mar-20,51301342818,"-1,498.77",AFFINITY TRUST,CARE ESTABLISHMENT,LD - Fenland Locality - Cost of Care,LD - Fenland  - Special Needs,Domiciliary Care
Cambridgeshire County Council,26-Mar-20,51301342818,"-1,498.77",AFFINITY TRUST,CARE ESTABLISHMENT,LD - Fenland Locality - Cost of Care,LD - Fenland  - Special Needs,Domiciliary Care
Cambridgeshire County Council,26-Mar-20,51301342818,"-1,498.77",AFFINITY TRUST,CARE ESTABLISHMENT,LD - Fenland Locality - Cost of Care,LD - Fenland  - Special Needs,Domiciliary Care
Cambridgeshire County Council,26-Mar-20,51301342818,"-1,498.77",AFFINITY TRUST,CARE ESTABLISHMENT,LD - Fenland Locality - Cost of Care,LD - Fenland  - Special Needs,Domiciliary Care
Cambridgeshire County Council,26-Mar-20,51301342818,"-1,498.77",AFFINITY TRUST,CARE ESTABLISHMENT,LD - Fenland Locality - Cost of Care,LD - Fenland  - Special Needs,Domiciliary Care
Cambridgeshire County Council,26-Mar-20,51301342818,"-1,498.77",AFFINITY TRUST,CARE ESTABLISHMENT,LD - Fenland Locality - Cost of Care,LD - Fenland  - Special Needs,Domiciliary Care
Cambridgeshire County Council,26-Mar-20,51301342818,"-1,498.77",AFFINITY TRUST,CARE ESTABLISHMENT,LD - Fenland Locality - Cost of Care,LD - Fenland  - Special Needs,Domiciliary Care
Cambridgeshire County Council,26-Mar-20,51301342818,"-1,498.77",AFFINITY TRUST,CARE ESTABLISHMENT,LD - Fenland Locality - Cost of Care,LD - Fenland  - Special Needs,Domiciliary Care
Cambridgeshire County Council,26-Mar-20,51301342818,"-1,498.77",AFFINITY TRUST,CARE ESTABLISHMENT,LD - Fenland Locality - Cost of Care,LD - Fenland  - Special Needs,Domiciliary Care
Cambridgeshire County Council,26-Mar-20,51301342818,"-1,498.77",AFFINITY TRUST,CARE ESTABLISHMENT,LD - Fenland Locality - Cost of Care,LD - Fenland  - Special Needs,Domiciliary Care
Cambridgeshire County Council,26-Mar-20,51301342818,"-1,498.77",AFFINITY TRUST,CARE ESTABLISHMENT,LD - Fenland Locality - Cost of Care,LD - Fenland  - Special Needs,Domiciliary Care
Cambridgeshire County Council,26-Mar-20,51301342818,"-1,498.77",AFFINITY TRUST,CARE ESTABLISHMENT,LD - Fenland Locality - Cost of Care,LD - Fenland  - Special Needs,Domiciliary Care
Cambridgeshire County Council,26-Mar-20,51301342818,"-1,498.77",AFFINITY TRUST,CARE ESTABLISHMENT,LD - Fenland Locality - Cost of Care,LD - Fenland  - Special Needs,Domiciliary Care
Cambridgeshire County Council,26-Mar-20,51301342818,"-1,498.77",AFFINITY TRUST,CARE ESTABLISHMENT,LD - Fenland Locality - Cost of Care,LD - Fenland  - Special Needs,Domiciliary Care
Cambridgeshire County Council,26-Mar-20,51301342818,"-1,498.77",AFFINITY TRUST,CARE ESTABLISHMENT,LD - Fenland Locality - Cost of Care,LD - Fenland  - Special Needs,Domiciliary Care
Cambridgeshire County Council,26-Mar-20,51301342818,"-1,498.77",AFFINITY TRUST,CARE ESTABLISHMENT,LD - Fenland Locality - Cost of Care,LD - Fenland  - Special Needs,Domiciliary Care
Cambridgeshire County Council,26-Mar-20,51301342818,"-1,498.77",AFFINITY TRUST,CARE ESTABLISHMENT,LD - Fenland Locality - Cost of Care,LD - Fenland  - Special Needs,Domiciliary Care
Cambridgeshire County Council,26-Mar-20,51301342818,"-1,498.77",AFFINITY TRUST,CARE ESTABLISHMENT,LD - Fenland Locality - Cost of Care,LD - Fenland  - Special Needs,Domiciliary Care
Cambridgeshire County Council,26-Mar-20,51301342818,"-1,498.77",AFFINITY TRUST,CARE ESTABLISHMENT,LD - Fenland Locality - Cost of Care,LD - Fenland  - Special Needs,Domiciliary Care
Cambridgeshire County Council,26-Mar-20,51301342818,"-1,498.77",AFFINITY TRUST,CARE ESTABLISHMENT,LD - Fenland Locality - Cost of Care,LD - Fenland  - Special Needs,Domiciliary Care
Cambridgeshire County Council,26-Mar-20,51301342818,"-1,498.77",AFFINITY TRUST,CARE ESTABLISHMENT,LD - Fenland Locality - Cost of Care,LD - Fenland  - Special Needs,Domiciliary Care
Cambridgeshire County Council,26-Mar-20,51301342818,"-1,498.77",AFFINITY TRUST,CARE ESTABLISHMENT,LD - Fenland Locality - Cost of Care,LD - Fenland  - Special Needs,Domiciliary Care
Cambridgeshire County Council,26-Mar-20,51301342818,"-1,498.77",AFFINITY TRUST,CARE ESTABLISHMENT,LD - Fenland Locality - Cost of Care,LD - Fenland  - Special Needs,Domiciliary Care
Cambridgeshire County Council,26-Mar-20,51301342818,"-1,498.77",AFFINITY TRUST,CARE ESTABLISHMENT,LD - Fenland Locality - Cost of Care,LD - Fenland  - Special Needs,Domiciliary Care
Cambridgeshire County Council,26-Mar-20,51301342818,"-1,498.77",AFFINITY TRUST,CARE ESTABLISHMENT,LD - Fenland Locality - Cost of Care,LD - Fenland  - Special Needs,Domiciliary Care
Cambridgeshire County Council,26-Mar-20,51301342818,"-1,498.77",AFFINITY TRUST,CARE ESTABLISHMENT,LD - Fenland Locality - Cost of Care,LD - Fenland  - Special Needs,Domiciliary Care
Cambridgeshire County Council,26-Mar-20,51301342818,"-1,498.77",AFFINITY TRUST,CARE ESTABLISHMENT,LD - Fenland Locality - Cost of Care,LD - Fenland  - Special Needs,Domiciliary Care
Cambridgeshire County Council,26-Mar-20,51301342818,"-1,498.77",AFFINITY TRUST,CARE ESTABLISHMENT,LD - Fenland Locality - Cost of Care,LD - Fenland  - Special Needs,Domiciliary Care
Cambridgeshire County Council,26-Mar-20,51301342818,"-1,498.77",AFFINITY TRUST,CARE ESTABLISHMENT,LD - Fenland Locality - Cost of Care,LD - Fenland  - Special Needs,Domiciliary Care
Cambridgeshire County Council,26-Mar-20,51301342818,"-1,498.77",AFFINITY TRUST,CARE ESTABLISHMENT,LD - Fenland Locality - Cost of Care,LD - Fenland  - Special Needs,Domiciliary Care
Cambridgeshire County Council,26-Mar-20,51301342818,"-1,498.77",AFFINITY TRUST,CARE ESTABLISHMENT,LD - Fenland Locality - Cost of Care,LD - Fenland  - Special Needs,Domiciliary Care
Cambridgeshire County Council,19-Mar-20,51301335386,"-1,434.44",ETHELDRED HOUSE,CARE ESTABLISHMENT,OP - City & South Locality - Cost of Care,Older People - City & South - Care,Nursing Care
Cambridgeshire County Council,19-Mar-20,51301335386,"-1,434.44",ETHELDRED HOUSE,CARE ESTABLISHMENT,OP - City & South Locality - Cost of Care,Older People - City & South - Care,Nursing Care
Cambridgeshire County Council,19-Mar-20,51301335386,"-1,434.44",ETHELDRED HOUSE,CARE ESTABLISHMENT,OP - City & South Locality - Cost of Care,Older People - City & South - Care,Nursing Care
Cambridgeshire County Council,19-Mar-20,51301335386,"-1,434.44",ETHELDRED HOUSE,CARE ESTABLISHMENT,OP - City & South Locality - Cost of Care,Older People - City & South - Care,Nursing Care
Cambridgeshire County Council,19-Mar-20,51301335386,"-1,434.44",ETHELDRED HOUSE,CARE ESTABLISHMENT,OP - City & South Locality - Cost of Care,Older People - City & South - Care,Nursing Care
Cambridgeshire County Council,19-Mar-20,51301336712,"-1,408.55",ALDERTON HOUSE,CARE ESTABLISHMENT,LD - Young Adults Team,LD - Young Adults - Care,Residential Care
Cambridgeshire County Council,19-Mar-20,51301336712,"-1,408.55",ALDERTON HOUSE,CARE ESTABLISHMENT,LD - Young Adults Team,LD - Young Adults - Care,Residential Care
Cambridgeshire County Council,19-Mar-20,51301336262,"-1,395.00",THE MARBROOK CENTRE,CARE ESTABLISHMENT,OPMH - Hunts & Fens,Older People Mental Health Fenland,Nursing Care
Cambridgeshire County Council,19-Mar-20,51301336262,"-1,395.00",THE MARBROOK CENTRE,CARE ESTABLISHMENT,OPMH - Hunts & Fens,Older People Mental Health Fenland,Nursing Care
Cambridgeshire County Council,19-Mar-20,51301336262,"-1,395.00",THE MARBROOK CENTRE,CARE ESTABLISHMENT,OPMH - Hunts & Fens,Older People Mental Health Fenland,Nursing Care
Cambridgeshire County Council,19-Mar-20,51301336262,"-1,395.00",THE MARBROOK CENTRE,CARE ESTABLISHMENT,OPMH - Hunts & Fens,Older People Mental Health Fenland,Nursing Care
Cambridgeshire County Council,19-Mar-20,51301336262,"-1,395.00",THE MARBROOK CENTRE,CARE ESTABLISHMENT,OPMH - Hunts & Fens,Older People Mental Health Fenland,Nursing Care
Cambridgeshire County Council,19-Mar-20,51301336262,"-1,395.00",THE MARBROOK CENTRE,CARE ESTABLISHMENT,OPMH - Hunts & Fens,Older People Mental Health Fenland,Nursing Care
Cambridgeshire County Council,19-Mar-20,51301336262,"-1,395.00",THE MARBROOK CENTRE,CARE ESTABLISHMENT,OPMH - Hunts & Fens,Older People Mental Health Fenland,Nursing Care
Cambridgeshire County Council,19-Mar-20,51301336262,"-1,395.00",THE MARBROOK CENTRE,CARE ESTABLISHMENT,OPMH - Hunts & Fens,Older People Mental Health Fenland,Nursing Care
Cambridgeshire County Council,19-Mar-20,51301336262,"-1,395.00",THE MARBROOK CENTRE,CARE ESTABLISHMENT,OPMH - Hunts & Fens,Older People Mental Health Fenland,Nursing Care
Cambridgeshire County Council,19-Mar-20,51301336262,"-1,395.00",THE MARBROOK CENTRE,CARE ESTABLISHMENT,OPMH - Hunts & Fens,Older People Mental Health Fenland,Nursing Care
Cambridgeshire County Council,19-Mar-20,51301336262,"-1,395.00",THE MARBROOK CENTRE,CARE ESTABLISHMENT,OPMH - Hunts & Fens,Older People Mental Health Fenland,Nursing Care
Cambridgeshire County Council,19-Mar-20,51301336262,"-1,395.00",THE MARBROOK CENTRE,CARE ESTABLISHMENT,OPMH - Hunts & Fens,Older People Mental Health Fenland,Nursing Care
Cambridgeshire County Council,19-Mar-20,51301336262,"-1,395.00",THE MARBROOK CENTRE,CARE ESTABLISHMENT,OPMH - Hunts & Fens,Older People Mental Health Fenland,Nursing Care
Cambridgeshire County Council,19-Mar-20,51301336262,"-1,395.00",THE MARBROOK CENTRE,CARE ESTABLISHMENT,OPMH - Hunts & Fens,Older People Mental Health Fenland,Nursing Care
Cambridgeshire County Council,19-Mar-20,51301336262,"-1,395.00",THE MARBROOK CENTRE,CARE ESTABLISHMENT,OPMH - Hunts & Fens,Older People Mental Health Fenland,Nursing Care
Cambridgeshire County Council,19-Mar-20,51301336262,"-1,395.00",THE MARBROOK CENTRE,CARE ESTABLISHMENT,OPMH - Hunts & Fens,Older People Mental Health Fenland,Nursing Care
Cambridgeshire County Council,26-Mar-20,51301342843,"-1,387.75",AFFINITY TRUST,CARE ESTABLISHMENT,LD - Fenland Locality - Cost of Care,LD - Fenland  - Special Needs,Domiciliary Care
Cambridgeshire County Council,26-Mar-20,51301342843,"-1,387.75",AFFINITY TRUST,CARE ESTABLISHMENT,LD - Fenland Locality - Cost of Care,LD - Fenland  - Special Needs,Domiciliary Care
Cambridgeshire County Council,26-Mar-20,51301342843,"-1,387.75",AFFINITY TRUST,CARE ESTABLISHMENT,LD - Fenland Locality - Cost of Care,LD - Fenland  - Special Needs,Domiciliary Care
Cambridgeshire County Council,26-Mar-20,51301342843,"-1,387.75",AFFINITY TRUST,CARE ESTABLISHMENT,LD - Fenland Locality - Cost of Care,LD - Fenland  - Special Needs,Domiciliary Care
Cambridgeshire County Council,26-Mar-20,51301342843,"-1,387.75",AFFINITY TRUST,CARE ESTABLISHMENT,LD - Fenland Locality - Cost of Care,LD - Fenland  - Special Needs,Domiciliary Care
Cambridgeshire County Council,26-Mar-20,51301342843,"-1,387.75",AFFINITY TRUST,CARE ESTABLISHMENT,LD - Fenland Locality - Cost of Care,LD - Fenland  - Special Needs,Domiciliary Care
Cambridgeshire County Council,26-Mar-20,51301342843,"-1,387.75",AFFINITY TRUST,CARE ESTABLISHMENT,LD - Fenland Locality - Cost of Care,LD - Fenland  - Special Needs,Domiciliary Care
Cambridgeshire County Council,26-Mar-20,51301342843,"-1,387.75",AFFINITY TRUST,CARE ESTABLISHMENT,LD - Fenland Locality - Cost of Care,LD - Fenland  - Special Needs,Domiciliary Care
Cambridgeshire County Council,26-Mar-20,51301342843,"-1,387.75",AFFINITY TRUST,CARE ESTABLISHMENT,LD - Fenland Locality - Cost of Care,LD - Fenland  - Special Needs,Domiciliary Care
Cambridgeshire County Council,26-Mar-20,51301342843,"-1,387.75",AFFINITY TRUST,CARE ESTABLISHMENT,LD - Fenland Locality - Cost of Care,LD - Fenland  - Special Needs,Domiciliary Care
Cambridgeshire County Council,26-Mar-20,51301342843,"-1,387.75",AFFINITY TRUST,CARE ESTABLISHMENT,LD - Fenland Locality - Cost of Care,LD - Fenland  - Special Needs,Domiciliary Care
Cambridgeshire County Council,26-Mar-20,51301342843,"-1,387.75",AFFINITY TRUST,CARE ESTABLISHMENT,LD - Fenland Locality - Cost of Care,LD - Fenland  - Special Needs,Domiciliary Care
Cambridgeshire County Council,26-Mar-20,51301342843,"-1,387.75",AFFINITY TRUST,CARE ESTABLISHMENT,LD - Fenland Locality - Cost of Care,LD - Fenland  - Special Needs,Domiciliary Care
Cambridgeshire County Council,26-Mar-20,51301342843,"-1,387.75",AFFINITY TRUST,CARE ESTABLISHMENT,LD - Fenland Locality - Cost of Care,LD - Fenland  - Special Needs,Domiciliary Care
Cambridgeshire County Council,26-Mar-20,51301342843,"-1,387.75",AFFINITY TRUST,CARE ESTABLISHMENT,LD - Fenland Locality - Cost of Care,LD - Fenland  - Special Needs,Domiciliary Care
Cambridgeshire County Council,26-Mar-20,51301342843,"-1,387.75",AFFINITY TRUST,CARE ESTABLISHMENT,LD - Fenland Locality - Cost of Care,LD - Fenland  - Special Needs,Domiciliary Care
Cambridgeshire County Council,26-Mar-20,51301342843,"-1,387.75",AFFINITY TRUST,CARE ESTABLISHMENT,LD - Fenland Locality - Cost of Care,LD - Fenland  - Special Needs,Domiciliary Care
Cambridgeshire County Council,26-Mar-20,51301342843,"-1,387.75",AFFINITY TRUST,CARE ESTABLISHMENT,LD - Fenland Locality - Cost of Care,LD - Fenland  - Special Needs,Domiciliary Care
Cambridgeshire County Council,26-Mar-20,51301342843,"-1,387.75",AFFINITY TRUST,CARE ESTABLISHMENT,LD - Fenland Locality - Cost of Care,LD - Fenland  - Special Needs,Domiciliary Care
Cambridgeshire County Council,26-Mar-20,51301342843,"-1,387.75",AFFINITY TRUST,CARE ESTABLISHMENT,LD - Fenland Locality - Cost of Care,LD - Fenland  - Special Needs,Domiciliary Care
Cambridgeshire County Council,26-Mar-20,51301342843,"-1,387.75",AFFINITY TRUST,CARE ESTABLISHMENT,LD - Fenland Locality - Cost of Care,LD - Fenland  - Special Needs,Domiciliary Care
Cambridgeshire County Council,26-Mar-20,51301342843,"-1,387.75",AFFINITY TRUST,CARE ESTABLISHMENT,LD - Fenland Locality - Cost of Care,LD - Fenland  - Special Needs,Domiciliary Care
Cambridgeshire County Council,26-Mar-20,51301342843,"-1,387.75",AFFINITY TRUST,CARE ESTABLISHMENT,LD - Fenland Locality - Cost of Care,LD - Fenland  - Special Needs,Domiciliary Care
Cambridgeshire County Council,26-Mar-20,51301342843,"-1,387.75",AFFINITY TRUST,CARE ESTABLISHMENT,LD - Fenland Locality - Cost of Care,LD - Fenland  - Special Needs,Domiciliary Care
Cambridgeshire County Council,26-Mar-20,51301342843,"-1,387.75",AFFINITY TRUST,CARE ESTABLISHMENT,LD - Fenland Locality - Cost of Care,LD - Fenland  - Special Needs,Domiciliary Care
Cambridgeshire County Council,26-Mar-20,51301342843,"-1,387.75",AFFINITY TRUST,CARE ESTABLISHMENT,LD - Fenland Locality - Cost of Care,LD - Fenland  - Special Needs,Domiciliary Care
Cambridgeshire County Council,26-Mar-20,51301342843,"-1,387.75",AFFINITY TRUST,CARE ESTABLISHMENT,LD - Fenland Locality - Cost of Care,LD - Fenland  - Special Needs,Domiciliary Care
Cambridgeshire County Council,26-Mar-20,51301342843,"-1,387.75",AFFINITY TRUST,CARE ESTABLISHMENT,LD - Fenland Locality - Cost of Care,LD - Fenland  - Special Needs,Domiciliary Care
Cambridgeshire County Council,26-Mar-20,51301342843,"-1,387.75",AFFINITY TRUST,CARE ESTABLISHMENT,LD - Fenland Locality - Cost of Care,LD - Fenland  - Special Needs,Domiciliary Care
Cambridgeshire County Council,26-Mar-20,51301342843,"-1,387.75",AFFINITY TRUST,CARE ESTABLISHMENT,LD - Fenland Locality - Cost of Care,LD - Fenland  - Special Needs,Domiciliary Care
Cambridgeshire County Council,26-Mar-20,51301342843,"-1,387.75",AFFINITY TRUST,CARE ESTABLISHMENT,LD - Fenland Locality - Cost of Care,LD - Fenland  - Special Needs,Domiciliary Care
Cambridgeshire County Council,04-Mar-20,51301328406,"-1,368.55",CARETECH COMMUNITY SERVICES,CARE ESTABLISHMENT,LD - South Locality - Cost of Care,LD - South Cambs - Care,Residential Care
Cambridgeshire County Council,04-Mar-20,51301328386,"-1,322.78",Glebe Farm,COMPANY,LD - Hunts Locality - Cost of Care,LD - Huntingdonshire - Special Needs,Residential Care
Cambridgeshire County Council,04-Mar-20,51301328386,"-1,322.78",Glebe Farm,COMPANY,LD - Hunts Locality - Cost of Care,LD - Huntingdonshire - Special Needs,Residential Care
Cambridgeshire County Council,04-Mar-20,51301328386,"-1,322.78",Glebe Farm,COMPANY,LD - Hunts Locality - Cost of Care,LD - Huntingdonshire - Special Needs,Residential Care
Cambridgeshire County Council,04-Mar-20,51301328386,"-1,322.78",Glebe Farm,COMPANY,LD - Hunts Locality - Cost of Care,LD - Huntingdonshire - Special Needs,Residential Care
Cambridgeshire County Council,12-Mar-20,51301331406,"-1,320.84",ROYAL MENCAP SOCIETY,CARE ESTABLISHMENT,LD - Fenland Locality - Cost of Care,LD - Fenland  - Care,Supported Living
Cambridgeshire County Council,12-Mar-20,51301331406,"-1,320.84",ROYAL MENCAP SOCIETY,CARE ESTABLISHMENT,LD - Fenland Locality - Cost of Care,LD - Fenland  - Care,Supported Living
Cambridgeshire County Council,12-Mar-20,51301331406,"-1,320.84",ROYAL MENCAP SOCIETY,CARE ESTABLISHMENT,LD - Fenland Locality - Cost of Care,LD - Fenland  - Care,Supported Living
Cambridgeshire County Council,12-Mar-20,51301331406,"-1,320.84",ROYAL MENCAP SOCIETY,CARE ESTABLISHMENT,LD - Fenland Locality - Cost of Care,LD - Fenland  - Care,Supported Living
Cambridgeshire County Council,12-Mar-20,51301331406,"-1,320.84",ROYAL MENCAP SOCIETY,CARE ESTABLISHMENT,LD - Fenland Locality - Cost of Care,LD - Fenland  - Care,Supported Living
Cambridgeshire County Council,12-Mar-20,51301331406,"-1,320.84",ROYAL MENCAP SOCIETY,CARE ESTABLISHMENT,LD - Fenland Locality - Cost of Care,LD - Fenland  - Care,Supported Living
Cambridgeshire County Council,12-Mar-20,51301331406,"-1,320.84",ROYAL MENCAP SOCIETY,CARE ESTABLISHMENT,LD - Fenland Locality - Cost of Care,LD - Fenland  - Care,Supported Living
Cambridgeshire County Council,12-Mar-20,51301331406,"-1,320.84",ROYAL MENCAP SOCIETY,CARE ESTABLISHMENT,LD - Fenland Locality - Cost of Care,LD - Fenland  - Care,Supported Living
Cambridgeshire County Council,12-Mar-20,51301331406,"-1,320.84",ROYAL MENCAP SOCIETY,CARE ESTABLISHMENT,LD - Fenland Locality - Cost of Care,LD - Fenland  - Care,Supported Living
Cambridgeshire County Council,12-Mar-20,51301331406,"-1,320.84",ROYAL MENCAP SOCIETY,CARE ESTABLISHMENT,LD - Fenland Locality - Cost of Care,LD - Fenland  - Care,Supported Living
Cambridgeshire County Council,12-Mar-20,51301331406,"-1,320.84",ROYAL MENCAP SOCIETY,CARE ESTABLISHMENT,LD - Fenland Locality - Cost of Care,LD - Fenland  - Care,Supported Living
Cambridgeshire County Council,12-Mar-20,51301331406,"-1,320.84",ROYAL MENCAP SOCIETY,CARE ESTABLISHMENT,LD - Fenland Locality - Cost of Care,LD - Fenland  - Care,Supported Living
Cambridgeshire County Council,12-Mar-20,51301331406,"-1,320.84",ROYAL MENCAP SOCIETY,CARE ESTABLISHMENT,LD - Fenland Locality - Cost of Care,LD - Fenland  - Care,Supported Living
Cambridgeshire County Council,12-Mar-20,51301331406,"-1,320.84",ROYAL MENCAP SOCIETY,CARE ESTABLISHMENT,LD - Fenland Locality - Cost of Care,LD - Fenland  - Care,Supported Living
Cambridgeshire County Council,12-Mar-20,51301331406,"-1,320.84",ROYAL MENCAP SOCIETY,CARE ESTABLISHMENT,LD - Fenland Locality - Cost of Care,LD - Fenland  - Care,Supported Living
Cambridgeshire County Council,12-Mar-20,51301331406,"-1,320.84",ROYAL MENCAP SOCIETY,CARE ESTABLISHMENT,LD - Fenland Locality - Cost of Care,LD - Fenland  - Care,Supported Living
Cambridgeshire County Council,12-Mar-20,51301331406,"-1,320.84",ROYAL MENCAP SOCIETY,CARE ESTABLISHMENT,LD - Fenland Locality - Cost of Care,LD - Fenland  - Care,Supported Living
Cambridgeshire County Council,12-Mar-20,51301331406,"-1,320.84",ROYAL MENCAP SOCIETY,CARE ESTABLISHMENT,LD - Fenland Locality - Cost of Care,LD - Fenland  - Care,Supported Living
Cambridgeshire County Council,12-Mar-20,51301331406,"-1,320.84",ROYAL MENCAP SOCIETY,CARE ESTABLISHMENT,LD - Fenland Locality - Cost of Care,LD - Fenland  - Care,Supported Living
Cambridgeshire County Council,12-Mar-20,51301331406,"-1,320.84",ROYAL MENCAP SOCIETY,CARE ESTABLISHMENT,LD - Fenland Locality - Cost of Care,LD - Fenland  - Care,Supported Living
Cambridgeshire County Council,12-Mar-20,51301331406,"-1,320.84",ROYAL MENCAP SOCIETY,CARE ESTABLISHMENT,LD - Fenland Locality - Cost of Care,LD - Fenland  - Care,Supported Living
Cambridgeshire County Council,12-Mar-20,51301331406,"-1,320.84",ROYAL MENCAP SOCIETY,CARE ESTABLISHMENT,LD - Fenland Locality - Cost of Care,LD - Fenland  - Care,Supported Living
Cambridgeshire County Council,19-Mar-20,51301335671,"-1,300.00",WOODLANDS CARE CENTRE,CARE ESTABLISHMENT,OPMH - City & South,Older People Mental Health City & South,Residential Care
Cambridgeshire County Council,19-Mar-20,51301335671,"-1,300.00",WOODLANDS CARE CENTRE,CARE ESTABLISHMENT,OPMH - City & South,Older People Mental Health City & South,Residential Care
Cambridgeshire County Council,19-Mar-20,51301335671,"-1,300.00",WOODLANDS CARE CENTRE,CARE ESTABLISHMENT,OPMH - City & South,Older People Mental Health City & South,Residential Care
Cambridgeshire County Council,04-Mar-20,51301328436,"-1,298.91",CARETECH COMMUNITY SERVICES LTD (161 WOOTTON RD),CARE ESTABLISHMENT,LD - Hunts Locality - Cost of Care,LD - Huntingdonshire - Care,Residential Care
Cambridgeshire County Council,04-Mar-20,51301328436,"-1,298.91",CARETECH COMMUNITY SERVICES LTD (161 WOOTTON RD),CARE ESTABLISHMENT,LD - Hunts Locality - Cost of Care,LD - Huntingdonshire - Care,Residential Care
Cambridgeshire County Council,04-Mar-20,51301328436,"-1,298.91",CARETECH COMMUNITY SERVICES LTD (161 WOOTTON RD),CARE ESTABLISHMENT,LD - Hunts Locality - Cost of Care,LD - Huntingdonshire - Care,Residential Care
Cambridgeshire County Council,04-Mar-20,51301328436,"-1,298.91",CARETECH COMMUNITY SERVICES LTD (161 WOOTTON RD),CARE ESTABLISHMENT,LD - Hunts Locality - Cost of Care,LD - Huntingdonshire - Care,Residential Care
Cambridgeshire County Council,04-Mar-20,51301328436,"-1,298.91",CARETECH COMMUNITY SERVICES LTD (161 WOOTTON RD),CARE ESTABLISHMENT,LD - Hunts Locality - Cost of Care,LD - Huntingdonshire - Care,Residential Care
Cambridgeshire County Council,04-Mar-20,51301328436,"-1,298.91",CARETECH COMMUNITY SERVICES LTD (161 WOOTTON RD),CARE ESTABLISHMENT,LD - Hunts Locality - Cost of Care,LD - Huntingdonshire - Care,Residential Care
Cambridgeshire County Council,04-Mar-20,51301328404,"-1,294.88",BROAD OAKS VCT LTD,CARE ESTABLISHMENT,LD - Fenland Locality - Cost of Care,LD - Fenland  - Special Needs,Residential Care
Cambridgeshire County Council,04-Mar-20,51301328405,"-1,294.87",BROAD OAKS VCT LTD,CARE ESTABLISHMENT,LD - Fenland Locality - Cost of Care,LD - Fenland  - Special Needs,Residential Care
Cambridgeshire County Council,12-Mar-20,51301331179,"-1,288.00",DUNAMIS SOCIAL CARE,CARE ESTABLISHMENT,Physical Disablity - Cost of Care,Countywide PD Service - Care,Domiciliary Care
Cambridgeshire County Council,12-Mar-20,51301331179,"-1,288.00",DUNAMIS SOCIAL CARE,CARE ESTABLISHMENT,Physical Disablity - Cost of Care,Countywide PD Service - Care,Domiciliary Care
Cambridgeshire County Council,12-Mar-20,51301331179,"-1,288.00",DUNAMIS SOCIAL CARE,CARE ESTABLISHMENT,Physical Disablity - Cost of Care,Countywide PD Service - Care,Domiciliary Care
Cambridgeshire County Council,12-Mar-20,51301331179,"-1,288.00",DUNAMIS SOCIAL CARE,CARE ESTABLISHMENT,Physical Disablity - Cost of Care,Countywide PD Service - Care,Domiciliary Care
Cambridgeshire County Council,12-Mar-20,51301331179,"-1,288.00",DUNAMIS SOCIAL CARE,CARE ESTABLISHMENT,Physical Disablity - Cost of Care,Countywide PD Service - Care,Domiciliary Care
Cambridgeshire County Council,12-Mar-20,51301331179,"-1,288.00",DUNAMIS SOCIAL CARE,CARE ESTABLISHMENT,Physical Disablity - Cost of Care,Countywide PD Service - Care,Domiciliary Care
Cambridgeshire County Council,12-Mar-20,51301331179,"-1,288.00",DUNAMIS SOCIAL CARE,CARE ESTABLISHMENT,Physical Disablity - Cost of Care,Countywide PD Service - Care,Domiciliary Care
Cambridgeshire County Council,12-Mar-20,51301331179,"-1,288.00",DUNAMIS SOCIAL CARE,CARE ESTABLISHMENT,Physical Disablity - Cost of Care,Countywide PD Service - Care,Domiciliary Care
Cambridgeshire County Council,12-Mar-20,51301331179,"-1,288.00",DUNAMIS SOCIAL CARE,CARE ESTABLISHMENT,Physical Disablity - Cost of Care,Countywide PD Service - Care,Domiciliary Care
Cambridgeshire County Council,12-Mar-20,51301331179,"-1,288.00",DUNAMIS SOCIAL CARE,CARE ESTABLISHMENT,Physical Disablity - Cost of Care,Countywide PD Service - Care,Domiciliary Care
Cambridgeshire County Council,12-Mar-20,51301331179,"-1,288.00",DUNAMIS SOCIAL CARE,CARE ESTABLISHMENT,Physical Disablity - Cost of Care,Countywide PD Service - Care,Domiciliary Care
Cambridgeshire County Council,12-Mar-20,51301331179,"-1,288.00",DUNAMIS SOCIAL CARE,CARE ESTABLISHMENT,Physical Disablity - Cost of Care,Countywide PD Service - Care,Domiciliary Care
Cambridgeshire County Council,12-Mar-20,51301331179,"-1,288.00",DUNAMIS SOCIAL CARE,CARE ESTABLISHMENT,Physical Disablity - Cost of Care,Countywide PD Service - Care,Domiciliary Care
Cambridgeshire County Council,12-Mar-20,51301331179,"-1,288.00",DUNAMIS SOCIAL CARE,CARE ESTABLISHMENT,Physical Disablity - Cost of Care,Countywide PD Service - Care,Domiciliary Care
Cambridgeshire County Council,12-Mar-20,51301331179,"-1,288.00",DUNAMIS SOCIAL CARE,CARE ESTABLISHMENT,Physical Disablity - Cost of Care,Countywide PD Service - Care,Domiciliary Care
Cambridgeshire County Council,12-Mar-20,51301331179,"-1,288.00",DUNAMIS SOCIAL CARE,CARE ESTABLISHMENT,Physical Disablity - Cost of Care,Countywide PD Service - Care,Domiciliary Care
Cambridgeshire County Council,04-Mar-20,51301328436,"-1,244.70",CARETECH COMMUNITY SERVICES LTD (161 WOOTTON RD),CARE ESTABLISHMENT,LD - Hunts Locality - Cost of Care,LD - Huntingdonshire - Care,Residential Care
Cambridgeshire County Council,04-Mar-20,51301328436,"-1,244.70",CARETECH COMMUNITY SERVICES LTD (161 WOOTTON RD),CARE ESTABLISHMENT,LD - Hunts Locality - Cost of Care,LD - Huntingdonshire - Care,Residential Care
Cambridgeshire County Council,04-Mar-20,51301328436,"-1,244.70",CARETECH COMMUNITY SERVICES LTD (161 WOOTTON RD),CARE ESTABLISHMENT,LD - Hunts Locality - Cost of Care,LD - Huntingdonshire - Care,Residential Care
Cambridgeshire County Council,04-Mar-20,51301328436,"-1,244.70",CARETECH COMMUNITY SERVICES LTD (161 WOOTTON RD),CARE ESTABLISHMENT,LD - Hunts Locality - Cost of Care,LD - Huntingdonshire - Care,Residential Care
Cambridgeshire County Council,04-Mar-20,51301328436,"-1,244.70",CARETECH COMMUNITY SERVICES LTD (161 WOOTTON RD),CARE ESTABLISHMENT,LD - Hunts Locality - Cost of Care,LD - Huntingdonshire - Care,Residential Care
Cambridgeshire County Council,04-Mar-20,51301328436,"-1,244.70",CARETECH COMMUNITY SERVICES LTD (161 WOOTTON RD),CARE ESTABLISHMENT,LD - Hunts Locality - Cost of Care,LD - Huntingdonshire - Care,Residential Care
Cambridgeshire County Council,04-Mar-20,51301328436,"-1,244.70",CARETECH COMMUNITY SERVICES LTD (161 WOOTTON RD),CARE ESTABLISHMENT,LD - Hunts Locality - Cost of Care,LD - Huntingdonshire - Care,Residential Care
Cambridgeshire County Council,04-Mar-20,51301328436,"-1,244.70",CARETECH COMMUNITY SERVICES LTD (161 WOOTTON RD),CARE ESTABLISHMENT,LD - Hunts Locality - Cost of Care,LD - Huntingdonshire - Care,Residential Care
Cambridgeshire County Council,04-Mar-20,51301328436,"-1,244.70",CARETECH COMMUNITY SERVICES LTD (161 WOOTTON RD),CARE ESTABLISHMENT,LD - Hunts Locality - Cost of Care,LD - Huntingdonshire - Care,Residential Care
Cambridgeshire County Council,04-Mar-20,51301328436,"-1,244.70",CARETECH COMMUNITY SERVICES LTD (161 WOOTTON RD),CARE ESTABLISHMENT,LD - Hunts Locality - Cost of Care,LD - Huntingdonshire - Care,Residential Care
Cambridgeshire County Council,04-Mar-20,51301328436,"-1,244.70",CARETECH COMMUNITY SERVICES LTD (161 WOOTTON RD),CARE ESTABLISHMENT,LD - Hunts Locality - Cost of Care,LD - Huntingdonshire - Care,Residential Care
Cambridgeshire County Council,04-Mar-20,51301328436,"-1,244.70",CARETECH COMMUNITY SERVICES LTD (161 WOOTTON RD),CARE ESTABLISHMENT,LD - Hunts Locality - Cost of Care,LD - Huntingdonshire - Care,Residential Care
Cambridgeshire County Council,04-Mar-20,51301328436,"-1,244.70",CARETECH COMMUNITY SERVICES LTD (161 WOOTTON RD),CARE ESTABLISHMENT,LD - Hunts Locality - Cost of Care,LD - Huntingdonshire - Care,Residential Care
Cambridgeshire County Council,04-Mar-20,51301328436,"-1,244.70",CARETECH COMMUNITY SERVICES LTD (161 WOOTTON RD),CARE ESTABLISHMENT,LD - Hunts Locality - Cost of Care,LD - Huntingdonshire - Care,Residential Care
Cambridgeshire County Council,04-Mar-20,51301328436,"-1,244.70",CARETECH COMMUNITY SERVICES LTD (161 WOOTTON RD),CARE ESTABLISHMENT,LD - Hunts Locality - Cost of Care,LD - Huntingdonshire - Care,Residential Care
Cambridgeshire County Council,04-Mar-20,51301328436,"-1,244.70",CARETECH COMMUNITY SERVICES LTD (161 WOOTTON RD),CARE ESTABLISHMENT,LD - Hunts Locality - Cost of Care,LD - Huntingdonshire - Care,Residential Care
Cambridgeshire County Council,04-Mar-20,51301328436,"-1,244.70",CARETECH COMMUNITY SERVICES LTD (161 WOOTTON RD),CARE ESTABLISHMENT,LD - Hunts Locality - Cost of Care,LD - Huntingdonshire - Care,Residential Care
Cambridgeshire County Council,04-Mar-20,51301328436,"-1,244.70",CARETECH COMMUNITY SERVICES LTD (161 WOOTTON RD),CARE ESTABLISHMENT,LD - Hunts Locality - Cost of Care,LD - Huntingdonshire - Care,Residential Care
Cambridgeshire County Council,04-Mar-20,51301328436,"-1,244.70",CARETECH COMMUNITY SERVICES LTD (161 WOOTTON RD),CARE ESTABLISHMENT,LD - Hunts Locality - Cost of Care,LD - Huntingdonshire - Care,Residential Care
Cambridgeshire County Council,04-Mar-20,51301328436,"-1,244.70",CARETECH COMMUNITY SERVICES LTD (161 WOOTTON RD),CARE ESTABLISHMENT,LD - Hunts Locality - Cost of Care,LD - Huntingdonshire - Care,Residential Care
Cambridgeshire County Council,04-Mar-20,51301328436,"-1,244.70",CARETECH COMMUNITY SERVICES LTD (161 WOOTTON RD),CARE ESTABLISHMENT,LD - Hunts Locality - Cost of Care,LD - Huntingdonshire - Care,Residential Care
Cambridgeshire County Council,04-Mar-20,51301328436,"-1,244.70",CARETECH COMMUNITY SERVICES LTD (161 WOOTTON RD),CARE ESTABLISHMENT,LD - Hunts Locality - Cost of Care,LD - Huntingdonshire - Care,Residential Care
Cambridgeshire County Council,04-Mar-20,51301328436,"-1,244.70",CARETECH COMMUNITY SERVICES LTD (161 WOOTTON RD),CARE ESTABLISHMENT,LD - Hunts Locality - Cost of Care,LD - Huntingdonshire - Care,Residential Care
Cambridgeshire County Council,04-Mar-20,51301328436,"-1,244.70",CARETECH COMMUNITY SERVICES LTD (161 WOOTTON RD),CARE ESTABLISHMENT,LD - Hunts Locality - Cost of Care,LD - Huntingdonshire - Care,Residential Care
Cambridgeshire County Council,04-Mar-20,51301328436,"-1,244.70",CARETECH COMMUNITY SERVICES LTD (161 WOOTTON RD),CARE ESTABLISHMENT,LD - Hunts Locality - Cost of Care,LD - Huntingdonshire - Care,Residential Care
Cambridgeshire County Council,25-Mar-20,51301342491,"-1,221.22",AFFINITY TRUST,CARE ESTABLISHMENT,LD - Hunts Locality - Cost of Care,LD - Huntingdonshire - Special Needs,Supported Living
Cambridgeshire County Council,25-Mar-20,51301342491,"-1,221.22",AFFINITY TRUST,CARE ESTABLISHMENT,LD - Hunts Locality - Cost of Care,LD - Huntingdonshire - Special Needs,Supported Living
Cambridgeshire County Council,25-Mar-20,51301342491,"-1,221.22",AFFINITY TRUST,CARE ESTABLISHMENT,LD - Hunts Locality - Cost of Care,LD - Huntingdonshire - Special Needs,Supported Living
Cambridgeshire County Council,25-Mar-20,51301342491,"-1,221.22",AFFINITY TRUST,CARE ESTABLISHMENT,LD - Hunts Locality - Cost of Care,LD - Huntingdonshire - Special Needs,Supported Living
Cambridgeshire County Council,25-Mar-20,51301342491,"-1,221.22",AFFINITY TRUST,CARE ESTABLISHMENT,LD - Hunts Locality - Cost of Care,LD - Huntingdonshire - Special Needs,Supported Living
Cambridgeshire County Council,25-Mar-20,51301342491,"-1,221.22",AFFINITY TRUST,CARE ESTABLISHMENT,LD - Hunts Locality - Cost of Care,LD - Huntingdonshire - Special Needs,Supported Living
Cambridgeshire County Council,25-Mar-20,51301342491,"-1,221.22",AFFINITY TRUST,CARE ESTABLISHMENT,LD - Hunts Locality - Cost of Care,LD - Huntingdonshire - Special Needs,Supported Living
Cambridgeshire County Council,25-Mar-20,51301342491,"-1,221.22",AFFINITY TRUST,CARE ESTABLISHMENT,LD - Hunts Locality - Cost of Care,LD - Huntingdonshire - Special Needs,Supported Living
Cambridgeshire County Council,25-Mar-20,51301342491,"-1,221.22",AFFINITY TRUST,CARE ESTABLISHMENT,LD - Hunts Locality - Cost of Care,LD - Huntingdonshire - Special Needs,Supported Living
Cambridgeshire County Council,25-Mar-20,51301342491,"-1,221.22",AFFINITY TRUST,CARE ESTABLISHMENT,LD - Hunts Locality - Cost of Care,LD - Huntingdonshire - Special Needs,Supported Living
Cambridgeshire County Council,25-Mar-20,51301342491,"-1,221.22",AFFINITY TRUST,CARE ESTABLISHMENT,LD - Hunts Locality - Cost of Care,LD - Huntingdonshire - Special Needs,Supported Living
Cambridgeshire County Council,25-Mar-20,51301342491,"-1,221.22",AFFINITY TRUST,CARE ESTABLISHMENT,LD - Hunts Locality - Cost of Care,LD - Huntingdonshire - Special Needs,Supported Living
Cambridgeshire County Council,25-Mar-20,51301342491,"-1,221.22",AFFINITY TRUST,CARE ESTABLISHMENT,LD - Hunts Locality - Cost of Care,LD - Huntingdonshire - Special Needs,Supported Living
Cambridgeshire County Council,25-Mar-20,51301342491,"-1,221.22",AFFINITY TRUST,CARE ESTABLISHMENT,LD - Hunts Locality - Cost of Care,LD - Huntingdonshire - Special Needs,Supported Living
Cambridgeshire County Council,25-Mar-20,51301342491,"-1,221.22",AFFINITY TRUST,CARE ESTABLISHMENT,LD - Hunts Locality - Cost of Care,LD - Huntingdonshire - Special Needs,Supported Living
Cambridgeshire County Council,25-Mar-20,51301342491,"-1,221.22",AFFINITY TRUST,CARE ESTABLISHMENT,LD - Hunts Locality - Cost of Care,LD - Huntingdonshire - Special Needs,Supported Living
Cambridgeshire County Council,25-Mar-20,51301342491,"-1,221.22",AFFINITY TRUST,CARE ESTABLISHMENT,LD - Hunts Locality - Cost of Care,LD - Huntingdonshire - Special Needs,Supported Living
Cambridgeshire County Council,25-Mar-20,51301342491,"-1,221.22",AFFINITY TRUST,CARE ESTABLISHMENT,LD - Hunts Locality - Cost of Care,LD - Huntingdonshire - Special Needs,Supported Living
Cambridgeshire County Council,25-Mar-20,51301342491,"-1,221.22",AFFINITY TRUST,CARE ESTABLISHMENT,LD - Hunts Locality - Cost of Care,LD - Huntingdonshire - Special Needs,Supported Living
Cambridgeshire County Council,25-Mar-20,51301342491,"-1,221.22",AFFINITY TRUST,CARE ESTABLISHMENT,LD - Hunts Locality - Cost of Care,LD - Huntingdonshire - Special Needs,Supported Living
Cambridgeshire County Council,25-Mar-20,51301342491,"-1,221.22",AFFINITY TRUST,CARE ESTABLISHMENT,LD - Hunts Locality - Cost of Care,LD - Huntingdonshire - Special Needs,Supported Living
Cambridgeshire County Council,25-Mar-20,51301342491,"-1,221.22",AFFINITY TRUST,CARE ESTABLISHMENT,LD - Hunts Locality - Cost of Care,LD - Huntingdonshire - Special Needs,Supported Living
Cambridgeshire County Council,25-Mar-20,51301342491,"-1,221.22",AFFINITY TRUST,CARE ESTABLISHMENT,LD - Hunts Locality - Cost of Care,LD - Huntingdonshire - Special Needs,Supported Living
Cambridgeshire County Council,25-Mar-20,51301342491,"-1,221.22",AFFINITY TRUST,CARE ESTABLISHMENT,LD - Hunts Locality - Cost of Care,LD - Huntingdonshire - Special Needs,Supported Living
Cambridgeshire County Council,25-Mar-20,51301342491,"-1,221.22",AFFINITY TRUST,CARE ESTABLISHMENT,LD - Hunts Locality - Cost of Care,LD - Huntingdonshire - Special Needs,Supported Living
Cambridgeshire County Council,25-Mar-20,51301342491,"-1,221.22",AFFINITY TRUST,CARE ESTABLISHMENT,LD - Hunts Locality - Cost of Care,LD - Huntingdonshire - Special Needs,Supported Living
Cambridgeshire County Council,25-Mar-20,51301342491,"-1,221.22",AFFINITY TRUST,CARE ESTABLISHMENT,LD - Hunts Locality - Cost of Care,LD - Huntingdonshire - Special Needs,Supported Living
Cambridgeshire County Council,25-Mar-20,51301342491,"-1,221.22",AFFINITY TRUST,CARE ESTABLISHMENT,LD - Hunts Locality - Cost of Care,LD - Huntingdonshire - Special Needs,Supported Living
Cambridgeshire County Council,25-Mar-20,51301342491,"-1,221.22",AFFINITY TRUST,CARE ESTABLISHMENT,LD - Hunts Locality - Cost of Care,LD - Huntingdonshire - Special Needs,Supported Living
Cambridgeshire County Council,25-Mar-20,51301342491,"-1,221.22",AFFINITY TRUST,CARE ESTABLISHMENT,LD - Hunts Locality - Cost of Care,LD - Huntingdonshire - Special Needs,Supported Living
Cambridgeshire County Council,25-Mar-20,51301342491,"-1,221.22",AFFINITY TRUST,CARE ESTABLISHMENT,LD - Hunts Locality - Cost of Care,LD - Huntingdonshire - Special Needs,Supported Living
Cambridgeshire County Council,19-Mar-20,51301336712,"-1,207.33",ALDERTON HOUSE,CARE ESTABLISHMENT,LD - Young Adults Team,LD - Young Adults - Care,Residential Care
Cambridgeshire County Council,20-Mar-20,51301338328,"-1,200.04",73 HIGH ROAD,CARE ESTABLISHMENT,LD - South Locality - Cost of Care,LD - South Cambs - Care,Supported Living
Cambridgeshire County Council,20-Mar-20,51301338328,"-1,200.04",73 HIGH ROAD,CARE ESTABLISHMENT,LD - South Locality - Cost of Care,LD - South Cambs - Care,Supported Living
Cambridgeshire County Council,20-Mar-20,51301338328,"-1,200.04",73 HIGH ROAD,CARE ESTABLISHMENT,LD - South Locality - Cost of Care,LD - South Cambs - Care,Supported Living
Cambridgeshire County Council,20-Mar-20,51301338328,"-1,200.04",73 HIGH ROAD,CARE ESTABLISHMENT,LD - South Locality - Cost of Care,LD - South Cambs - Care,Supported Living
Cambridgeshire County Council,20-Mar-20,51301338328,"-1,200.04",73 HIGH ROAD,CARE ESTABLISHMENT,LD - South Locality - Cost of Care,LD - South Cambs - Care,Supported Living
Cambridgeshire County Council,20-Mar-20,51301338328,"-1,200.04",73 HIGH ROAD,CARE ESTABLISHMENT,LD - South Locality - Cost of Care,LD - South Cambs - Care,Supported Living
Cambridgeshire County Council,20-Mar-20,51301338328,"-1,200.04",73 HIGH ROAD,CARE ESTABLISHMENT,LD - South Locality - Cost of Care,LD - South Cambs - Care,Supported Living
Cambridgeshire County Council,20-Mar-20,51301338328,"-1,200.04",73 HIGH ROAD,CARE ESTABLISHMENT,LD - South Locality - Cost of Care,LD - South Cambs - Care,Supported Living
Cambridgeshire County Council,20-Mar-20,51301338328,"-1,200.04",73 HIGH ROAD,CARE ESTABLISHMENT,LD - South Locality - Cost of Care,LD - South Cambs - Care,Supported Living
Cambridgeshire County Council,20-Mar-20,51301338328,"-1,200.04",73 HIGH ROAD,CARE ESTABLISHMENT,LD - South Locality - Cost of Care,LD - South Cambs - Care,Supported Living
Cambridgeshire County Council,20-Mar-20,51301338328,"-1,200.04",73 HIGH ROAD,CARE ESTABLISHMENT,LD - South Locality - Cost of Care,LD - South Cambs - Care,Supported Living
Cambridgeshire County Council,20-Mar-20,51301338328,"-1,200.04",73 HIGH ROAD,CARE ESTABLISHMENT,LD - South Locality - Cost of Care,LD - South Cambs - Care,Supported Living
Cambridgeshire County Council,20-Mar-20,51301338328,"-1,200.04",73 HIGH ROAD,CARE ESTABLISHMENT,LD - South Locality - Cost of Care,LD - South Cambs - Care,Supported Living
Cambridgeshire County Council,20-Mar-20,51301338328,"-1,200.04",73 HIGH ROAD,CARE ESTABLISHMENT,LD - South Locality - Cost of Care,LD - South Cambs - Care,Supported Living
Cambridgeshire County Council,20-Mar-20,51301338328,"-1,200.04",73 HIGH ROAD,CARE ESTABLISHMENT,LD - South Locality - Cost of Care,LD - South Cambs - Care,Supported Living
Cambridgeshire County Council,20-Mar-20,51301338328,"-1,200.04",73 HIGH ROAD,CARE ESTABLISHMENT,LD - South Locality - Cost of Care,LD - South Cambs - Care,Supported Living
Cambridgeshire County Council,20-Mar-20,51301338328,"-1,200.04",73 HIGH ROAD,CARE ESTABLISHMENT,LD - South Locality - Cost of Care,LD - South Cambs - Care,Supported Living
Cambridgeshire County Council,20-Mar-20,51301338328,"-1,200.04",73 HIGH ROAD,CARE ESTABLISHMENT,LD - South Locality - Cost of Care,LD - South Cambs - Care,Supported Living
Cambridgeshire County Council,20-Mar-20,51301338328,"-1,200.04",73 HIGH ROAD,CARE ESTABLISHMENT,LD - South Locality - Cost of Care,LD - South Cambs - Care,Supported Living
Cambridgeshire County Council,20-Mar-20,51301338328,"-1,200.04",73 HIGH ROAD,CARE ESTABLISHMENT,LD - South Locality - Cost of Care,LD - South Cambs - Care,Supported Living
Cambridgeshire County Council,20-Mar-20,51301338328,"-1,200.04",73 HIGH ROAD,CARE ESTABLISHMENT,LD - South Locality - Cost of Care,LD - South Cambs - Care,Supported Living
Cambridgeshire County Council,04-Mar-20,51301328437,"-1,200.00",WOODLANDS CARE CENTRE,CARE ESTABLISHMENT,AMH - City South,Cambridge Mental Health team,Residential Care
Cambridgeshire County Council,04-Mar-20,51301328437,"-1,200.00",WOODLANDS CARE CENTRE,CARE ESTABLISHMENT,AMH - City South,Cambridge Mental Health team,Residential Care
Cambridgeshire County Council,04-Mar-20,51301328437,"-1,200.00",WOODLANDS CARE CENTRE,CARE ESTABLISHMENT,AMH - City South,Cambridge Mental Health team,Residential Care
Cambridgeshire County Council,04-Mar-20,51301328437,"-1,200.00",WOODLANDS CARE CENTRE,CARE ESTABLISHMENT,AMH - City South,Cambridge Mental Health team,Residential Care
Cambridgeshire County Council,04-Mar-20,51301328437,"-1,200.00",WOODLANDS CARE CENTRE,CARE ESTABLISHMENT,AMH - City South,Cambridge Mental Health team,Residential Care
Cambridgeshire County Council,04-Mar-20,51301328437,"-1,200.00",WOODLANDS CARE CENTRE,CARE ESTABLISHMENT,AMH - City South,Cambridge Mental Health team,Residential Care
Cambridgeshire County Council,04-Mar-20,51301328437,"-1,200.00",WOODLANDS CARE CENTRE,CARE ESTABLISHMENT,AMH - City South,Cambridge Mental Health team,Residential Care
Cambridgeshire County Council,04-Mar-20,51301328437,"-1,200.00",WOODLANDS CARE CENTRE,CARE ESTABLISHMENT,AMH - City South,Cambridge Mental Health team,Residential Care
Cambridgeshire County Council,04-Mar-20,51301328437,"-1,200.00",WOODLANDS CARE CENTRE,CARE ESTABLISHMENT,AMH - City South,Cambridge Mental Health team,Residential Care
Cambridgeshire County Council,04-Mar-20,51301328437,"-1,200.00",WOODLANDS CARE CENTRE,CARE ESTABLISHMENT,AMH - City South,Cambridge Mental Health team,Residential Care
Cambridgeshire County Council,04-Mar-20,51301328437,"-1,200.00",WOODLANDS CARE CENTRE,CARE ESTABLISHMENT,AMH - City South,Cambridge Mental Health team,Residential Care
Cambridgeshire County Council,04-Mar-20,51301328437,"-1,200.00",WOODLANDS CARE CENTRE,CARE ESTABLISHMENT,AMH - City South,Cambridge Mental Health team,Residential Care
Cambridgeshire County Council,04-Mar-20,51301328437,"-1,200.00",WOODLANDS CARE CENTRE,CARE ESTABLISHMENT,AMH - City South,Cambridge Mental Health team,Residential Care
Cambridgeshire County Council,04-Mar-20,51301328437,"-1,200.00",WOODLANDS CARE CENTRE,CARE ESTABLISHMENT,AMH - City South,Cambridge Mental Health team,Residential Care
Cambridgeshire County Council,04-Mar-20,51301328437,"-1,200.00",WOODLANDS CARE CENTRE,CARE ESTABLISHMENT,AMH - City South,Cambridge Mental Health team,Residential Care
Cambridgeshire County Council,04-Mar-20,51301328437,"-1,200.00",WOODLANDS CARE CENTRE,CARE ESTABLISHMENT,AMH - City South,Cambridge Mental Health team,Residential Care
Cambridgeshire County Council,04-Mar-20,51301328437,"-1,200.00",WOODLANDS CARE CENTRE,CARE ESTABLISHMENT,AMH - City South,Cambridge Mental Health team,Residential Care
Cambridgeshire County Council,12-Mar-20,51301331305,"-1,196.58",AFFINITY TRUST (WIMBLINGTON),CARE ESTABLISHMENT,LD - Fenland Locality - Cost of Care,LD - Fenland  - Care,Domiciliary Care
Cambridgeshire County Council,12-Mar-20,51301331305,"-1,196.58",AFFINITY TRUST (WIMBLINGTON),CARE ESTABLISHMENT,LD - Fenland Locality - Cost of Care,LD - Fenland  - Care,Domiciliary Care
Cambridgeshire County Council,12-Mar-20,51301331305,"-1,196.58",AFFINITY TRUST (WIMBLINGTON),CARE ESTABLISHMENT,LD - Fenland Locality - Cost of Care,LD - Fenland  - Care,Domiciliary Care
Cambridgeshire County Council,12-Mar-20,51301331305,"-1,196.58",AFFINITY TRUST (WIMBLINGTON),CARE ESTABLISHMENT,LD - Fenland Locality - Cost of Care,LD - Fenland  - Care,Domiciliary Care
Cambridgeshire County Council,12-Mar-20,51301331305,"-1,196.58",AFFINITY TRUST (WIMBLINGTON),CARE ESTABLISHMENT,LD - Fenland Locality - Cost of Care,LD - Fenland  - Care,Domiciliary Care
Cambridgeshire County Council,12-Mar-20,51301331305,"-1,196.58",AFFINITY TRUST (WIMBLINGTON),CARE ESTABLISHMENT,LD - Fenland Locality - Cost of Care,LD - Fenland  - Care,Domiciliary Care
Cambridgeshire County Council,12-Mar-20,51301331305,"-1,196.58",AFFINITY TRUST (WIMBLINGTON),CARE ESTABLISHMENT,LD - Fenland Locality - Cost of Care,LD - Fenland  - Care,Domiciliary Care
Cambridgeshire County Council,12-Mar-20,51301331305,"-1,196.58",AFFINITY TRUST (WIMBLINGTON),CARE ESTABLISHMENT,LD - Fenland Locality - Cost of Care,LD - Fenland  - Care,Domiciliary Care
Cambridgeshire County Council,12-Mar-20,51301331305,"-1,196.58",AFFINITY TRUST (WIMBLINGTON),CARE ESTABLISHMENT,LD - Fenland Locality - Cost of Care,LD - Fenland  - Care,Domiciliary Care
Cambridgeshire County Council,12-Mar-20,51301331305,"-1,196.58",AFFINITY TRUST (WIMBLINGTON),CARE ESTABLISHMENT,LD - Fenland Locality - Cost of Care,LD - Fenland  - Care,Domiciliary Care
Cambridgeshire County Council,12-Mar-20,51301331305,"-1,196.58",AFFINITY TRUST (WIMBLINGTON),CARE ESTABLISHMENT,LD - Fenland Locality - Cost of Care,LD - Fenland  - Care,Domiciliary Care
Cambridgeshire County Council,12-Mar-20,51301331305,"-1,196.58",AFFINITY TRUST (WIMBLINGTON),CARE ESTABLISHMENT,LD - Fenland Locality - Cost of Care,LD - Fenland  - Care,Domiciliary Care
Cambridgeshire County Council,12-Mar-20,51301331305,"-1,196.58",AFFINITY TRUST (WIMBLINGTON),CARE ESTABLISHMENT,LD - Fenland Locality - Cost of Care,LD - Fenland  - Care,Domiciliary Care
Cambridgeshire County Council,12-Mar-20,51301331305,"-1,196.58",AFFINITY TRUST (WIMBLINGTON),CARE ESTABLISHMENT,LD - Fenland Locality - Cost of Care,LD - Fenland  - Care,Domiciliary Care
Cambridgeshire County Council,12-Mar-20,51301331305,"-1,196.58",AFFINITY TRUST (WIMBLINGTON),CARE ESTABLISHMENT,LD - Fenland Locality - Cost of Care,LD - Fenland  - Care,Domiciliary Care
Cambridgeshire County Council,12-Mar-20,51301331305,"-1,196.58",AFFINITY TRUST (WIMBLINGTON),CARE ESTABLISHMENT,LD - Fenland Locality - Cost of Care,LD - Fenland  - Care,Domiciliary Care
Cambridgeshire County Council,12-Mar-20,51301331305,"-1,196.58",AFFINITY TRUST (WIMBLINGTON),CARE ESTABLISHMENT,LD - Fenland Locality - Cost of Care,LD - Fenland  - Care,Domiciliary Care
Cambridgeshire County Council,12-Mar-20,51301331305,"-1,196.58",AFFINITY TRUST (WIMBLINGTON),CARE ESTABLISHMENT,LD - Fenland Locality - Cost of Care,LD - Fenland  - Care,Domiciliary Care
Cambridgeshire County Council,12-Mar-20,51301331305,"-1,196.58",AFFINITY TRUST (WIMBLINGTON),CARE ESTABLISHMENT,LD - Fenland Locality - Cost of Care,LD - Fenland  - Care,Domiciliary Care
Cambridgeshire County Council,12-Mar-20,51301331305,"-1,196.58",AFFINITY TRUST (WIMBLINGTON),CARE ESTABLISHMENT,LD - Fenland Locality - Cost of Care,LD - Fenland  - Care,Domiciliary Care
Cambridgeshire County Council,12-Mar-20,51301331305,"-1,196.58",AFFINITY TRUST (WIMBLINGTON),CARE ESTABLISHMENT,LD - Fenland Locality - Cost of Care,LD - Fenland  - Care,Domiciliary Care
Cambridgeshire County Council,12-Mar-20,51301331305,"-1,196.58",AFFINITY TRUST (WIMBLINGTON),CARE ESTABLISHMENT,LD - Fenland Locality - Cost of Care,LD - Fenland  - Care,Domiciliary Care
Cambridgeshire County Council,12-Mar-20,51301331305,"-1,196.58",AFFINITY TRUST (WIMBLINGTON),CARE ESTABLISHMENT,LD - Fenland Locality - Cost of Care,LD - Fenland  - Care,Domiciliary Care
Cambridgeshire County Council,12-Mar-20,51301331305,"-1,196.58",AFFINITY TRUST (WIMBLINGTON),CARE ESTABLISHMENT,LD - Fenland Locality - Cost of Care,LD - Fenland  - Care,Domiciliary Care
Cambridgeshire County Council,12-Mar-20,51301331305,"-1,196.58",AFFINITY TRUST (WIMBLINGTON),CARE ESTABLISHMENT,LD - Fenland Locality - Cost of Care,LD - Fenland  - Care,Domiciliary Care
Cambridgeshire County Council,12-Mar-20,51301331305,"-1,196.58",AFFINITY TRUST (WIMBLINGTON),CARE ESTABLISHMENT,LD - Fenland Locality - Cost of Care,LD - Fenland  - Care,Domiciliary Care
Cambridgeshire County Council,20-Mar-20,51301338242,"-1,174.69",GLENHOLME HEALTHCARE LTD,CARE ESTABLISHMENT,LD - Hunts Locality - Cost of Care,LD - Huntingdonshire - Care,Supported Living
Cambridgeshire County Council,20-Mar-20,51301337365,"-1,162.21",AUGUSTA CARE LTD,CARE ESTABLISHMENT,LD - Young Adults Team,LD - Young Adults - Care,Supported Living
Cambridgeshire County Council,20-Mar-20,51301337764,"-1,151.34",VOYAGE,CARE ESTABLISHMENT,LD - Young Adults Team,LD - Young Adults - Care,Domiciliary Care
Cambridgeshire County Council,10-Mar-20,51301329788,"-1,140.00",RISUAL LIMITED,TRADE SUPPLIER,Pro-active upgrade to Exchange email systems,Pro-active upgrade to Exchange email systems,IT Software
Cambridgeshire County Council,20-Mar-20,51301338331,"-1,139.85",VOYAGE,CARE ESTABLISHMENT,LD - South Locality - Cost of Care,LD - South Cambs - Care,Domiciliary Care
Cambridgeshire County Council,20-Mar-20,51301338331,"-1,139.85",VOYAGE,CARE ESTABLISHMENT,LD - South Locality - Cost of Care,LD - South Cambs - Care,Domiciliary Care
Cambridgeshire County Council,20-Mar-20,51301338331,"-1,139.85",VOYAGE,CARE ESTABLISHMENT,LD - South Locality - Cost of Care,LD - South Cambs - Care,Domiciliary Care
Cambridgeshire County Council,20-Mar-20,51301338331,"-1,139.85",VOYAGE,CARE ESTABLISHMENT,LD - South Locality - Cost of Care,LD - South Cambs - Care,Domiciliary Care
Cambridgeshire County Council,20-Mar-20,51301338331,"-1,139.85",VOYAGE,CARE ESTABLISHMENT,LD - South Locality - Cost of Care,LD - South Cambs - Care,Domiciliary Care
Cambridgeshire County Council,20-Mar-20,51301338331,"-1,139.85",VOYAGE,CARE ESTABLISHMENT,LD - South Locality - Cost of Care,LD - South Cambs - Care,Domiciliary Care
Cambridgeshire County Council,20-Mar-20,51301338331,"-1,139.85",VOYAGE,CARE ESTABLISHMENT,LD - South Locality - Cost of Care,LD - South Cambs - Care,Domiciliary Care
Cambridgeshire County Council,20-Mar-20,51301338331,"-1,139.85",VOYAGE,CARE ESTABLISHMENT,LD - South Locality - Cost of Care,LD - South Cambs - Care,Domiciliary Care
Cambridgeshire County Council,20-Mar-20,51301338331,"-1,139.85",VOYAGE,CARE ESTABLISHMENT,LD - South Locality - Cost of Care,LD - South Cambs - Care,Domiciliary Care
Cambridgeshire County Council,20-Mar-20,51301338331,"-1,139.85",VOYAGE,CARE ESTABLISHMENT,LD - South Locality - Cost of Care,LD - South Cambs - Care,Domiciliary Care
Cambridgeshire County Council,20-Mar-20,51301338331,"-1,139.85",VOYAGE,CARE ESTABLISHMENT,LD - South Locality - Cost of Care,LD - South Cambs - Care,Domiciliary Care
Cambridgeshire County Council,20-Mar-20,51301338331,"-1,139.85",VOYAGE,CARE ESTABLISHMENT,LD - South Locality - Cost of Care,LD - South Cambs - Care,Domiciliary Care
Cambridgeshire County Council,20-Mar-20,51301338331,"-1,139.85",VOYAGE,CARE ESTABLISHMENT,LD - South Locality - Cost of Care,LD - South Cambs - Care,Domiciliary Care
Cambridgeshire County Council,20-Mar-20,51301338331,"-1,139.85",VOYAGE,CARE ESTABLISHMENT,LD - South Locality - Cost of Care,LD - South Cambs - Care,Domiciliary Care
Cambridgeshire County Council,20-Mar-20,51301338331,"-1,139.85",VOYAGE,CARE ESTABLISHMENT,LD - South Locality - Cost of Care,LD - South Cambs - Care,Domiciliary Care
Cambridgeshire County Council,20-Mar-20,51301338331,"-1,139.85",VOYAGE,CARE ESTABLISHMENT,LD - South Locality - Cost of Care,LD - South Cambs - Care,Domiciliary Care
Cambridgeshire County Council,20-Mar-20,51301338331,"-1,139.85",VOYAGE,CARE ESTABLISHMENT,LD - South Locality - Cost of Care,LD - South Cambs - Care,Domiciliary Care
Cambridgeshire County Council,20-Mar-20,51301338331,"-1,139.85",VOYAGE,CARE ESTABLISHMENT,LD - South Locality - Cost of Care,LD - South Cambs - Care,Domiciliary Care
Cambridgeshire County Council,20-Mar-20,51301338331,"-1,139.85",VOYAGE,CARE ESTABLISHMENT,LD - South Locality - Cost of Care,LD - South Cambs - Care,Domiciliary Care
Cambridgeshire County Council,20-Mar-20,51301338331,"-1,139.85",VOYAGE,CARE ESTABLISHMENT,LD - South Locality - Cost of Care,LD - South Cambs - Care,Domiciliary Care
Cambridgeshire County Council,20-Mar-20,51301338331,"-1,139.85",VOYAGE,CARE ESTABLISHMENT,LD - South Locality - Cost of Care,LD - South Cambs - Care,Domiciliary Care
Cambridgeshire County Council,19-Mar-20,51301335662,"-1,134.44",WOODLANDS CARE CENTRE,CARE ESTABLISHMENT,OP - City & South Locality - Cost of Care,Older People - City & South - Care,Nursing Care
Cambridgeshire County Council,19-Mar-20,51301335662,"-1,134.44",WOODLANDS CARE CENTRE,CARE ESTABLISHMENT,OP - City & South Locality - Cost of Care,Older People - City & South - Care,Nursing Care
Cambridgeshire County Council,19-Mar-20,51301335662,"-1,134.44",WOODLANDS CARE CENTRE,CARE ESTABLISHMENT,OP - City & South Locality - Cost of Care,Older People - City & South - Care,Nursing Care
Cambridgeshire County Council,19-Mar-20,51301335662,"-1,134.44",WOODLANDS CARE CENTRE,CARE ESTABLISHMENT,OP - City & South Locality - Cost of Care,Older People - City & South - Care,Nursing Care
Cambridgeshire County Council,19-Mar-20,51301335662,"-1,134.44",WOODLANDS CARE CENTRE,CARE ESTABLISHMENT,OP - City & South Locality - Cost of Care,Older People - City & South - Care,Nursing Care
Cambridgeshire County Council,19-Mar-20,51301335662,"-1,134.44",WOODLANDS CARE CENTRE,CARE ESTABLISHMENT,OP - City & South Locality - Cost of Care,Older People - City & South - Care,Nursing Care
Cambridgeshire County Council,19-Mar-20,51301335662,"-1,134.44",WOODLANDS CARE CENTRE,CARE ESTABLISHMENT,OP - City & South Locality - Cost of Care,Older People - City & South - Care,Nursing Care
Cambridgeshire County Council,19-Mar-20,51301335662,"-1,134.44",WOODLANDS CARE CENTRE,CARE ESTABLISHMENT,OP - City & South Locality - Cost of Care,Older People - City & South - Care,Nursing Care
Cambridgeshire County Council,19-Mar-20,51301335662,"-1,134.44",WOODLANDS CARE CENTRE,CARE ESTABLISHMENT,OP - City & South Locality - Cost of Care,Older People - City & South - Care,Nursing Care
Cambridgeshire County Council,04-Mar-20,51301328386,"-1,133.81",Glebe Farm,COMPANY,LD - Hunts Locality - Cost of Care,LD - Huntingdonshire - Special Needs,Residential Care
Cambridgeshire County Council,23-Mar-20,51301339985,"-1,131.68",AFFINITY TRUST,CARE ESTABLISHMENT,LD - Fenland Locality - Cost of Care,LD - Fenland  - Care,Domiciliary Care
Cambridgeshire County Council,20-Mar-20,51301337597,"-1,115.96",VOYAGE,CARE ESTABLISHMENT,LD - South Locality - Cost of Care,LD - South Cambs - Care,Domiciliary Care
Cambridgeshire County Council,20-Mar-20,51301337597,"-1,115.96",VOYAGE,CARE ESTABLISHMENT,LD - South Locality - Cost of Care,LD - South Cambs - Care,Domiciliary Care
Cambridgeshire County Council,20-Mar-20,51301337597,"-1,115.96",VOYAGE,CARE ESTABLISHMENT,LD - South Locality - Cost of Care,LD - South Cambs - Care,Domiciliary Care
Cambridgeshire County Council,20-Mar-20,51301337597,"-1,115.96",VOYAGE,CARE ESTABLISHMENT,LD - South Locality - Cost of Care,LD - South Cambs - Care,Domiciliary Care
Cambridgeshire County Council,19-Mar-20,51301335671,"-1,114.29",WOODLANDS CARE CENTRE,CARE ESTABLISHMENT,OPMH - City & South,Older People Mental Health City & South,Residential Care
Cambridgeshire County Council,12-Mar-20,51301331179,"-1,104.00",DUNAMIS SOCIAL CARE,CARE ESTABLISHMENT,Physical Disablity - Cost of Care,Countywide PD Service - Care,Domiciliary Care
Cambridgeshire County Council,19-Mar-20,51301335730,"-1,096.56",THE CAMBRIDGE HOUSING SOCIETY LTD,CARE ESTABLISHMENT,OP - City & South Locality - Cost of Care,Older People - City & South - Care,Residential Care
Cambridgeshire County Council,19-Mar-20,51301335730,"-1,096.56",THE CAMBRIDGE HOUSING SOCIETY LTD,CARE ESTABLISHMENT,OP - City & South Locality - Cost of Care,Older People - City & South - Care,Residential Care
Cambridgeshire County Council,19-Mar-20,51301335730,"-1,096.56",THE CAMBRIDGE HOUSING SOCIETY LTD,CARE ESTABLISHMENT,OP - City & South Locality - Cost of Care,Older People - City & South - Care,Residential Care
Cambridgeshire County Council,19-Mar-20,51301335730,"-1,096.56",THE CAMBRIDGE HOUSING SOCIETY LTD,CARE ESTABLISHMENT,OP - City & South Locality - Cost of Care,Older People - City & South - Care,Residential Care
Cambridgeshire County Council,19-Mar-20,51301335730,"-1,096.56",THE CAMBRIDGE HOUSING SOCIETY LTD,CARE ESTABLISHMENT,OP - City & South Locality - Cost of Care,Older People - City & South - Care,Residential Care
Cambridgeshire County Council,19-Mar-20,51301335730,"-1,096.56",THE CAMBRIDGE HOUSING SOCIETY LTD,CARE ESTABLISHMENT,OP - City & South Locality - Cost of Care,Older People - City & South - Care,Residential Care
Cambridgeshire County Council,19-Mar-20,51301336518,"-1,094.40",AURORA ORCHARD MANOR,CARE ESTABLISHMENT,LD - South Locality - Cost of Care,LD - South Cambs - Care,Residential Care
Cambridgeshire County Council,19-Mar-20,51301336518,"-1,094.40",AURORA ORCHARD MANOR,CARE ESTABLISHMENT,LD - South Locality - Cost of Care,LD - South Cambs - Care,Residential Care
Cambridgeshire County Council,19-Mar-20,51301336518,"-1,094.40",AURORA ORCHARD MANOR,CARE ESTABLISHMENT,LD - South Locality - Cost of Care,LD - South Cambs - Care,Residential Care
Cambridgeshire County Council,19-Mar-20,51301336518,"-1,094.40",AURORA ORCHARD MANOR,CARE ESTABLISHMENT,LD - South Locality - Cost of Care,LD - South Cambs - Care,Residential Care
Cambridgeshire County Council,19-Mar-20,51301336518,"-1,094.40",AURORA ORCHARD MANOR,CARE ESTABLISHMENT,LD - South Locality - Cost of Care,LD - South Cambs - Care,Residential Care
Cambridgeshire County Council,19-Mar-20,51301336518,"-1,094.40",AURORA ORCHARD MANOR,CARE ESTABLISHMENT,LD - South Locality - Cost of Care,LD - South Cambs - Care,Residential Care
Cambridgeshire County Council,19-Mar-20,51301336518,"-1,094.40",AURORA ORCHARD MANOR,CARE ESTABLISHMENT,LD - South Locality - Cost of Care,LD - South Cambs - Care,Residential Care
Cambridgeshire County Council,19-Mar-20,51301336518,"-1,094.40",AURORA ORCHARD MANOR,CARE ESTABLISHMENT,LD - South Locality - Cost of Care,LD - South Cambs - Care,Residential Care
Cambridgeshire County Council,19-Mar-20,51301336518,"-1,094.40",AURORA ORCHARD MANOR,CARE ESTABLISHMENT,LD - South Locality - Cost of Care,LD - South Cambs - Care,Residential Care
Cambridgeshire County Council,19-Mar-20,51301336518,"-1,094.40",AURORA ORCHARD MANOR,CARE ESTABLISHMENT,LD - South Locality - Cost of Care,LD - South Cambs - Care,Residential Care
Cambridgeshire County Council,19-Mar-20,51301336518,"-1,094.40",AURORA ORCHARD MANOR,CARE ESTABLISHMENT,LD - South Locality - Cost of Care,LD - South Cambs - Care,Residential Care
Cambridgeshire County Council,19-Mar-20,51301336518,"-1,094.40",AURORA ORCHARD MANOR,CARE ESTABLISHMENT,LD - South Locality - Cost of Care,LD - South Cambs - Care,Residential Care
Cambridgeshire County Council,19-Mar-20,51301336518,"-1,094.40",AURORA ORCHARD MANOR,CARE ESTABLISHMENT,LD - South Locality - Cost of Care,LD - South Cambs - Care,Residential Care
Cambridgeshire County Council,19-Mar-20,51301336518,"-1,094.40",AURORA ORCHARD MANOR,CARE ESTABLISHMENT,LD - South Locality - Cost of Care,LD - South Cambs - Care,Residential Care
Cambridgeshire County Council,19-Mar-20,51301336518,"-1,094.40",AURORA ORCHARD MANOR,CARE ESTABLISHMENT,LD - South Locality - Cost of Care,LD - South Cambs - Care,Residential Care
Cambridgeshire County Council,19-Mar-20,51301336518,"-1,094.40",AURORA ORCHARD MANOR,CARE ESTABLISHMENT,LD - South Locality - Cost of Care,LD - South Cambs - Care,Residential Care
Cambridgeshire County Council,19-Mar-20,51301336518,"-1,094.40",AURORA ORCHARD MANOR,CARE ESTABLISHMENT,LD - South Locality - Cost of Care,LD - South Cambs - Care,Residential Care
Cambridgeshire County Council,19-Mar-20,51301336518,"-1,094.40",AURORA ORCHARD MANOR,CARE ESTABLISHMENT,LD - South Locality - Cost of Care,LD - South Cambs - Care,Residential Care
Cambridgeshire County Council,19-Mar-20,51301336518,"-1,094.40",AURORA ORCHARD MANOR,CARE ESTABLISHMENT,LD - South Locality - Cost of Care,LD - South Cambs - Care,Residential Care
Cambridgeshire County Council,19-Mar-20,51301336518,"-1,094.40",AURORA ORCHARD MANOR,CARE ESTABLISHMENT,LD - South Locality - Cost of Care,LD - South Cambs - Care,Residential Care
Cambridgeshire County Council,19-Mar-20,51301336518,"-1,094.40",AURORA ORCHARD MANOR,CARE ESTABLISHMENT,LD - South Locality - Cost of Care,LD - South Cambs - Care,Residential Care
Cambridgeshire County Council,19-Mar-20,51301336518,"-1,094.40",AURORA ORCHARD MANOR,CARE ESTABLISHMENT,LD - South Locality - Cost of Care,LD - South Cambs - Care,Residential Care
Cambridgeshire County Council,19-Mar-20,51301336518,"-1,094.40",AURORA ORCHARD MANOR,CARE ESTABLISHMENT,LD - South Locality - Cost of Care,LD - South Cambs - Care,Residential Care
Cambridgeshire County Council,19-Mar-20,51301336518,"-1,094.40",AURORA ORCHARD MANOR,CARE ESTABLISHMENT,LD - South Locality - Cost of Care,LD - South Cambs - Care,Residential Care
Cambridgeshire County Council,19-Mar-20,51301336518,"-1,094.40",AURORA ORCHARD MANOR,CARE ESTABLISHMENT,LD - South Locality - Cost of Care,LD - South Cambs - Care,Residential Care
Cambridgeshire County Council,19-Mar-20,51301336518,"-1,094.40",AURORA ORCHARD MANOR,CARE ESTABLISHMENT,LD - South Locality - Cost of Care,LD - South Cambs - Care,Residential Care
Cambridgeshire County Council,19-Mar-20,51301336518,"-1,094.40",AURORA ORCHARD MANOR,CARE ESTABLISHMENT,LD - South Locality - Cost of Care,LD - South Cambs - Care,Residential Care
Cambridgeshire County Council,19-Mar-20,51301336518,"-1,094.40",AURORA ORCHARD MANOR,CARE ESTABLISHMENT,LD - South Locality - Cost of Care,LD - South Cambs - Care,Residential Care
Cambridgeshire County Council,19-Mar-20,51301336518,"-1,094.40",AURORA ORCHARD MANOR,CARE ESTABLISHMENT,LD - South Locality - Cost of Care,LD - South Cambs - Care,Residential Care
Cambridgeshire County Council,19-Mar-20,51301336518,"-1,094.40",AURORA ORCHARD MANOR,CARE ESTABLISHMENT,LD - South Locality - Cost of Care,LD - South Cambs - Care,Residential Care
Cambridgeshire County Council,19-Mar-20,51301336518,"-1,094.40",AURORA ORCHARD MANOR,CARE ESTABLISHMENT,LD - South Locality - Cost of Care,LD - South Cambs - Care,Residential Care
Cambridgeshire County Council,19-Mar-20,51301336518,"-1,094.40",AURORA ORCHARD MANOR,CARE ESTABLISHMENT,LD - South Locality - Cost of Care,LD - South Cambs - Care,Residential Care
Cambridgeshire County Council,19-Mar-20,51301336518,"-1,094.40",AURORA ORCHARD MANOR,CARE ESTABLISHMENT,LD - South Locality - Cost of Care,LD - South Cambs - Care,Residential Care
Cambridgeshire County Council,19-Mar-20,51301336518,"-1,094.40",AURORA ORCHARD MANOR,CARE ESTABLISHMENT,LD - South Locality - Cost of Care,LD - South Cambs - Care,Residential Care
Cambridgeshire County Council,19-Mar-20,51301336518,"-1,094.40",AURORA ORCHARD MANOR,CARE ESTABLISHMENT,LD - South Locality - Cost of Care,LD - South Cambs - Care,Residential Care
Cambridgeshire County Council,19-Mar-20,51301336518,"-1,094.40",AURORA ORCHARD MANOR,CARE ESTABLISHMENT,LD - South Locality - Cost of Care,LD - South Cambs - Care,Residential Care
Cambridgeshire County Council,19-Mar-20,51301336518,"-1,094.40",AURORA ORCHARD MANOR,CARE ESTABLISHMENT,LD - South Locality - Cost of Care,LD - South Cambs - Care,Residential Care
Cambridgeshire County Council,19-Mar-20,51301336518,"-1,094.40",AURORA ORCHARD MANOR,CARE ESTABLISHMENT,LD - South Locality - Cost of Care,LD - South Cambs - Care,Residential Care
Cambridgeshire County Council,19-Mar-20,51301336518,"-1,094.40",AURORA ORCHARD MANOR,CARE ESTABLISHMENT,LD - South Locality - Cost of Care,LD - South Cambs - Care,Residential Care
Cambridgeshire County Council,19-Mar-20,51301336518,"-1,094.40",AURORA ORCHARD MANOR,CARE ESTABLISHMENT,LD - South Locality - Cost of Care,LD - South Cambs - Care,Residential Care
Cambridgeshire County Council,19-Mar-20,51301336518,"-1,094.40",AURORA ORCHARD MANOR,CARE ESTABLISHMENT,LD - South Locality - Cost of Care,LD - South Cambs - Care,Residential Care
Cambridgeshire County Council,19-Mar-20,51301336518,"-1,094.40",AURORA ORCHARD MANOR,CARE ESTABLISHMENT,LD - South Locality - Cost of Care,LD - South Cambs - Care,Residential Care
Cambridgeshire County Council,19-Mar-20,51301336518,"-1,094.40",AURORA ORCHARD MANOR,CARE ESTABLISHMENT,LD - South Locality - Cost of Care,LD - South Cambs - Care,Residential Care
Cambridgeshire County Council,19-Mar-20,51301336518,"-1,094.40",AURORA ORCHARD MANOR,CARE ESTABLISHMENT,LD - South Locality - Cost of Care,LD - South Cambs - Care,Residential Care
Cambridgeshire County Council,19-Mar-20,51301336518,"-1,094.40",AURORA ORCHARD MANOR,CARE ESTABLISHMENT,LD - South Locality - Cost of Care,LD - South Cambs - Care,Residential Care
Cambridgeshire County Council,19-Mar-20,51301336518,"-1,094.40",AURORA ORCHARD MANOR,CARE ESTABLISHMENT,LD - South Locality - Cost of Care,LD - South Cambs - Care,Residential Care
Cambridgeshire County Council,19-Mar-20,51301336518,"-1,094.40",AURORA ORCHARD MANOR,CARE ESTABLISHMENT,LD - South Locality - Cost of Care,LD - South Cambs - Care,Residential Care
Cambridgeshire County Council,19-Mar-20,51301336518,"-1,094.40",AURORA ORCHARD MANOR,CARE ESTABLISHMENT,LD - South Locality - Cost of Care,LD - South Cambs - Care,Residential Care
Cambridgeshire County Council,19-Mar-20,51301336518,"-1,094.40",AURORA ORCHARD MANOR,CARE ESTABLISHMENT,LD - South Locality - Cost of Care,LD - South Cambs - Care,Residential Care
Cambridgeshire County Council,19-Mar-20,51301336518,"-1,094.40",AURORA ORCHARD MANOR,CARE ESTABLISHMENT,LD - South Locality - Cost of Care,LD - South Cambs - Care,Residential Care
Cambridgeshire County Council,19-Mar-20,51301336518,"-1,094.40",AURORA ORCHARD MANOR,CARE ESTABLISHMENT,LD - South Locality - Cost of Care,LD - South Cambs - Care,Residential Care
Cambridgeshire County Council,19-Mar-20,51301336518,"-1,094.40",AURORA ORCHARD MANOR,CARE ESTABLISHMENT,LD - South Locality - Cost of Care,LD - South Cambs - Care,Residential Care
Cambridgeshire County Council,19-Mar-20,51301336518,"-1,094.40",AURORA ORCHARD MANOR,CARE ESTABLISHMENT,LD - South Locality - Cost of Care,LD - South Cambs - Care,Residential Care
Cambridgeshire County Council,19-Mar-20,51301336518,"-1,094.40",AURORA ORCHARD MANOR,CARE ESTABLISHMENT,LD - South Locality - Cost of Care,LD - South Cambs - Care,Residential Care
Cambridgeshire County Council,19-Mar-20,51301336518,"-1,094.40",AURORA ORCHARD MANOR,CARE ESTABLISHMENT,LD - South Locality - Cost of Care,LD - South Cambs - Care,Residential Care
Cambridgeshire County Council,19-Mar-20,51301336518,"-1,094.40",AURORA ORCHARD MANOR,CARE ESTABLISHMENT,LD - South Locality - Cost of Care,LD - South Cambs - Care,Residential Care
Cambridgeshire County Council,19-Mar-20,51301336518,"-1,094.40",AURORA ORCHARD MANOR,CARE ESTABLISHMENT,LD - South Locality - Cost of Care,LD - South Cambs - Care,Residential Care
Cambridgeshire County Council,19-Mar-20,51301336518,"-1,094.40",AURORA ORCHARD MANOR,CARE ESTABLISHMENT,LD - South Locality - Cost of Care,LD - South Cambs - Care,Residential Care
Cambridgeshire County Council,19-Mar-20,51301336518,"-1,094.40",AURORA ORCHARD MANOR,CARE ESTABLISHMENT,LD - South Locality - Cost of Care,LD - South Cambs - Care,Residential Care
Cambridgeshire County Council,19-Mar-20,51301336518,"-1,094.40",AURORA ORCHARD MANOR,CARE ESTABLISHMENT,LD - South Locality - Cost of Care,LD - South Cambs - Care,Residential Care
Cambridgeshire County Council,19-Mar-20,51301336518,"-1,094.40",AURORA ORCHARD MANOR,CARE ESTABLISHMENT,LD - South Locality - Cost of Care,LD - South Cambs - Care,Residential Care
Cambridgeshire County Council,19-Mar-20,51301336518,"-1,094.40",AURORA ORCHARD MANOR,CARE ESTABLISHMENT,LD - South Locality - Cost of Care,LD - South Cambs - Care,Residential Care
Cambridgeshire County Council,19-Mar-20,51301336518,"-1,094.40",AURORA ORCHARD MANOR,CARE ESTABLISHMENT,LD - South Locality - Cost of Care,LD - South Cambs - Care,Residential Care
Cambridgeshire County Council,19-Mar-20,51301336518,"-1,094.40",AURORA ORCHARD MANOR,CARE ESTABLISHMENT,LD - South Locality - Cost of Care,LD - South Cambs - Care,Residential Care
Cambridgeshire County Council,19-Mar-20,51301336518,"-1,094.40",AURORA ORCHARD MANOR,CARE ESTABLISHMENT,LD - South Locality - Cost of Care,LD - South Cambs - Care,Residential Care
Cambridgeshire County Council,19-Mar-20,51301336518,"-1,094.40",AURORA ORCHARD MANOR,CARE ESTABLISHMENT,LD - South Locality - Cost of Care,LD - South Cambs - Care,Residential Care
Cambridgeshire County Council,19-Mar-20,51301336518,"-1,094.40",AURORA ORCHARD MANOR,CARE ESTABLISHMENT,LD - South Locality - Cost of Care,LD - South Cambs - Care,Residential Care
Cambridgeshire County Council,19-Mar-20,51301336518,"-1,094.40",AURORA ORCHARD MANOR,CARE ESTABLISHMENT,LD - South Locality - Cost of Care,LD - South Cambs - Care,Residential Care
Cambridgeshire County Council,19-Mar-20,51301336518,"-1,094.40",AURORA ORCHARD MANOR,CARE ESTABLISHMENT,LD - South Locality - Cost of Care,LD - South Cambs - Care,Residential Care
Cambridgeshire County Council,19-Mar-20,51301336518,"-1,094.40",AURORA ORCHARD MANOR,CARE ESTABLISHMENT,LD - South Locality - Cost of Care,LD - South Cambs - Care,Residential Care
Cambridgeshire County Council,19-Mar-20,51301336518,"-1,094.40",AURORA ORCHARD MANOR,CARE ESTABLISHMENT,LD - South Locality - Cost of Care,LD - South Cambs - Care,Residential Care
Cambridgeshire County Council,19-Mar-20,51301336518,"-1,094.40",AURORA ORCHARD MANOR,CARE ESTABLISHMENT,LD - South Locality - Cost of Care,LD - South Cambs - Care,Residential Care
Cambridgeshire County Council,19-Mar-20,51301336518,"-1,094.40",AURORA ORCHARD MANOR,CARE ESTABLISHMENT,LD - South Locality - Cost of Care,LD - South Cambs - Care,Residential Care
Cambridgeshire County Council,19-Mar-20,51301336518,"-1,094.40",AURORA ORCHARD MANOR,CARE ESTABLISHMENT,LD - South Locality - Cost of Care,LD - South Cambs - Care,Residential Care
Cambridgeshire County Council,19-Mar-20,51301336518,"-1,094.40",AURORA ORCHARD MANOR,CARE ESTABLISHMENT,LD - South Locality - Cost of Care,LD - South Cambs - Care,Residential Care
Cambridgeshire County Council,19-Mar-20,51301336518,"-1,094.40",AURORA ORCHARD MANOR,CARE ESTABLISHMENT,LD - South Locality - Cost of Care,LD - South Cambs - Care,Residential Care
Cambridgeshire County Council,19-Mar-20,51301336518,"-1,094.40",AURORA ORCHARD MANOR,CARE ESTABLISHMENT,LD - South Locality - Cost of Care,LD - South Cambs - Care,Residential Care
Cambridgeshire County Council,05-Mar-20,51301328750,"-1,082.59",FITZROY SUPPORT RE 28 RIVERBANK,CARE ESTABLISHMENT,LD - Fenland Locality - Cost of Care,LD - Fenland  - Special Needs,Supported Living
Cambridgeshire County Council,05-Mar-20,51301328750,"-1,082.59",FITZROY SUPPORT RE 28 RIVERBANK,CARE ESTABLISHMENT,LD - Fenland Locality - Cost of Care,LD - Fenland  - Special Needs,Supported Living
Cambridgeshire County Council,05-Mar-20,51301328750,"-1,082.59",FITZROY SUPPORT RE 28 RIVERBANK,CARE ESTABLISHMENT,LD - Fenland Locality - Cost of Care,LD - Fenland  - Special Needs,Supported Living
Cambridgeshire County Council,05-Mar-20,51301328750,"-1,082.59",FITZROY SUPPORT RE 28 RIVERBANK,CARE ESTABLISHMENT,LD - Fenland Locality - Cost of Care,LD - Fenland  - Special Needs,Supported Living
Cambridgeshire County Council,05-Mar-20,51301328750,"-1,082.59",FITZROY SUPPORT RE 28 RIVERBANK,CARE ESTABLISHMENT,LD - Fenland Locality - Cost of Care,LD - Fenland  - Special Needs,Supported Living
Cambridgeshire County Council,05-Mar-20,51301328750,"-1,082.59",FITZROY SUPPORT RE 28 RIVERBANK,CARE ESTABLISHMENT,LD - Fenland Locality - Cost of Care,LD - Fenland  - Special Needs,Supported Living
Cambridgeshire County Council,05-Mar-20,51301328750,"-1,082.59",FITZROY SUPPORT RE 28 RIVERBANK,CARE ESTABLISHMENT,LD - Fenland Locality - Cost of Care,LD - Fenland  - Special Needs,Supported Living
Cambridgeshire County Council,05-Mar-20,51301328750,"-1,082.59",FITZROY SUPPORT RE 28 RIVERBANK,CARE ESTABLISHMENT,LD - Fenland Locality - Cost of Care,LD - Fenland  - Special Needs,Supported Living
Cambridgeshire County Council,05-Mar-20,51301328750,"-1,082.59",FITZROY SUPPORT RE 28 RIVERBANK,CARE ESTABLISHMENT,LD - Fenland Locality - Cost of Care,LD - Fenland  - Special Needs,Supported Living
Cambridgeshire County Council,05-Mar-20,51301328750,"-1,082.59",FITZROY SUPPORT RE 28 RIVERBANK,CARE ESTABLISHMENT,LD - Fenland Locality - Cost of Care,LD - Fenland  - Special Needs,Supported Living
Cambridgeshire County Council,05-Mar-20,51301328750,"-1,082.59",FITZROY SUPPORT RE 28 RIVERBANK,CARE ESTABLISHMENT,LD - Fenland Locality - Cost of Care,LD - Fenland  - Special Needs,Supported Living
Cambridgeshire County Council,05-Mar-20,51301328750,"-1,082.59",FITZROY SUPPORT RE 28 RIVERBANK,CARE ESTABLISHMENT,LD - Fenland Locality - Cost of Care,LD - Fenland  - Special Needs,Supported Living
Cambridgeshire County Council,05-Mar-20,51301328750,"-1,082.59",FITZROY SUPPORT RE 28 RIVERBANK,CARE ESTABLISHMENT,LD - Fenland Locality - Cost of Care,LD - Fenland  - Special Needs,Supported Living
Cambridgeshire County Council,05-Mar-20,51301328750,"-1,082.59",FITZROY SUPPORT RE 28 RIVERBANK,CARE ESTABLISHMENT,LD - Fenland Locality - Cost of Care,LD - Fenland  - Special Needs,Supported Living
Cambridgeshire County Council,05-Mar-20,51301328750,"-1,082.59",FITZROY SUPPORT RE 28 RIVERBANK,CARE ESTABLISHMENT,LD - Fenland Locality - Cost of Care,LD - Fenland  - Special Needs,Supported Living
Cambridgeshire County Council,05-Mar-20,51301328750,"-1,082.59",FITZROY SUPPORT RE 28 RIVERBANK,CARE ESTABLISHMENT,LD - Fenland Locality - Cost of Care,LD - Fenland  - Special Needs,Supported Living
Cambridgeshire County Council,05-Mar-20,51301328750,"-1,082.59",FITZROY SUPPORT RE 28 RIVERBANK,CARE ESTABLISHMENT,LD - Fenland Locality - Cost of Care,LD - Fenland  - Special Needs,Supported Living
Cambridgeshire County Council,05-Mar-20,51301328750,"-1,082.59",FITZROY SUPPORT RE 28 RIVERBANK,CARE ESTABLISHMENT,LD - Fenland Locality - Cost of Care,LD - Fenland  - Special Needs,Supported Living
Cambridgeshire County Council,05-Mar-20,51301328750,"-1,082.59",FITZROY SUPPORT RE 28 RIVERBANK,CARE ESTABLISHMENT,LD - Fenland Locality - Cost of Care,LD - Fenland  - Special Needs,Supported Living
Cambridgeshire County Council,05-Mar-20,51301328750,"-1,082.59",FITZROY SUPPORT RE 28 RIVERBANK,CARE ESTABLISHMENT,LD - Fenland Locality - Cost of Care,LD - Fenland  - Special Needs,Supported Living
Cambridgeshire County Council,05-Mar-20,51301328750,"-1,082.59",FITZROY SUPPORT RE 28 RIVERBANK,CARE ESTABLISHMENT,LD - Fenland Locality - Cost of Care,LD - Fenland  - Special Needs,Supported Living
Cambridgeshire County Council,05-Mar-20,51301328750,"-1,082.59",FITZROY SUPPORT RE 28 RIVERBANK,CARE ESTABLISHMENT,LD - Fenland Locality - Cost of Care,LD - Fenland  - Special Needs,Supported Living
Cambridgeshire County Council,04-Mar-20,51301328426,"-1,055.87",MENCAP (32 KINGS LANE),CARE ESTABLISHMENT,LD - Hunts Locality - Cost of Care,LD - Huntingdonshire - Special Needs,Residential Care
Cambridgeshire County Council,04-Mar-20,51301328426,"-1,055.87",MENCAP (32 KINGS LANE),CARE ESTABLISHMENT,LD - Hunts Locality - Cost of Care,LD - Huntingdonshire - Special Needs,Residential Care
Cambridgeshire County Council,04-Mar-20,51301328426,"-1,055.87",MENCAP (32 KINGS LANE),CARE ESTABLISHMENT,LD - Hunts Locality - Cost of Care,LD - Huntingdonshire - Special Needs,Residential Care
Cambridgeshire County Council,04-Mar-20,51301328426,"-1,055.87",MENCAP (32 KINGS LANE),CARE ESTABLISHMENT,LD - Hunts Locality - Cost of Care,LD - Huntingdonshire - Special Needs,Residential Care
Cambridgeshire County Council,04-Mar-20,51301328426,"-1,055.87",MENCAP (32 KINGS LANE),CARE ESTABLISHMENT,LD - Hunts Locality - Cost of Care,LD - Huntingdonshire - Special Needs,Residential Care
Cambridgeshire County Council,04-Mar-20,51301328426,"-1,055.87",MENCAP (32 KINGS LANE),CARE ESTABLISHMENT,LD - Hunts Locality - Cost of Care,LD - Huntingdonshire - Special Needs,Residential Care
Cambridgeshire County Council,04-Mar-20,51301328426,"-1,055.87",MENCAP (32 KINGS LANE),CARE ESTABLISHMENT,LD - Hunts Locality - Cost of Care,LD - Huntingdonshire - Special Needs,Residential Care
Cambridgeshire County Council,04-Mar-20,51301328426,"-1,055.87",MENCAP (32 KINGS LANE),CARE ESTABLISHMENT,LD - Hunts Locality - Cost of Care,LD - Huntingdonshire - Special Needs,Residential Care
Cambridgeshire County Council,04-Mar-20,51301328426,"-1,055.87",MENCAP (32 KINGS LANE),CARE ESTABLISHMENT,LD - Hunts Locality - Cost of Care,LD - Huntingdonshire - Special Needs,Residential Care
Cambridgeshire County Council,04-Mar-20,51301328426,"-1,055.87",MENCAP (32 KINGS LANE),CARE ESTABLISHMENT,LD - Hunts Locality - Cost of Care,LD - Huntingdonshire - Special Needs,Residential Care
Cambridgeshire County Council,04-Mar-20,51301328426,"-1,055.87",MENCAP (32 KINGS LANE),CARE ESTABLISHMENT,LD - Hunts Locality - Cost of Care,LD - Huntingdonshire - Special Needs,Residential Care
Cambridgeshire County Council,04-Mar-20,51301328426,"-1,055.87",MENCAP (32 KINGS LANE),CARE ESTABLISHMENT,LD - Hunts Locality - Cost of Care,LD - Huntingdonshire - Special Needs,Residential Care
Cambridgeshire County Council,04-Mar-20,51301328426,"-1,055.87",MENCAP (32 KINGS LANE),CARE ESTABLISHMENT,LD - Hunts Locality - Cost of Care,LD - Huntingdonshire - Special Needs,Residential Care
Cambridgeshire County Council,04-Mar-20,51301328426,"-1,055.87",MENCAP (32 KINGS LANE),CARE ESTABLISHMENT,LD - Hunts Locality - Cost of Care,LD - Huntingdonshire - Special Needs,Residential Care
Cambridgeshire County Council,04-Mar-20,51301328426,"-1,055.87",MENCAP (32 KINGS LANE),CARE ESTABLISHMENT,LD - Hunts Locality - Cost of Care,LD - Huntingdonshire - Special Needs,Residential Care
Cambridgeshire County Council,04-Mar-20,51301328426,"-1,055.87",MENCAP (32 KINGS LANE),CARE ESTABLISHMENT,LD - Hunts Locality - Cost of Care,LD - Huntingdonshire - Special Needs,Residential Care
Cambridgeshire County Council,04-Mar-20,51301328426,"-1,055.87",MENCAP (32 KINGS LANE),CARE ESTABLISHMENT,LD - Hunts Locality - Cost of Care,LD - Huntingdonshire - Special Needs,Residential Care
Cambridgeshire County Council,04-Mar-20,51301328426,"-1,055.87",MENCAP (32 KINGS LANE),CARE ESTABLISHMENT,LD - Hunts Locality - Cost of Care,LD - Huntingdonshire - Special Needs,Residential Care
Cambridgeshire County Council,04-Mar-20,51301328426,"-1,055.87",MENCAP (32 KINGS LANE),CARE ESTABLISHMENT,LD - Hunts Locality - Cost of Care,LD - Huntingdonshire - Special Needs,Residential Care
Cambridgeshire County Council,04-Mar-20,51301328426,"-1,055.87",MENCAP (32 KINGS LANE),CARE ESTABLISHMENT,LD - Hunts Locality - Cost of Care,LD - Huntingdonshire - Special Needs,Residential Care
Cambridgeshire County Council,04-Mar-20,51301328426,"-1,055.87",MENCAP (32 KINGS LANE),CARE ESTABLISHMENT,LD - Hunts Locality - Cost of Care,LD - Huntingdonshire - Special Needs,Residential Care
Cambridgeshire County Council,04-Mar-20,51301328426,"-1,055.87",MENCAP (32 KINGS LANE),CARE ESTABLISHMENT,LD - Hunts Locality - Cost of Care,LD - Huntingdonshire - Special Needs,Residential Care
Cambridgeshire County Council,04-Mar-20,51301328426,"-1,055.87",MENCAP (32 KINGS LANE),CARE ESTABLISHMENT,LD - Hunts Locality - Cost of Care,LD - Huntingdonshire - Special Needs,Residential Care
Cambridgeshire County Council,04-Mar-20,51301328426,"-1,055.87",MENCAP (32 KINGS LANE),CARE ESTABLISHMENT,LD - Hunts Locality - Cost of Care,LD - Huntingdonshire - Special Needs,Residential Care
Cambridgeshire County Council,04-Mar-20,51301328426,"-1,055.87",MENCAP (32 KINGS LANE),CARE ESTABLISHMENT,LD - Hunts Locality - Cost of Care,LD - Huntingdonshire - Special Needs,Residential Care
Cambridgeshire County Council,04-Mar-20,51301328426,"-1,055.87",MENCAP (32 KINGS LANE),CARE ESTABLISHMENT,LD - Hunts Locality - Cost of Care,LD - Huntingdonshire - Special Needs,Residential Care
Cambridgeshire County Council,04-Mar-20,51301328426,"-1,055.87",MENCAP (32 KINGS LANE),CARE ESTABLISHMENT,LD - Hunts Locality - Cost of Care,LD - Huntingdonshire - Special Needs,Residential Care
Cambridgeshire County Council,04-Mar-20,51301328426,"-1,055.87",MENCAP (32 KINGS LANE),CARE ESTABLISHMENT,LD - Hunts Locality - Cost of Care,LD - Huntingdonshire - Special Needs,Residential Care
Cambridgeshire County Council,04-Mar-20,51301328426,"-1,055.87",MENCAP (32 KINGS LANE),CARE ESTABLISHMENT,LD - Hunts Locality - Cost of Care,LD - Huntingdonshire - Special Needs,Residential Care
Cambridgeshire County Council,04-Mar-20,51301328426,"-1,055.87",MENCAP (32 KINGS LANE),CARE ESTABLISHMENT,LD - Hunts Locality - Cost of Care,LD - Huntingdonshire - Special Needs,Residential Care
Cambridgeshire County Council,04-Mar-20,51301328426,"-1,055.87",MENCAP (32 KINGS LANE),CARE ESTABLISHMENT,LD - Hunts Locality - Cost of Care,LD - Huntingdonshire - Special Needs,Residential Care
Cambridgeshire County Council,04-Mar-20,51301328426,"-1,055.87",MENCAP (32 KINGS LANE),CARE ESTABLISHMENT,LD - Hunts Locality - Cost of Care,LD - Huntingdonshire - Special Needs,Residential Care
Cambridgeshire County Council,04-Mar-20,51301328426,"-1,055.87",MENCAP (32 KINGS LANE),CARE ESTABLISHMENT,LD - Hunts Locality - Cost of Care,LD - Huntingdonshire - Special Needs,Residential Care
Cambridgeshire County Council,04-Mar-20,51301328426,"-1,055.87",MENCAP (32 KINGS LANE),CARE ESTABLISHMENT,LD - Hunts Locality - Cost of Care,LD - Huntingdonshire - Special Needs,Residential Care
Cambridgeshire County Council,04-Mar-20,51301328426,"-1,055.87",MENCAP (32 KINGS LANE),CARE ESTABLISHMENT,LD - Hunts Locality - Cost of Care,LD - Huntingdonshire - Special Needs,Residential Care
Cambridgeshire County Council,04-Mar-20,51301328426,"-1,055.87",MENCAP (32 KINGS LANE),CARE ESTABLISHMENT,LD - Hunts Locality - Cost of Care,LD - Huntingdonshire - Special Needs,Residential Care
Cambridgeshire County Council,04-Mar-20,51301328426,"-1,055.87",MENCAP (32 KINGS LANE),CARE ESTABLISHMENT,LD - Hunts Locality - Cost of Care,LD - Huntingdonshire - Special Needs,Residential Care
Cambridgeshire County Council,04-Mar-20,51301328426,"-1,055.87",MENCAP (32 KINGS LANE),CARE ESTABLISHMENT,LD - Hunts Locality - Cost of Care,LD - Huntingdonshire - Special Needs,Residential Care
Cambridgeshire County Council,04-Mar-20,51301328426,"-1,055.87",MENCAP (32 KINGS LANE),CARE ESTABLISHMENT,LD - Hunts Locality - Cost of Care,LD - Huntingdonshire - Special Needs,Residential Care
Cambridgeshire County Council,04-Mar-20,51301328426,"-1,055.87",MENCAP (32 KINGS LANE),CARE ESTABLISHMENT,LD - Hunts Locality - Cost of Care,LD - Huntingdonshire - Special Needs,Residential Care
Cambridgeshire County Council,04-Mar-20,51301328426,"-1,055.87",MENCAP (32 KINGS LANE),CARE ESTABLISHMENT,LD - Hunts Locality - Cost of Care,LD - Huntingdonshire - Special Needs,Residential Care
Cambridgeshire County Council,04-Mar-20,51301328426,"-1,055.87",MENCAP (32 KINGS LANE),CARE ESTABLISHMENT,LD - Hunts Locality - Cost of Care,LD - Huntingdonshire - Special Needs,Residential Care
Cambridgeshire County Council,04-Mar-20,51301328426,"-1,055.87",MENCAP (32 KINGS LANE),CARE ESTABLISHMENT,LD - Hunts Locality - Cost of Care,LD - Huntingdonshire - Special Needs,Residential Care
Cambridgeshire County Council,04-Mar-20,51301328426,"-1,055.87",MENCAP (32 KINGS LANE),CARE ESTABLISHMENT,LD - Hunts Locality - Cost of Care,LD - Huntingdonshire - Special Needs,Residential Care
Cambridgeshire County Council,04-Mar-20,51301328426,"-1,055.87",MENCAP (32 KINGS LANE),CARE ESTABLISHMENT,LD - Hunts Locality - Cost of Care,LD - Huntingdonshire - Special Needs,Residential Care
Cambridgeshire County Council,04-Mar-20,51301328426,"-1,055.87",MENCAP (32 KINGS LANE),CARE ESTABLISHMENT,LD - Hunts Locality - Cost of Care,LD - Huntingdonshire - Special Needs,Residential Care
Cambridgeshire County Council,04-Mar-20,51301328426,"-1,055.87",MENCAP (32 KINGS LANE),CARE ESTABLISHMENT,LD - Hunts Locality - Cost of Care,LD - Huntingdonshire - Special Needs,Residential Care
Cambridgeshire County Council,04-Mar-20,51301328426,"-1,055.87",MENCAP (32 KINGS LANE),CARE ESTABLISHMENT,LD - Hunts Locality - Cost of Care,LD - Huntingdonshire - Special Needs,Residential Care
Cambridgeshire County Council,04-Mar-20,51301328426,"-1,055.87",MENCAP (32 KINGS LANE),CARE ESTABLISHMENT,LD - Hunts Locality - Cost of Care,LD - Huntingdonshire - Special Needs,Residential Care
Cambridgeshire County Council,04-Mar-20,51301328426,"-1,055.87",MENCAP (32 KINGS LANE),CARE ESTABLISHMENT,LD - Hunts Locality - Cost of Care,LD - Huntingdonshire - Special Needs,Residential Care
Cambridgeshire County Council,04-Mar-20,51301328426,"-1,055.87",MENCAP (32 KINGS LANE),CARE ESTABLISHMENT,LD - Hunts Locality - Cost of Care,LD - Huntingdonshire - Special Needs,Residential Care
Cambridgeshire County Council,25-Mar-20,51301342512,"-1,053.05",AFFINITY TRUST,CARE ESTABLISHMENT,LD - Fenland Locality - Cost of Care,LD - Fenland  - Special Needs,Supported Living
Cambridgeshire County Council,12-Mar-20,51301331252,"-1,047.60",PINETREES (TRACSCARE 2006 LTD),CARE ESTABLISHMENT,LD - Fenland Locality - Cost of Care,LD - Fenland  - Special Needs,Residential Care
Cambridgeshire County Council,12-Mar-20,51301331252,"-1,047.60",PINETREES (TRACSCARE 2006 LTD),CARE ESTABLISHMENT,LD - Fenland Locality - Cost of Care,LD - Fenland  - Special Needs,Residential Care
Cambridgeshire County Council,12-Mar-20,51301331252,"-1,047.60",PINETREES (TRACSCARE 2006 LTD),CARE ESTABLISHMENT,LD - Fenland Locality - Cost of Care,LD - Fenland  - Special Needs,Residential Care
Cambridgeshire County Council,12-Mar-20,51301331252,"-1,047.60",PINETREES (TRACSCARE 2006 LTD),CARE ESTABLISHMENT,LD - Fenland Locality - Cost of Care,LD - Fenland  - Special Needs,Residential Care
Cambridgeshire County Council,12-Mar-20,51301331252,"-1,047.60",PINETREES (TRACSCARE 2006 LTD),CARE ESTABLISHMENT,LD - Fenland Locality - Cost of Care,LD - Fenland  - Special Needs,Residential Care
Cambridgeshire County Council,12-Mar-20,51301331252,"-1,047.60",PINETREES (TRACSCARE 2006 LTD),CARE ESTABLISHMENT,LD - Fenland Locality - Cost of Care,LD - Fenland  - Special Needs,Residential Care
Cambridgeshire County Council,12-Mar-20,51301331252,"-1,047.60",PINETREES (TRACSCARE 2006 LTD),CARE ESTABLISHMENT,LD - Fenland Locality - Cost of Care,LD - Fenland  - Special Needs,Residential Care
Cambridgeshire County Council,12-Mar-20,51301331252,"-1,047.60",PINETREES (TRACSCARE 2006 LTD),CARE ESTABLISHMENT,LD - Fenland Locality - Cost of Care,LD - Fenland  - Special Needs,Residential Care
Cambridgeshire County Council,12-Mar-20,51301331252,"-1,047.60",PINETREES (TRACSCARE 2006 LTD),CARE ESTABLISHMENT,LD - Fenland Locality - Cost of Care,LD - Fenland  - Special Needs,Residential Care
Cambridgeshire County Council,12-Mar-20,51301331252,"-1,047.60",PINETREES (TRACSCARE 2006 LTD),CARE ESTABLISHMENT,LD - Fenland Locality - Cost of Care,LD - Fenland  - Special Needs,Residential Care
Cambridgeshire County Council,12-Mar-20,51301331252,"-1,047.60",PINETREES (TRACSCARE 2006 LTD),CARE ESTABLISHMENT,LD - Fenland Locality - Cost of Care,LD - Fenland  - Special Needs,Residential Care
Cambridgeshire County Council,12-Mar-20,51301331252,"-1,047.60",PINETREES (TRACSCARE 2006 LTD),CARE ESTABLISHMENT,LD - Fenland Locality - Cost of Care,LD - Fenland  - Special Needs,Residential Care
Cambridgeshire County Council,12-Mar-20,51301331252,"-1,047.60",PINETREES (TRACSCARE 2006 LTD),CARE ESTABLISHMENT,LD - Fenland Locality - Cost of Care,LD - Fenland  - Special Needs,Residential Care
Cambridgeshire County Council,12-Mar-20,51301331252,"-1,047.60",PINETREES (TRACSCARE 2006 LTD),CARE ESTABLISHMENT,LD - Fenland Locality - Cost of Care,LD - Fenland  - Special Needs,Residential Care
Cambridgeshire County Council,12-Mar-20,51301331252,"-1,047.60",PINETREES (TRACSCARE 2006 LTD),CARE ESTABLISHMENT,LD - Fenland Locality - Cost of Care,LD - Fenland  - Special Needs,Residential Care
Cambridgeshire County Council,12-Mar-20,51301331252,"-1,047.60",PINETREES (TRACSCARE 2006 LTD),CARE ESTABLISHMENT,LD - Fenland Locality - Cost of Care,LD - Fenland  - Special Needs,Residential Care
Cambridgeshire County Council,12-Mar-20,51301331252,"-1,047.60",PINETREES (TRACSCARE 2006 LTD),CARE ESTABLISHMENT,LD - Fenland Locality - Cost of Care,LD - Fenland  - Special Needs,Residential Care
Cambridgeshire County Council,12-Mar-20,51301331252,"-1,047.60",PINETREES (TRACSCARE 2006 LTD),CARE ESTABLISHMENT,LD - Fenland Locality - Cost of Care,LD - Fenland  - Special Needs,Residential Care
Cambridgeshire County Council,12-Mar-20,51301331252,"-1,047.60",PINETREES (TRACSCARE 2006 LTD),CARE ESTABLISHMENT,LD - Fenland Locality - Cost of Care,LD - Fenland  - Special Needs,Residential Care
Cambridgeshire County Council,12-Mar-20,51301331252,"-1,047.60",PINETREES (TRACSCARE 2006 LTD),CARE ESTABLISHMENT,LD - Fenland Locality - Cost of Care,LD - Fenland  - Special Needs,Residential Care
Cambridgeshire County Council,12-Mar-20,51301331252,"-1,047.60",PINETREES (TRACSCARE 2006 LTD),CARE ESTABLISHMENT,LD - Fenland Locality - Cost of Care,LD - Fenland  - Special Needs,Residential Care
Cambridgeshire County Council,12-Mar-20,51301331252,"-1,047.60",PINETREES (TRACSCARE 2006 LTD),CARE ESTABLISHMENT,LD - Fenland Locality - Cost of Care,LD - Fenland  - Special Needs,Residential Care
Cambridgeshire County Council,12-Mar-20,51301331252,"-1,047.60",PINETREES (TRACSCARE 2006 LTD),CARE ESTABLISHMENT,LD - Fenland Locality - Cost of Care,LD - Fenland  - Special Needs,Residential Care
Cambridgeshire County Council,12-Mar-20,51301331252,"-1,047.60",PINETREES (TRACSCARE 2006 LTD),CARE ESTABLISHMENT,LD - Fenland Locality - Cost of Care,LD - Fenland  - Special Needs,Residential Care
Cambridgeshire County Council,12-Mar-20,51301331252,"-1,047.60",PINETREES (TRACSCARE 2006 LTD),CARE ESTABLISHMENT,LD - Fenland Locality - Cost of Care,LD - Fenland  - Special Needs,Residential Care
Cambridgeshire County Council,12-Mar-20,51301331252,"-1,047.60",PINETREES (TRACSCARE 2006 LTD),CARE ESTABLISHMENT,LD - Fenland Locality - Cost of Care,LD - Fenland  - Special Needs,Residential Care
Cambridgeshire County Council,12-Mar-20,51301331252,"-1,047.60",PINETREES (TRACSCARE 2006 LTD),CARE ESTABLISHMENT,LD - Fenland Locality - Cost of Care,LD - Fenland  - Special Needs,Residential Care
Cambridgeshire County Council,12-Mar-20,51301331252,"-1,047.60",PINETREES (TRACSCARE 2006 LTD),CARE ESTABLISHMENT,LD - Fenland Locality - Cost of Care,LD - Fenland  - Special Needs,Residential Care
Cambridgeshire County Council,12-Mar-20,51301331252,"-1,047.60",PINETREES (TRACSCARE 2006 LTD),CARE ESTABLISHMENT,LD - Fenland Locality - Cost of Care,LD - Fenland  - Special Needs,Residential Care
Cambridgeshire County Council,12-Mar-20,51301331252,"-1,047.60",PINETREES (TRACSCARE 2006 LTD),CARE ESTABLISHMENT,LD - Fenland Locality - Cost of Care,LD - Fenland  - Special Needs,Residential Care
Cambridgeshire County Council,12-Mar-20,51301331252,"-1,047.60",PINETREES (TRACSCARE 2006 LTD),CARE ESTABLISHMENT,LD - Fenland Locality - Cost of Care,LD - Fenland  - Special Needs,Residential Care
Cambridgeshire County Council,12-Mar-20,51301331252,"-1,047.60",PINETREES (TRACSCARE 2006 LTD),CARE ESTABLISHMENT,LD - Fenland Locality - Cost of Care,LD - Fenland  - Special Needs,Residential Care
Cambridgeshire County Council,12-Mar-20,51301331252,"-1,047.60",PINETREES (TRACSCARE 2006 LTD),CARE ESTABLISHMENT,LD - Fenland Locality - Cost of Care,LD - Fenland  - Special Needs,Residential Care
Cambridgeshire County Council,12-Mar-20,51301331252,"-1,047.60",PINETREES (TRACSCARE 2006 LTD),CARE ESTABLISHMENT,LD - Fenland Locality - Cost of Care,LD - Fenland  - Special Needs,Residential Care
Cambridgeshire County Council,12-Mar-20,51301331252,"-1,047.60",PINETREES (TRACSCARE 2006 LTD),CARE ESTABLISHMENT,LD - Fenland Locality - Cost of Care,LD - Fenland  - Special Needs,Residential Care
Cambridgeshire County Council,12-Mar-20,51301331252,"-1,047.60",PINETREES (TRACSCARE 2006 LTD),CARE ESTABLISHMENT,LD - Fenland Locality - Cost of Care,LD - Fenland  - Special Needs,Residential Care
Cambridgeshire County Council,12-Mar-20,51301331252,"-1,047.60",PINETREES (TRACSCARE 2006 LTD),CARE ESTABLISHMENT,LD - Fenland Locality - Cost of Care,LD - Fenland  - Special Needs,Residential Care
Cambridgeshire County Council,12-Mar-20,51301331252,"-1,047.60",PINETREES (TRACSCARE 2006 LTD),CARE ESTABLISHMENT,LD - Fenland Locality - Cost of Care,LD - Fenland  - Special Needs,Residential Care
Cambridgeshire County Council,12-Mar-20,51301331252,"-1,047.60",PINETREES (TRACSCARE 2006 LTD),CARE ESTABLISHMENT,LD - Fenland Locality - Cost of Care,LD - Fenland  - Special Needs,Residential Care
Cambridgeshire County Council,12-Mar-20,51301331252,"-1,047.60",PINETREES (TRACSCARE 2006 LTD),CARE ESTABLISHMENT,LD - Fenland Locality - Cost of Care,LD - Fenland  - Special Needs,Residential Care
Cambridgeshire County Council,12-Mar-20,51301331252,"-1,047.60",PINETREES (TRACSCARE 2006 LTD),CARE ESTABLISHMENT,LD - Fenland Locality - Cost of Care,LD - Fenland  - Special Needs,Residential Care
Cambridgeshire County Council,12-Mar-20,51301331252,"-1,047.60",PINETREES (TRACSCARE 2006 LTD),CARE ESTABLISHMENT,LD - Fenland Locality - Cost of Care,LD - Fenland  - Special Needs,Residential Care
Cambridgeshire County Council,12-Mar-20,51301331252,"-1,047.60",PINETREES (TRACSCARE 2006 LTD),CARE ESTABLISHMENT,LD - Fenland Locality - Cost of Care,LD - Fenland  - Special Needs,Residential Care
Cambridgeshire County Council,12-Mar-20,51301331252,"-1,047.60",PINETREES (TRACSCARE 2006 LTD),CARE ESTABLISHMENT,LD - Fenland Locality - Cost of Care,LD - Fenland  - Special Needs,Residential Care
Cambridgeshire County Council,12-Mar-20,51301331252,"-1,047.60",PINETREES (TRACSCARE 2006 LTD),CARE ESTABLISHMENT,LD - Fenland Locality - Cost of Care,LD - Fenland  - Special Needs,Residential Care
Cambridgeshire County Council,12-Mar-20,51301331252,"-1,047.60",PINETREES (TRACSCARE 2006 LTD),CARE ESTABLISHMENT,LD - Fenland Locality - Cost of Care,LD - Fenland  - Special Needs,Residential Care
Cambridgeshire County Council,12-Mar-20,51301331252,"-1,047.60",PINETREES (TRACSCARE 2006 LTD),CARE ESTABLISHMENT,LD - Fenland Locality - Cost of Care,LD - Fenland  - Special Needs,Residential Care
Cambridgeshire County Council,12-Mar-20,51301331252,"-1,047.60",PINETREES (TRACSCARE 2006 LTD),CARE ESTABLISHMENT,LD - Fenland Locality - Cost of Care,LD - Fenland  - Special Needs,Residential Care
Cambridgeshire County Council,12-Mar-20,51301331252,"-1,047.60",PINETREES (TRACSCARE 2006 LTD),CARE ESTABLISHMENT,LD - Fenland Locality - Cost of Care,LD - Fenland  - Special Needs,Residential Care
Cambridgeshire County Council,12-Mar-20,51301331252,"-1,047.60",PINETREES (TRACSCARE 2006 LTD),CARE ESTABLISHMENT,LD - Fenland Locality - Cost of Care,LD - Fenland  - Special Needs,Residential Care
Cambridgeshire County Council,12-Mar-20,51301331252,"-1,047.60",PINETREES (TRACSCARE 2006 LTD),CARE ESTABLISHMENT,LD - Fenland Locality - Cost of Care,LD - Fenland  - Special Needs,Residential Care
Cambridgeshire County Council,20-Mar-20,51301338314,"-1,041.88",DIMENSIONS (UK) LTD,CARE ESTABLISHMENT,LD - South Locality - Cost of Care,LD - South Cambs - Care,Supported Living
Cambridgeshire County Council,20-Mar-20,51301338314,"-1,041.88",DIMENSIONS (UK) LTD,CARE ESTABLISHMENT,LD - South Locality - Cost of Care,LD - South Cambs - Care,Supported Living
Cambridgeshire County Council,20-Mar-20,51301338314,"-1,041.88",DIMENSIONS (UK) LTD,CARE ESTABLISHMENT,LD - South Locality - Cost of Care,LD - South Cambs - Care,Supported Living
Cambridgeshire County Council,20-Mar-20,51301338314,"-1,041.88",DIMENSIONS (UK) LTD,CARE ESTABLISHMENT,LD - South Locality - Cost of Care,LD - South Cambs - Care,Supported Living
Cambridgeshire County Council,20-Mar-20,51301338314,"-1,041.88",DIMENSIONS (UK) LTD,CARE ESTABLISHMENT,LD - South Locality - Cost of Care,LD - South Cambs - Care,Supported Living
Cambridgeshire County Council,20-Mar-20,51301338314,"-1,041.88",DIMENSIONS (UK) LTD,CARE ESTABLISHMENT,LD - South Locality - Cost of Care,LD - South Cambs - Care,Supported Living
Cambridgeshire County Council,20-Mar-20,51301338314,"-1,041.88",DIMENSIONS (UK) LTD,CARE ESTABLISHMENT,LD - South Locality - Cost of Care,LD - South Cambs - Care,Supported Living
Cambridgeshire County Council,20-Mar-20,51301338314,"-1,041.88",DIMENSIONS (UK) LTD,CARE ESTABLISHMENT,LD - South Locality - Cost of Care,LD - South Cambs - Care,Supported Living
Cambridgeshire County Council,20-Mar-20,51301338314,"-1,041.88",DIMENSIONS (UK) LTD,CARE ESTABLISHMENT,LD - South Locality - Cost of Care,LD - South Cambs - Care,Supported Living
Cambridgeshire County Council,20-Mar-20,51301338314,"-1,041.88",DIMENSIONS (UK) LTD,CARE ESTABLISHMENT,LD - South Locality - Cost of Care,LD - South Cambs - Care,Supported Living
Cambridgeshire County Council,20-Mar-20,51301338314,"-1,041.88",DIMENSIONS (UK) LTD,CARE ESTABLISHMENT,LD - South Locality - Cost of Care,LD - South Cambs - Care,Supported Living
Cambridgeshire County Council,20-Mar-20,51301338314,"-1,041.88",DIMENSIONS (UK) LTD,CARE ESTABLISHMENT,LD - South Locality - Cost of Care,LD - South Cambs - Care,Supported Living
Cambridgeshire County Council,20-Mar-20,51301338314,"-1,041.88",DIMENSIONS (UK) LTD,CARE ESTABLISHMENT,LD - South Locality - Cost of Care,LD - South Cambs - Care,Supported Living
Cambridgeshire County Council,20-Mar-20,51301338314,"-1,041.88",DIMENSIONS (UK) LTD,CARE ESTABLISHMENT,LD - South Locality - Cost of Care,LD - South Cambs - Care,Supported Living
Cambridgeshire County Council,20-Mar-20,51301338314,"-1,041.88",DIMENSIONS (UK) LTD,CARE ESTABLISHMENT,LD - South Locality - Cost of Care,LD - South Cambs - Care,Supported Living
Cambridgeshire County Council,20-Mar-20,51301338314,"-1,041.88",DIMENSIONS (UK) LTD,CARE ESTABLISHMENT,LD - South Locality - Cost of Care,LD - South Cambs - Care,Supported Living
Cambridgeshire County Council,20-Mar-20,51301338314,"-1,041.88",DIMENSIONS (UK) LTD,CARE ESTABLISHMENT,LD - South Locality - Cost of Care,LD - South Cambs - Care,Supported Living
Cambridgeshire County Council,20-Mar-20,51301338314,"-1,041.88",DIMENSIONS (UK) LTD,CARE ESTABLISHMENT,LD - South Locality - Cost of Care,LD - South Cambs - Care,Supported Living
Cambridgeshire County Council,20-Mar-20,51301338314,"-1,041.88",DIMENSIONS (UK) LTD,CARE ESTABLISHMENT,LD - South Locality - Cost of Care,LD - South Cambs - Care,Supported Living
Cambridgeshire County Council,20-Mar-20,51301338314,"-1,041.88",DIMENSIONS (UK) LTD,CARE ESTABLISHMENT,LD - South Locality - Cost of Care,LD - South Cambs - Care,Supported Living
Cambridgeshire County Council,20-Mar-20,51301338314,"-1,041.88",DIMENSIONS (UK) LTD,CARE ESTABLISHMENT,LD - South Locality - Cost of Care,LD - South Cambs - Care,Supported Living
Cambridgeshire County Council,20-Mar-20,51301338314,"-1,041.88",DIMENSIONS (UK) LTD,CARE ESTABLISHMENT,LD - South Locality - Cost of Care,LD - South Cambs - Care,Supported Living
Cambridgeshire County Council,19-Mar-20,51301335868,"-1,040.05",BROAD OAKS VCT LTD,CARE ESTABLISHMENT,LD - Hunts Locality - Cost of Care,LD - Huntingdonshire - Care,Supported Living
Cambridgeshire County Council,19-Mar-20,51301335868,"-1,040.05",BROAD OAKS VCT LTD,CARE ESTABLISHMENT,LD - Hunts Locality - Cost of Care,LD - Huntingdonshire - Care,Supported Living
Cambridgeshire County Council,19-Mar-20,51301335868,"-1,040.05",BROAD OAKS VCT LTD,CARE ESTABLISHMENT,LD - Hunts Locality - Cost of Care,LD - Huntingdonshire - Care,Supported Living
Cambridgeshire County Council,19-Mar-20,51301335868,"-1,040.05",BROAD OAKS VCT LTD,CARE ESTABLISHMENT,LD - Hunts Locality - Cost of Care,LD - Huntingdonshire - Care,Supported Living
Cambridgeshire County Council,19-Mar-20,51301335868,"-1,040.05",BROAD OAKS VCT LTD,CARE ESTABLISHMENT,LD - Hunts Locality - Cost of Care,LD - Huntingdonshire - Care,Supported Living
Cambridgeshire County Council,19-Mar-20,51301335868,"-1,040.05",BROAD OAKS VCT LTD,CARE ESTABLISHMENT,LD - Hunts Locality - Cost of Care,LD - Huntingdonshire - Care,Supported Living
Cambridgeshire County Council,19-Mar-20,51301335868,"-1,040.05",BROAD OAKS VCT LTD,CARE ESTABLISHMENT,LD - Hunts Locality - Cost of Care,LD - Huntingdonshire - Care,Supported Living
Cambridgeshire County Council,19-Mar-20,51301335868,"-1,040.05",BROAD OAKS VCT LTD,CARE ESTABLISHMENT,LD - Hunts Locality - Cost of Care,LD - Huntingdonshire - Care,Supported Living
Cambridgeshire County Council,19-Mar-20,51301335868,"-1,040.05",BROAD OAKS VCT LTD,CARE ESTABLISHMENT,LD - Hunts Locality - Cost of Care,LD - Huntingdonshire - Care,Supported Living
Cambridgeshire County Council,19-Mar-20,51301335868,"-1,040.05",BROAD OAKS VCT LTD,CARE ESTABLISHMENT,LD - Hunts Locality - Cost of Care,LD - Huntingdonshire - Care,Supported Living
Cambridgeshire County Council,19-Mar-20,51301335868,"-1,040.05",BROAD OAKS VCT LTD,CARE ESTABLISHMENT,LD - Hunts Locality - Cost of Care,LD - Huntingdonshire - Care,Supported Living
Cambridgeshire County Council,19-Mar-20,51301335868,"-1,040.05",BROAD OAKS VCT LTD,CARE ESTABLISHMENT,LD - Hunts Locality - Cost of Care,LD - Huntingdonshire - Care,Supported Living
Cambridgeshire County Council,19-Mar-20,51301335868,"-1,040.05",BROAD OAKS VCT LTD,CARE ESTABLISHMENT,LD - Hunts Locality - Cost of Care,LD - Huntingdonshire - Care,Supported Living
Cambridgeshire County Council,19-Mar-20,51301335868,"-1,040.05",BROAD OAKS VCT LTD,CARE ESTABLISHMENT,LD - Hunts Locality - Cost of Care,LD - Huntingdonshire - Care,Supported Living
Cambridgeshire County Council,19-Mar-20,51301335868,"-1,040.05",BROAD OAKS VCT LTD,CARE ESTABLISHMENT,LD - Hunts Locality - Cost of Care,LD - Huntingdonshire - Care,Supported Living
Cambridgeshire County Council,19-Mar-20,51301335868,"-1,040.05",BROAD OAKS VCT LTD,CARE ESTABLISHMENT,LD - Hunts Locality - Cost of Care,LD - Huntingdonshire - Care,Supported Living
Cambridgeshire County Council,19-Mar-20,51301335868,"-1,040.05",BROAD OAKS VCT LTD,CARE ESTABLISHMENT,LD - Hunts Locality - Cost of Care,LD - Huntingdonshire - Care,Supported Living
Cambridgeshire County Council,19-Mar-20,51301335868,"-1,040.05",BROAD OAKS VCT LTD,CARE ESTABLISHMENT,LD - Hunts Locality - Cost of Care,LD - Huntingdonshire - Care,Supported Living
Cambridgeshire County Council,19-Mar-20,51301335868,"-1,040.05",BROAD OAKS VCT LTD,CARE ESTABLISHMENT,LD - Hunts Locality - Cost of Care,LD - Huntingdonshire - Care,Supported Living
Cambridgeshire County Council,19-Mar-20,51301335868,"-1,040.05",BROAD OAKS VCT LTD,CARE ESTABLISHMENT,LD - Hunts Locality - Cost of Care,LD - Huntingdonshire - Care,Supported Living
Cambridgeshire County Council,19-Mar-20,51301335868,"-1,040.05",BROAD OAKS VCT LTD,CARE ESTABLISHMENT,LD - Hunts Locality - Cost of Care,LD - Huntingdonshire - Care,Supported Living
Cambridgeshire County Council,19-Mar-20,51301335868,"-1,040.05",BROAD OAKS VCT LTD,CARE ESTABLISHMENT,LD - Hunts Locality - Cost of Care,LD - Huntingdonshire - Care,Supported Living
Cambridgeshire County Council,19-Mar-20,51301336408,"-1,028.57",SOHAM LODGE,CARE ESTABLISHMENT,OP - East Cambs Locality - Cost of Care,East Cambs - O P Team - Care,Nursing Care
Cambridgeshire County Council,19-Mar-20,51301320429,"-1,025.00",THE GABLES (NURSING CARE ONLY),CARE ESTABLISHMENT,Physical Disablity - Cost of Care,Countywide PD Service - Care,Nursing Care
Cambridgeshire County Council,19-Mar-20,51301320429,"-1,025.00",THE GABLES (NURSING CARE ONLY),CARE ESTABLISHMENT,Physical Disablity - Cost of Care,Countywide PD Service - Care,Nursing Care
Cambridgeshire County Council,19-Mar-20,51301320429,"-1,025.00",THE GABLES (NURSING CARE ONLY),CARE ESTABLISHMENT,Physical Disablity - Cost of Care,Countywide PD Service - Care,Nursing Care
Cambridgeshire County Council,19-Mar-20,51301320428,"-1,025.00",THE GABLES (NURSING CARE ONLY),CARE ESTABLISHMENT,Physical Disablity - Cost of Care,Countywide PD Service - Care,Nursing Care
Cambridgeshire County Council,19-Mar-20,51301320429,"-1,025.00",THE GABLES (NURSING CARE ONLY),CARE ESTABLISHMENT,Physical Disablity - Cost of Care,Countywide PD Service - Care,Nursing Care
Cambridgeshire County Council,19-Mar-20,51301320428,"-1,025.00",THE GABLES (NURSING CARE ONLY),CARE ESTABLISHMENT,Physical Disablity - Cost of Care,Countywide PD Service - Care,Nursing Care
Cambridgeshire County Council,19-Mar-20,51301320429,"-1,025.00",THE GABLES (NURSING CARE ONLY),CARE ESTABLISHMENT,Physical Disablity - Cost of Care,Countywide PD Service - Care,Nursing Care
Cambridgeshire County Council,19-Mar-20,51301320429,"-1,025.00",THE GABLES (NURSING CARE ONLY),CARE ESTABLISHMENT,Physical Disablity - Cost of Care,Countywide PD Service - Care,Nursing Care
Cambridgeshire County Council,19-Mar-20,51301320428,"-1,025.00",THE GABLES (NURSING CARE ONLY),CARE ESTABLISHMENT,Physical Disablity - Cost of Care,Countywide PD Service - Care,Nursing Care
Cambridgeshire County Council,19-Mar-20,51301320428,"-1,025.00",THE GABLES (NURSING CARE ONLY),CARE ESTABLISHMENT,Physical Disablity - Cost of Care,Countywide PD Service - Care,Nursing Care
Cambridgeshire County Council,19-Mar-20,51301320429,"-1,025.00",THE GABLES (NURSING CARE ONLY),CARE ESTABLISHMENT,Physical Disablity - Cost of Care,Countywide PD Service - Care,Nursing Care
Cambridgeshire County Council,19-Mar-20,51301320429,"-1,025.00",THE GABLES (NURSING CARE ONLY),CARE ESTABLISHMENT,Physical Disablity - Cost of Care,Countywide PD Service - Care,Nursing Care
Cambridgeshire County Council,19-Mar-20,51301320429,"-1,025.00",THE GABLES (NURSING CARE ONLY),CARE ESTABLISHMENT,Physical Disablity - Cost of Care,Countywide PD Service - Care,Nursing Care
Cambridgeshire County Council,19-Mar-20,51301320429,"-1,025.00",THE GABLES (NURSING CARE ONLY),CARE ESTABLISHMENT,Physical Disablity - Cost of Care,Countywide PD Service - Care,Nursing Care
Cambridgeshire County Council,19-Mar-20,51301320429,"-1,025.00",THE GABLES (NURSING CARE ONLY),CARE ESTABLISHMENT,Physical Disablity - Cost of Care,Countywide PD Service - Care,Nursing Care
Cambridgeshire County Council,19-Mar-20,51301320429,"-1,025.00",THE GABLES (NURSING CARE ONLY),CARE ESTABLISHMENT,Physical Disablity - Cost of Care,Countywide PD Service - Care,Nursing Care
Cambridgeshire County Council,19-Mar-20,51301320429,"-1,025.00",THE GABLES (NURSING CARE ONLY),CARE ESTABLISHMENT,Physical Disablity - Cost of Care,Countywide PD Service - Care,Nursing Care
Cambridgeshire County Council,19-Mar-20,51301320429,"-1,025.00",THE GABLES (NURSING CARE ONLY),CARE ESTABLISHMENT,Physical Disablity - Cost of Care,Countywide PD Service - Care,Nursing Care
Cambridgeshire County Council,19-Mar-20,51301320428,"-1,025.00",THE GABLES (NURSING CARE ONLY),CARE ESTABLISHMENT,Physical Disablity - Cost of Care,Countywide PD Service - Care,Nursing Care
Cambridgeshire County Council,19-Mar-20,51301320428,"-1,025.00",THE GABLES (NURSING CARE ONLY),CARE ESTABLISHMENT,Physical Disablity - Cost of Care,Countywide PD Service - Care,Nursing Care
Cambridgeshire County Council,19-Mar-20,51301320429,"-1,025.00",THE GABLES (NURSING CARE ONLY),CARE ESTABLISHMENT,Physical Disablity - Cost of Care,Countywide PD Service - Care,Nursing Care
Cambridgeshire County Council,19-Mar-20,51301320429,"-1,025.00",THE GABLES (NURSING CARE ONLY),CARE ESTABLISHMENT,Physical Disablity - Cost of Care,Countywide PD Service - Care,Nursing Care
Cambridgeshire County Council,19-Mar-20,51301320429,"-1,025.00",THE GABLES (NURSING CARE ONLY),CARE ESTABLISHMENT,Physical Disablity - Cost of Care,Countywide PD Service - Care,Nursing Care
Cambridgeshire County Council,19-Mar-20,51301320429,"-1,025.00",THE GABLES (NURSING CARE ONLY),CARE ESTABLISHMENT,Physical Disablity - Cost of Care,Countywide PD Service - Care,Nursing Care
Cambridgeshire County Council,19-Mar-20,51301320429,"-1,025.00",THE GABLES (NURSING CARE ONLY),CARE ESTABLISHMENT,Physical Disablity - Cost of Care,Countywide PD Service - Care,Nursing Care
Cambridgeshire County Council,19-Mar-20,51301320428,"-1,025.00",THE GABLES (NURSING CARE ONLY),CARE ESTABLISHMENT,Physical Disablity - Cost of Care,Countywide PD Service - Care,Nursing Care
Cambridgeshire County Council,19-Mar-20,51301320428,"-1,025.00",THE GABLES (NURSING CARE ONLY),CARE ESTABLISHMENT,Physical Disablity - Cost of Care,Countywide PD Service - Care,Nursing Care
Cambridgeshire County Council,19-Mar-20,51301320428,"-1,025.00",THE GABLES (NURSING CARE ONLY),CARE ESTABLISHMENT,Physical Disablity - Cost of Care,Countywide PD Service - Care,Nursing Care
Cambridgeshire County Council,19-Mar-20,51301320428,"-1,025.00",THE GABLES (NURSING CARE ONLY),CARE ESTABLISHMENT,Physical Disablity - Cost of Care,Countywide PD Service - Care,Nursing Care
Cambridgeshire County Council,19-Mar-20,51301320428,"-1,025.00",THE GABLES (NURSING CARE ONLY),CARE ESTABLISHMENT,Physical Disablity - Cost of Care,Countywide PD Service - Care,Nursing Care
Cambridgeshire County Council,19-Mar-20,51301320429,"-1,025.00",THE GABLES (NURSING CARE ONLY),CARE ESTABLISHMENT,Physical Disablity - Cost of Care,Countywide PD Service - Care,Nursing Care
Cambridgeshire County Council,19-Mar-20,51301320429,"-1,025.00",THE GABLES (NURSING CARE ONLY),CARE ESTABLISHMENT,Physical Disablity - Cost of Care,Countywide PD Service - Care,Nursing Care
Cambridgeshire County Council,19-Mar-20,51301320429,"-1,025.00",THE GABLES (NURSING CARE ONLY),CARE ESTABLISHMENT,Physical Disablity - Cost of Care,Countywide PD Service - Care,Nursing Care
Cambridgeshire County Council,19-Mar-20,51301320429,"-1,025.00",THE GABLES (NURSING CARE ONLY),CARE ESTABLISHMENT,Physical Disablity - Cost of Care,Countywide PD Service - Care,Nursing Care
Cambridgeshire County Council,19-Mar-20,51301320429,"-1,025.00",THE GABLES (NURSING CARE ONLY),CARE ESTABLISHMENT,Physical Disablity - Cost of Care,Countywide PD Service - Care,Nursing Care
Cambridgeshire County Council,19-Mar-20,51301320429,"-1,025.00",THE GABLES (NURSING CARE ONLY),CARE ESTABLISHMENT,Physical Disablity - Cost of Care,Countywide PD Service - Care,Nursing Care
Cambridgeshire County Council,19-Mar-20,51301320429,"-1,025.00",THE GABLES (NURSING CARE ONLY),CARE ESTABLISHMENT,Physical Disablity - Cost of Care,Countywide PD Service - Care,Nursing Care
Cambridgeshire County Council,19-Mar-20,51301320429,"-1,025.00",THE GABLES (NURSING CARE ONLY),CARE ESTABLISHMENT,Physical Disablity - Cost of Care,Countywide PD Service - Care,Nursing Care
Cambridgeshire County Council,19-Mar-20,51301320429,"-1,025.00",THE GABLES (NURSING CARE ONLY),CARE ESTABLISHMENT,Physical Disablity - Cost of Care,Countywide PD Service - Care,Nursing Care
Cambridgeshire County Council,19-Mar-20,51301320429,"-1,025.00",THE GABLES (NURSING CARE ONLY),CARE ESTABLISHMENT,Physical Disablity - Cost of Care,Countywide PD Service - Care,Nursing Care
Cambridgeshire County Council,19-Mar-20,51301320429,"-1,025.00",THE GABLES (NURSING CARE ONLY),CARE ESTABLISHMENT,Physical Disablity - Cost of Care,Countywide PD Service - Care,Nursing Care
Cambridgeshire County Council,19-Mar-20,51301320429,"-1,025.00",THE GABLES (NURSING CARE ONLY),CARE ESTABLISHMENT,Physical Disablity - Cost of Care,Countywide PD Service - Care,Nursing Care
Cambridgeshire County Council,19-Mar-20,51301320428,"-1,025.00",THE GABLES (NURSING CARE ONLY),CARE ESTABLISHMENT,Physical Disablity - Cost of Care,Countywide PD Service - Care,Nursing Care
Cambridgeshire County Council,19-Mar-20,51301320428,"-1,025.00",THE GABLES (NURSING CARE ONLY),CARE ESTABLISHMENT,Physical Disablity - Cost of Care,Countywide PD Service - Care,Nursing Care
Cambridgeshire County Council,19-Mar-20,51301320429,"-1,025.00",THE GABLES (NURSING CARE ONLY),CARE ESTABLISHMENT,Physical Disablity - Cost of Care,Countywide PD Service - Care,Nursing Care
Cambridgeshire County Council,19-Mar-20,51301320429,"-1,025.00",THE GABLES (NURSING CARE ONLY),CARE ESTABLISHMENT,Physical Disablity - Cost of Care,Countywide PD Service - Care,Nursing Care
Cambridgeshire County Council,19-Mar-20,51301320429,"-1,025.00",THE GABLES (NURSING CARE ONLY),CARE ESTABLISHMENT,Physical Disablity - Cost of Care,Countywide PD Service - Care,Nursing Care
Cambridgeshire County Council,19-Mar-20,51301320429,"-1,025.00",THE GABLES (NURSING CARE ONLY),CARE ESTABLISHMENT,Physical Disablity - Cost of Care,Countywide PD Service - Care,Nursing Care
Cambridgeshire County Council,19-Mar-20,51301320429,"-1,025.00",THE GABLES (NURSING CARE ONLY),CARE ESTABLISHMENT,Physical Disablity - Cost of Care,Countywide PD Service - Care,Nursing Care
Cambridgeshire County Council,19-Mar-20,51301320429,"-1,025.00",THE GABLES (NURSING CARE ONLY),CARE ESTABLISHMENT,Physical Disablity - Cost of Care,Countywide PD Service - Care,Nursing Care
Cambridgeshire County Council,19-Mar-20,51301320429,"-1,025.00",THE GABLES (NURSING CARE ONLY),CARE ESTABLISHMENT,Physical Disablity - Cost of Care,Countywide PD Service - Care,Nursing Care
Cambridgeshire County Council,19-Mar-20,51301320429,"-1,025.00",THE GABLES (NURSING CARE ONLY),CARE ESTABLISHMENT,Physical Disablity - Cost of Care,Countywide PD Service - Care,Nursing Care
Cambridgeshire County Council,19-Mar-20,51301320429,"-1,025.00",THE GABLES (NURSING CARE ONLY),CARE ESTABLISHMENT,Physical Disablity - Cost of Care,Countywide PD Service - Care,Nursing Care
Cambridgeshire County Council,19-Mar-20,51301320428,"-1,025.00",THE GABLES (NURSING CARE ONLY),CARE ESTABLISHMENT,Physical Disablity - Cost of Care,Countywide PD Service - Care,Nursing Care
Cambridgeshire County Council,19-Mar-20,51301320428,"-1,025.00",THE GABLES (NURSING CARE ONLY),CARE ESTABLISHMENT,Physical Disablity - Cost of Care,Countywide PD Service - Care,Nursing Care
Cambridgeshire County Council,19-Mar-20,51301320429,"-1,025.00",THE GABLES (NURSING CARE ONLY),CARE ESTABLISHMENT,Physical Disablity - Cost of Care,Countywide PD Service - Care,Nursing Care
Cambridgeshire County Council,19-Mar-20,51301320429,"-1,025.00",THE GABLES (NURSING CARE ONLY),CARE ESTABLISHMENT,Physical Disablity - Cost of Care,Countywide PD Service - Care,Nursing Care
Cambridgeshire County Council,19-Mar-20,51301320429,"-1,025.00",THE GABLES (NURSING CARE ONLY),CARE ESTABLISHMENT,Physical Disablity - Cost of Care,Countywide PD Service - Care,Nursing Care
Cambridgeshire County Council,19-Mar-20,51301320429,"-1,025.00",THE GABLES (NURSING CARE ONLY),CARE ESTABLISHMENT,Physical Disablity - Cost of Care,Countywide PD Service - Care,Nursing Care
Cambridgeshire County Council,19-Mar-20,51301320429,"-1,025.00",THE GABLES (NURSING CARE ONLY),CARE ESTABLISHMENT,Physical Disablity - Cost of Care,Countywide PD Service - Care,Nursing Care
Cambridgeshire County Council,19-Mar-20,51301320429,"-1,025.00",THE GABLES (NURSING CARE ONLY),CARE ESTABLISHMENT,Physical Disablity - Cost of Care,Countywide PD Service - Care,Nursing Care
Cambridgeshire County Council,19-Mar-20,51301320429,"-1,025.00",THE GABLES (NURSING CARE ONLY),CARE ESTABLISHMENT,Physical Disablity - Cost of Care,Countywide PD Service - Care,Nursing Care
Cambridgeshire County Council,19-Mar-20,51301320429,"-1,025.00",THE GABLES (NURSING CARE ONLY),CARE ESTABLISHMENT,Physical Disablity - Cost of Care,Countywide PD Service - Care,Nursing Care
Cambridgeshire County Council,19-Mar-20,51301320429,"-1,025.00",THE GABLES (NURSING CARE ONLY),CARE ESTABLISHMENT,Physical Disablity - Cost of Care,Countywide PD Service - Care,Nursing Care
Cambridgeshire County Council,19-Mar-20,51301320428,"-1,025.00",THE GABLES (NURSING CARE ONLY),CARE ESTABLISHMENT,Physical Disablity - Cost of Care,Countywide PD Service - Care,Nursing Care
Cambridgeshire County Council,19-Mar-20,51301320429,"-1,025.00",THE GABLES (NURSING CARE ONLY),CARE ESTABLISHMENT,Physical Disablity - Cost of Care,Countywide PD Service - Care,Nursing Care
Cambridgeshire County Council,19-Mar-20,51301320429,"-1,025.00",THE GABLES (NURSING CARE ONLY),CARE ESTABLISHMENT,Physical Disablity - Cost of Care,Countywide PD Service - Care,Nursing Care
Cambridgeshire County Council,05-Mar-20,51301328786,"-1,011.71",GUYATT HOUSE CARE LTD,CARE ESTABLISHMENT,LD - East Locality - Cost of Care,LD - East Cambs - Care,Supported Living
Cambridgeshire County Council,05-Mar-20,51301328786,"-1,011.71",GUYATT HOUSE CARE LTD,CARE ESTABLISHMENT,LD - East Locality - Cost of Care,LD - East Cambs - Care,Supported Living
Cambridgeshire County Council,05-Mar-20,51301328786,"-1,011.71",GUYATT HOUSE CARE LTD,CARE ESTABLISHMENT,LD - East Locality - Cost of Care,LD - East Cambs - Care,Supported Living
Cambridgeshire County Council,05-Mar-20,51301328786,"-1,011.71",GUYATT HOUSE CARE LTD,CARE ESTABLISHMENT,LD - East Locality - Cost of Care,LD - East Cambs - Care,Supported Living
Cambridgeshire County Council,05-Mar-20,51301328786,"-1,011.71",GUYATT HOUSE CARE LTD,CARE ESTABLISHMENT,LD - East Locality - Cost of Care,LD - East Cambs - Care,Supported Living
Cambridgeshire County Council,05-Mar-20,51301328786,"-1,011.71",GUYATT HOUSE CARE LTD,CARE ESTABLISHMENT,LD - East Locality - Cost of Care,LD - East Cambs - Care,Supported Living
Cambridgeshire County Council,05-Mar-20,51301328786,"-1,011.71",GUYATT HOUSE CARE LTD,CARE ESTABLISHMENT,LD - East Locality - Cost of Care,LD - East Cambs - Care,Supported Living
Cambridgeshire County Council,05-Mar-20,51301328786,"-1,011.71",GUYATT HOUSE CARE LTD,CARE ESTABLISHMENT,LD - East Locality - Cost of Care,LD - East Cambs - Care,Supported Living
Cambridgeshire County Council,05-Mar-20,51301328786,"-1,011.71",GUYATT HOUSE CARE LTD,CARE ESTABLISHMENT,LD - East Locality - Cost of Care,LD - East Cambs - Care,Supported Living
Cambridgeshire County Council,05-Mar-20,51301328786,"-1,011.71",GUYATT HOUSE CARE LTD,CARE ESTABLISHMENT,LD - East Locality - Cost of Care,LD - East Cambs - Care,Supported Living
Cambridgeshire County Council,05-Mar-20,51301328786,"-1,011.71",GUYATT HOUSE CARE LTD,CARE ESTABLISHMENT,LD - East Locality - Cost of Care,LD - East Cambs - Care,Supported Living
Cambridgeshire County Council,05-Mar-20,51301328786,"-1,011.71",GUYATT HOUSE CARE LTD,CARE ESTABLISHMENT,LD - East Locality - Cost of Care,LD - East Cambs - Care,Supported Living
Cambridgeshire County Council,05-Mar-20,51301328786,"-1,011.71",GUYATT HOUSE CARE LTD,CARE ESTABLISHMENT,LD - East Locality - Cost of Care,LD - East Cambs - Care,Supported Living
Cambridgeshire County Council,05-Mar-20,51301328786,"-1,011.71",GUYATT HOUSE CARE LTD,CARE ESTABLISHMENT,LD - East Locality - Cost of Care,LD - East Cambs - Care,Supported Living
Cambridgeshire County Council,05-Mar-20,51301328786,"-1,011.71",GUYATT HOUSE CARE LTD,CARE ESTABLISHMENT,LD - East Locality - Cost of Care,LD - East Cambs - Care,Supported Living
Cambridgeshire County Council,05-Mar-20,51301328786,"-1,011.71",GUYATT HOUSE CARE LTD,CARE ESTABLISHMENT,LD - East Locality - Cost of Care,LD - East Cambs - Care,Supported Living
Cambridgeshire County Council,05-Mar-20,51301328786,"-1,011.71",GUYATT HOUSE CARE LTD,CARE ESTABLISHMENT,LD - East Locality - Cost of Care,LD - East Cambs - Care,Supported Living
Cambridgeshire County Council,05-Mar-20,51301328786,"-1,011.71",GUYATT HOUSE CARE LTD,CARE ESTABLISHMENT,LD - East Locality - Cost of Care,LD - East Cambs - Care,Supported Living
Cambridgeshire County Council,05-Mar-20,51301328786,"-1,011.71",GUYATT HOUSE CARE LTD,CARE ESTABLISHMENT,LD - East Locality - Cost of Care,LD - East Cambs - Care,Supported Living
Cambridgeshire County Council,05-Mar-20,51301328786,"-1,011.71",GUYATT HOUSE CARE LTD,CARE ESTABLISHMENT,LD - East Locality - Cost of Care,LD - East Cambs - Care,Supported Living
Cambridgeshire County Council,05-Mar-20,51301328786,"-1,011.71",GUYATT HOUSE CARE LTD,CARE ESTABLISHMENT,LD - East Locality - Cost of Care,LD - East Cambs - Care,Supported Living
Cambridgeshire County Council,05-Mar-20,51301328786,"-1,011.71",GUYATT HOUSE CARE LTD,CARE ESTABLISHMENT,LD - East Locality - Cost of Care,LD - East Cambs - Care,Supported Living
Cambridgeshire County Council,05-Mar-20,51301328786,"-1,011.71",GUYATT HOUSE CARE LTD,CARE ESTABLISHMENT,LD - East Locality - Cost of Care,LD - East Cambs - Care,Supported Living
Cambridgeshire County Council,05-Mar-20,51301328786,"-1,011.71",GUYATT HOUSE CARE LTD,CARE ESTABLISHMENT,LD - East Locality - Cost of Care,LD - East Cambs - Care,Supported Living
Cambridgeshire County Council,05-Mar-20,51301328786,"-1,011.71",GUYATT HOUSE CARE LTD,CARE ESTABLISHMENT,LD - East Locality - Cost of Care,LD - East Cambs - Care,Supported Living
Cambridgeshire County Council,05-Mar-20,51301328786,"-1,011.71",GUYATT HOUSE CARE LTD,CARE ESTABLISHMENT,LD - East Locality - Cost of Care,LD - East Cambs - Care,Supported Living
Cambridgeshire County Council,05-Mar-20,51301328786,"-1,011.71",GUYATT HOUSE CARE LTD,CARE ESTABLISHMENT,LD - East Locality - Cost of Care,LD - East Cambs - Care,Supported Living
Cambridgeshire County Council,05-Mar-20,51301328786,"-1,011.71",GUYATT HOUSE CARE LTD,CARE ESTABLISHMENT,LD - East Locality - Cost of Care,LD - East Cambs - Care,Supported Living
Cambridgeshire County Council,05-Mar-20,51301328786,"-1,011.71",GUYATT HOUSE CARE LTD,CARE ESTABLISHMENT,LD - East Locality - Cost of Care,LD - East Cambs - Care,Supported Living
Cambridgeshire County Council,05-Mar-20,51301328786,"-1,011.71",GUYATT HOUSE CARE LTD,CARE ESTABLISHMENT,LD - East Locality - Cost of Care,LD - East Cambs - Care,Supported Living
Cambridgeshire County Council,05-Mar-20,51301328786,"-1,011.71",GUYATT HOUSE CARE LTD,CARE ESTABLISHMENT,LD - East Locality - Cost of Care,LD - East Cambs - Care,Supported Living
Cambridgeshire County Council,05-Mar-20,51301328786,"-1,011.71",GUYATT HOUSE CARE LTD,CARE ESTABLISHMENT,LD - East Locality - Cost of Care,LD - East Cambs - Care,Supported Living
Cambridgeshire County Council,19-Mar-20,51301335700,"-1,000.83",WOODLANDS CARE CENTRE,CARE ESTABLISHMENT,OPMH - City & South,Older People Mental Health E Cambs,Nursing Care
Cambridgeshire County Council,19-Mar-20,51301335700,"-1,000.83",WOODLANDS CARE CENTRE,CARE ESTABLISHMENT,OPMH - City & South,Older People Mental Health E Cambs,Nursing Care
Cambridgeshire County Council,19-Mar-20,51301335700,"-1,000.83",WOODLANDS CARE CENTRE,CARE ESTABLISHMENT,OPMH - City & South,Older People Mental Health E Cambs,Nursing Care
Cambridgeshire County Council,19-Mar-20,51301335700,"-1,000.83",WOODLANDS CARE CENTRE,CARE ESTABLISHMENT,OPMH - City & South,Older People Mental Health E Cambs,Nursing Care
Cambridgeshire County Council,19-Mar-20,51301336136,"-1,000.00",THE GABLES SPECIALIST NURSING HOME,CARE ESTABLISHMENT,OP - Fenland Locality - Cost of Care,Older People - Fenland - Care,Nursing Care
Cambridgeshire County Council,19-Mar-20,51301328387,"-1,000.00",St Brendans,COMPANY,AMH - City South,Cambridge Mental Health team,Residential Care
Cambridgeshire County Council,19-Mar-20,51301328387,"-1,000.00",St Brendans,COMPANY,AMH - City South,Cambridge Mental Health team,Residential Care
Cambridgeshire County Council,19-Mar-20,51301328387,"-1,000.00",St Brendans,COMPANY,AMH - City South,Cambridge Mental Health team,Residential Care
Cambridgeshire County Council,19-Mar-20,51301328387,"-1,000.00",St Brendans,COMPANY,AMH - City South,Cambridge Mental Health team,Residential Care
Cambridgeshire County Council,19-Mar-20,51301328387,"-1,000.00",St Brendans,COMPANY,AMH - City South,Cambridge Mental Health team,Residential Care
Cambridgeshire County Council,19-Mar-20,51301328387,"-1,000.00",St Brendans,COMPANY,AMH - City South,Cambridge Mental Health team,Residential Care
